﻿DIRECTORATE,SECTION,DIVISION,VENDOR_NAME,VENDOR_SITE_ID,PAYMENT_DATE,VOUCHER_NO,AMOUNT,IRRECOVERABLE VATE,PURPOSE_OF_SPEND,PROCUREMENT_CLASSIFICATION
People Services - Adults and Health,Learning Disability Support,Transitions and Ordinary Lives,14 LINBY DRIVE,19274,04/05/2021,3676801,"4,430.64",0.00,N/A,N/A
Communities & Place,Economic Development,City Development & Growth,2I CARS LIMITED,1559477,04/05/2021,3672650,"4,000.00",0.00,N/A,N/A
Communities & Place,Economic Development,City Development & Growth,A AND A SOFT TEC LTD,1511485,04/05/2021,3672654,"1,200.00",0.00,N/A,N/A
Adults Health and Housing,Adults Health and Housing,Adults Health and Housing,A M PROPERTY SERVICES LTD,121,04/05/2021,3673034,"1,410.00",0.00,REFCUS - Healthy Housing Assistance,Building and Construction and Maintenanc
Communities & Place,"Environmental Protection, Housing Standards, Licensing, Emergency Planning",Public Protection and Streetride,A W LYMN,132,04/05/2021,3672911,"1,300.00",0.00,Burial/Crem N.A. Act 1948,Default
Communities & Place,"Environmental Protection, Housing Standards, Licensing, Emergency Planning",Public Protection and Streetride,A W LYMN,132,04/05/2021,3671996,"1,200.00",0.00,Burial/Crem N.A. Act 1948,Default
People Services - Adults and Health,Physical Support,Community Support,ABBEY COURT RESIDENTIAL AND NURSING HOME,10483,04/05/2021,3676613,"2,227.64",0.00,N/A,N/A
People Services - Adults and Health,Physical Support,Community Support,ABBEY COURT RESIDENTIAL AND NURSING HOME,10483,04/05/2021,3676662,"2,227.64",0.00,N/A,N/A
People Services - Adults and Health,Physical Support,Community Support,ABBEY COURT RESIDENTIAL AND NURSING HOME,10483,04/05/2021,3676646,"2,227.64",0.00,N/A,N/A
People Services - Adults and Health,Physical Support,Community Support,ABBEY COURT RESIDENTIAL AND NURSING HOME,10483,04/05/2021,3676647,"2,227.64",0.00,N/A,N/A
People Services - Adults and Health,Physical Support,Community Support,ABBEY COURT RESIDENTIAL AND NURSING HOME,10483,04/05/2021,3676595,"2,227.64",0.00,N/A,N/A
People Services - Adults and Health,Physical Support,Community Support,ABBEY COURT RESIDENTIAL AND NURSING HOME,10483,04/05/2021,3676633,"2,227.64",0.00,N/A,N/A
People Services - Adults and Health,Physical Support,Community Support,ABBEY COURT RESIDENTIAL AND NURSING HOME,10483,04/05/2021,3676684,"2,169.32",0.00,N/A,N/A
People Services - Adults and Health,Physical Support,Community Support,ABBEY COURT RESIDENTIAL AND NURSING HOME,10483,04/05/2021,3676701,"2,169.32",0.00,N/A,N/A
People Services - Adults and Health,Physical Support,Community Support,ABBEY COURT RESIDENTIAL AND NURSING HOME,10483,04/05/2021,3676645,"2,169.32",0.00,N/A,N/A
People Services - Adults and Health,Physical Support,Community Support,ABBEY COURT RESIDENTIAL AND NURSING HOME,10483,04/05/2021,3676622,"2,169.32",0.00,N/A,N/A
People Services - Adults and Health,Physical Support,Community Support,ABBEY COURT RESIDENTIAL AND NURSING HOME,10483,04/05/2021,3676623,"2,169.32",0.00,N/A,N/A
People Services - Adults and Health,Physical Support,Community Support,ABBEY COURT RESIDENTIAL AND NURSING HOME,10483,04/05/2021,3676683,"2,169.32",0.00,N/A,N/A
People Services - Adults and Health,Physical Support,Community Support,ABBEY COURT RESIDENTIAL AND NURSING HOME,10483,04/05/2021,3676593,"2,227.64",0.00,N/A,N/A
People Services - Adults and Health,Physical Support,Community Support,ABBEY COURT RESIDENTIAL AND NURSING HOME,10483,04/05/2021,3676661,"2,458.24",0.00,N/A,N/A
People Services - Adults and Health,Emergency Planning,Commissioning,ABBEY COURT RESIDENTIAL AND NURSING HOME,151,04/05/2021,3673038,"16,112.19",0.00,N/A,N/A
Communities & Place,Economic Development,City Development & Growth,ABBEY LANE STUDIOS,1559479,04/05/2021,3672647,"4,000.00",0.00,N/A,N/A
People Services - Adults and Health,Mental Health Support,Community Support,ABBEYDALE,1337476,04/05/2021,3676700,"1,169.52",0.00,N/A,N/A
People Services - Adults and Health,Mental Health Support,Community Support,ABBEYDALE,1337476,04/05/2021,3676644,"2,227.64",0.00,N/A,N/A
People Services - Adults and Health,Emergency Planning,Commissioning,ABBEYDALE,158,04/05/2021,3673040,"16,515.00",0.00,N/A,N/A
People Services - Adults and Health,Mental Health Support,Mental Health,ACACIA CARE CENTRE,1265486,04/05/2021,3677021,"2,266.48",0.00,N/A,N/A
People Services - Adults and Health,Learning Disability Support,Transitions and Ordinary Lives,ACACIA LODGE,471191,04/05/2021,3676733,"1,478.40",0.00,N/A,N/A
Communities & Place,Economic Development,City Development & Growth,ACCLAIM DRIVING,1559488,04/05/2021,3672657,"4,000.00",0.00,N/A,N/A
People Services - Children & Young People,Integrated Services,Non-Schools,ACORN CARE AND EDUCATION LTD,1526526,04/05/2021,3675205,527.14,0.00,N/A,N/A
People Services - Children & Young People,Integrated Services,Non-Schools,ACORN CARE AND EDUCATION LTD,1526526,04/05/2021,3675197,"20,200.00",0.00,N/A,N/A
People Services - Children & Young People,Integrated Services,Non-Schools,ACORN CARE AND EDUCATION LTD,1526526,04/05/2021,3675197,820.00,0.00,N/A,N/A
People Services - Children & Young People,Integrated Services,Non-Schools,ACORN CARE AND EDUCATION LTD,1526526,04/05/2021,3675197,"67,200.00",0.00,N/A,N/A
People Services - Children & Young People,Integrated Services,Non-Schools,ACORN CARE AND EDUCATION LTD,1526526,04/05/2021,3675197,"57,714.29",0.00,N/A,N/A
People Services - Children & Young People,Integrated Services,Non-Schools,ACORN CARE AND EDUCATION LTD,1526526,04/05/2021,3675197,527.14,0.00,N/A,N/A
People Services - Children & Young People,Integrated Services,Non-Schools,ACORN CARE AND EDUCATION LTD,1526526,04/05/2021,3675205,"12,985.71",0.00,N/A,N/A
People Services - Children & Young People,Integrated Services,Non-Schools,ACORN CARE AND EDUCATION LTD,1526526,04/05/2021,3675205,"7,214.29",0.00,N/A,N/A
People Services - Children & Young People,Integrated Services,Non-Schools,ACORN CARE AND EDUCATION LTD,1526526,04/05/2021,3675205,"11,828.57",0.00,N/A,N/A
People Services - Children & Young People,Integrated Services,Non-Schools,ACORN CARE AND EDUCATION LTD,1526526,04/05/2021,3675205,"11,828.57",0.00,N/A,N/A
People Services - Children & Young People,Integrated Services,Non-Schools,ACORN CARE AND EDUCATION LTD,1526526,04/05/2021,3675205,"6,571.43",0.00,N/A,N/A
People Services - Children & Young People,Integrated Services,Non-Schools,ACORN CARE AND EDUCATION LTD,1526526,04/05/2021,3675205,"6,571.43",0.00,N/A,N/A
People Services - Children & Young People,Integrated Services,Non-Schools,ACORN CARE AND EDUCATION LTD,1526526,04/05/2021,3675205,"4,992.86",0.00,N/A,N/A
People Services - Children & Young People,Integrated Services,Non-Schools,ACORN CARE AND EDUCATION LTD,1526526,04/05/2021,3675205,"9,050.07",0.00,N/A,N/A
People Services - Children & Young People,Integrated Services,Non-Schools,ACORN FOSTERING SERVICES LTD,1113490,04/05/2021,3675301,"2,738.57",0.00,N/A,N/A
People Services - Children & Young People,Integrated Services,Non-Schools,ACORN FOSTERING SERVICES LTD,1113490,04/05/2021,3675301,"1,916.18",0.00,N/A,N/A
People Services - Children & Young People,Integrated Services,Non-Schools,ACORN FOSTERING SERVICES LTD,1113490,04/05/2021,3675301,"1,916.18",0.00,N/A,N/A
People Services - Children & Young People,Integrated Services,Non-Schools,ACORN FOSTERING SERVICES LTD,1113490,04/05/2021,3675301,"1,838.49",0.00,N/A,N/A
People Services - Children & Young People,Integrated Services,Non-Schools,ACORN FOSTERING SERVICES LTD,1113490,04/05/2021,3675301,"1,838.49",0.00,N/A,N/A
People Services - Children & Young People,Integrated Services,Non-Schools,ACORN FOSTERING SERVICES LTD,1113490,04/05/2021,3675301,"1,993.86",0.00,N/A,N/A
People Services - Children & Young People,Integrated Services,Non-Schools,ACORN FOSTERING SERVICES LTD,1113490,04/05/2021,3675301,"1,521.43",0.00,N/A,N/A
People Services - Children & Young People,Integrated Services,Non-Schools,ACORN FOSTERING SERVICES LTD,1113490,04/05/2021,3675301,"1,057.14",0.00,N/A,N/A
People Services - Children & Young People,Integrated Services,Non-Schools,ACORN FOSTERING SERVICES LTD,1113490,04/05/2021,3675301,"1,057.14",0.00,N/A,N/A
People Services - Children & Young People,Integrated Services,Non-Schools,ACORN FOSTERING SERVICES LTD,1113490,04/05/2021,3675301,"1,014.29",0.00,N/A,N/A
People Services - Children & Young People,Integrated Services,Non-Schools,ACORN FOSTERING SERVICES LTD,1113490,04/05/2021,3675301,"1,014.29",0.00,N/A,N/A
People Services - Children & Young People,Integrated Services,Non-Schools,ACORN FOSTERING SERVICES LTD,1113490,04/05/2021,3675301,"1,100.00",0.00,N/A,N/A
Corporate Resources,"Legal, Procurement and Democratic Services","Legal, Procurement and Democratic Services",ADNIX UK LTD,1039468,04/05/2021,3672882,"2,280.75",0.00,PCC Elections,Structures and Building and Construction
Communities & Place,"Highways, Gounds Maintenance and Flood Defence",Public Protection and Streetride,AGGREGATE INDUSTRIES UK LTD,117850,04/05/2021,3672422,825.69,0.00,Highways Maintenance Works,Building and Construction Machinery and
Communities & Place,"Highways, Gounds Maintenance and Flood Defence",Public Protection and Streetride,AGGREGATE INDUSTRIES UK LTD,117850,04/05/2021,3672426,564.21,0.00,Highways Maintenance Reactionary Works,Building and Construction Machinery and
Communities & Place,"Highways, Gounds Maintenance and Flood Defence",Public Protection and Streetride,AGGREGATE INDUSTRIES UK LTD,117850,04/05/2021,3672516,700.12,0.00,Highways Maintenance Reactionary Works,Building and Construction Machinery and
People Services - Adults and Health,Support with Memory and Cognition,Community Support,AGINCARE DERBY LIMITED,1224470,04/05/2021,3676078,"2,169.32",0.00,N/A,N/A
People Services - Adults and Health,Support with Memory and Cognition,Community Support,AGINCARE DERBY LIMITED,1224470,04/05/2021,3676143,"1,084.66",0.00,N/A,N/A
People Services - Adults and Health,Support with Memory and Cognition,Community Support,AGINCARE DERBY LIMITED,1224470,04/05/2021,3675957,832.26,0.00,N/A,N/A
People Services - Adults and Health,Support with Memory and Cognition,Community Support,AGINCARE DERBY LIMITED,1224470,04/05/2021,3675846,832.26,0.00,N/A,N/A
People Services - Adults and Health,Support with Memory and Cognition,Community Support,AGINCARE DERBY LIMITED,1224470,04/05/2021,3675847,"2,169.32",0.00,N/A,N/A
People Services - Adults and Health,Support with Memory and Cognition,Community Support,AGINCARE DERBY LIMITED,1224470,04/05/2021,3676203,"1,084.66",0.00,N/A,N/A
People Services - Adults and Health,Support with Memory and Cognition,Community Support,AGINCARE DERBY LIMITED,1224470,04/05/2021,3675848,"2,169.32",0.00,N/A,N/A
People Services - Adults and Health,Physical Support,Community Support,AGINCARE DERBY LIMITED,1224470,04/05/2021,3675850,"2,169.32",0.00,N/A,N/A
People Services - Adults and Health,Physical Support,Community Support,AGINCARE DERBY LIMITED,1224470,04/05/2021,3676079,"2,169.32",0.00,N/A,N/A
People Services - Adults and Health,Physical Support,Community Support,AGINCARE DERBY LIMITED,1224470,04/05/2021,3676080,"2,169.32",0.00,N/A,N/A
People Services - Adults and Health,Physical Support,Community Support,AGINCARE DERBY LIMITED,1224470,04/05/2021,3676144,"1,084.66",0.00,N/A,N/A
People Services - Adults and Health,Physical Support,Community Support,AGINCARE DERBY LIMITED,1224470,04/05/2021,3676205,"1,084.66",0.00,N/A,N/A
People Services - Adults and Health,Physical Support,Community Support,AGINCARE DERBY LIMITED,1224470,04/05/2021,3675794,"1,084.66",0.00,N/A,N/A
People Services - Adults and Health,Physical Support,Community Support,AGINCARE DERBY LIMITED,1224470,04/05/2021,3675797,"2,169.32",0.00,N/A,N/A
People Services - Adults and Health,Physical Support,Community Support,AGINCARE DERBY LIMITED,1224470,04/05/2021,3676211,"2,169.32",0.00,N/A,N/A
People Services - Adults and Health,Physical Support,Community Support,AGINCARE DERBY LIMITED,1224470,04/05/2021,3676074,832.26,0.00,N/A,N/A
People Services - Adults and Health,Physical Support,Community Support,AGINCARE DERBY LIMITED,1224470,04/05/2021,3676075,"1,084.66",0.00,N/A,N/A
People Services - Adults and Health,Physical Support,Community Support,AGINCARE DERBY LIMITED,1224470,04/05/2021,3676152,"2,169.32",0.00,N/A,N/A
People Services - Adults and Health,Physical Support,Community Support,AGINCARE DERBY LIMITED,1224470,04/05/2021,3676081,"2,169.32",0.00,N/A,N/A
People Services - Adults and Health,Physical Support,Community Support,AGINCARE DERBY LIMITED,1224470,04/05/2021,3675849,"2,169.32",0.00,N/A,N/A
People Services - Adults and Health,Physical Support,Community Support,AGINCARE DERBY LIMITED,1224470,04/05/2021,3676010,832.26,0.00,N/A,N/A
People Services - Adults and Health,Physical Support,Community Support,AGINCARE DERBY LIMITED,1224470,04/05/2021,3676011,832.26,0.00,N/A,N/A
People Services - Adults and Health,Physical Support,Community Support,AGINCARE DERBY LIMITED,1224470,04/05/2021,3676012,832.26,0.00,N/A,N/A
People Services - Adults and Health,Physical Support,Community Support,AGINCARE DERBY LIMITED,1224470,04/05/2021,3676017,"2,169.32",0.00,N/A,N/A
People Services - Adults and Health,Physical Support,Community Support,AGINCARE DERBY LIMITED,1224470,04/05/2021,3675907,832.26,0.00,N/A,N/A
People Services - Adults and Health,Physical Support,Community Support,AGINCARE DERBY LIMITED,1224470,04/05/2021,3675908,"1,084.66",0.00,N/A,N/A
People Services - Adults and Health,Physical Support,Community Support,AGINCARE DERBY LIMITED,1224470,04/05/2021,3676127,"1,084.66",0.00,N/A,N/A
People Services - Adults and Health,Physical Support,Community Support,AGINCARE DERBY LIMITED,1224470,04/05/2021,3676183,832.26,0.00,N/A,N/A
People Services - Adults and Health,Physical Support,Community Support,AGINCARE DERBY LIMITED,1224470,04/05/2021,3676184,832.26,0.00,N/A,N/A
People Services - Adults and Health,Physical Support,Community Support,AGINCARE DERBY LIMITED,1224470,04/05/2021,3675799,"2,169.32",0.00,N/A,N/A
People Services - Adults and Health,Physical Support,Community Support,AGINCARE DERBY LIMITED,1224470,04/05/2021,3675962,"2,169.32",0.00,N/A,N/A
People Services - Adults and Health,Physical Support,Community Support,AGINCARE DERBY LIMITED,1224470,04/05/2021,3675881,832.26,0.00,N/A,N/A
People Services - Adults and Health,Physical Support,Community Support,AGINCARE DERBY LIMITED,1224470,04/05/2021,3675882,"1,084.66",0.00,N/A,N/A
People Services - Adults and Health,Physical Support,Community Support,AGINCARE DERBY LIMITED,1224470,04/05/2021,3676018,"2,169.32",0.00,N/A,N/A
People Services - Adults and Health,Physical Support,Community Support,AGINCARE DERBY LIMITED,1224470,04/05/2021,3676019,"2,169.32",0.00,N/A,N/A
People Services - Adults and Health,Physical Support,Community Support,AGINCARE DERBY LIMITED,1224470,04/05/2021,3676190,"1,084.66",0.00,N/A,N/A
People Services - Adults and Health,Physical Support,Community Support,AGINCARE DERBY LIMITED,1224470,04/05/2021,3676191,"1,084.66",0.00,N/A,N/A
People Services - Adults and Health,Physical Support,Community Support,AGINCARE DERBY LIMITED,1224470,04/05/2021,3675938,832.26,0.00,N/A,N/A
People Services - Adults and Health,Physical Support,Community Support,AGINCARE DERBY LIMITED,1224470,04/05/2021,3675939,"1,084.66",0.00,N/A,N/A
People Services - Adults and Health,Physical Support,Community Support,AGINCARE DERBY LIMITED,1224470,04/05/2021,3675940,"1,084.66",0.00,N/A,N/A
People Services - Adults and Health,Physical Support,Community Support,AGINCARE DERBY LIMITED,1224470,04/05/2021,3676114,832.26,0.00,N/A,N/A
People Services - Adults and Health,Physical Support,Community Support,AGINCARE DERBY LIMITED,1224470,04/05/2021,3676115,"2,169.32",0.00,N/A,N/A
People Services - Adults and Health,Physical Support,Community Support,AGINCARE DERBY LIMITED,1224470,04/05/2021,3676212,"2,169.32",0.00,N/A,N/A
People Services - Adults and Health,Physical Support,Community Support,AGINCARE DERBY LIMITED,1224470,04/05/2021,3676213,"2,169.32",0.00,N/A,N/A
People Services - Adults and Health,Physical Support,Community Support,AGINCARE DERBY LIMITED,1224470,04/05/2021,3676214,"2,169.32",0.00,N/A,N/A
People Services - Adults and Health,Physical Support,Community Support,AGINCARE DERBY LIMITED,1224470,04/05/2021,3676040,832.26,0.00,N/A,N/A
People Services - Adults and Health,Physical Support,Community Support,AGINCARE DERBY LIMITED,1224470,04/05/2021,3676041,832.26,0.00,N/A,N/A
People Services - Adults and Health,Physical Support,Community Support,AGINCARE DERBY LIMITED,1224470,04/05/2021,3675827,"1,084.66",0.00,N/A,N/A
People Services - Adults and Health,Physical Support,Community Support,AGINCARE DERBY LIMITED,1224470,04/05/2021,3675828,832.26,0.00,N/A,N/A
People Services - Adults and Health,Physical Support,Community Support,AGINCARE DERBY LIMITED,1224470,04/05/2021,3676249,"1,084.66",0.00,N/A,N/A
People Services - Adults and Health,Physical Support,Community Support,AGINCARE DERBY LIMITED,1224470,04/05/2021,3676153,"2,169.32",0.00,N/A,N/A
People Services - Adults and Health,Physical Support,Community Support,AGINCARE DERBY LIMITED,1224470,04/05/2021,3675798,"2,169.32",0.00,N/A,N/A
People Services - Adults and Health,Physical Support,Community Support,AGINCARE DERBY LIMITED,1224470,04/05/2021,3675989,"2,169.32",0.00,N/A,N/A
People Services - Adults and Health,Physical Support,Community Support,AGINCARE DERBY LIMITED,1224470,04/05/2021,3675993,"1,084.66",0.00,N/A,N/A
People Services - Adults and Health,Physical Support,Community Support,AGINCARE DERBY LIMITED,1224470,04/05/2021,3676082,"2,169.32",0.00,N/A,N/A
People Services - Adults and Health,Physical Support,Community Support,AGINCARE DERBY LIMITED,1224470,04/05/2021,3676241,"2,169.32",0.00,N/A,N/A
People Services - Adults and Health,Physical Support,Community Support,AGINCARE DERBY LIMITED,1224470,04/05/2021,3675875,832.26,0.00,N/A,N/A
People Services - Adults and Health,Physical Support,Community Support,AGINCARE DERBY LIMITED,1224470,04/05/2021,3675910,"2,169.32",0.00,N/A,N/A
People Services - Adults and Health,Mental Health Support,Mental Health,AGINCARE DERBY LIMITED,1224470,04/05/2021,3676242,"2,169.32",0.00,N/A,N/A
People Services - Adults and Health,Sensory Support,Community Support,AGINCARE DERBY LIMITED,1224470,04/05/2021,3675994,832.26,0.00,N/A,N/A
People Services - Adults and Health,Sensory Support,Community Support,AGINCARE DERBY LIMITED,1224470,04/05/2021,3676049,"1,084.66",0.00,N/A,N/A
People Services - Adults and Health,Sensory Support,Community Support,AGINCARE DERBY LIMITED,1224470,04/05/2021,3675990,"2,169.32",0.00,N/A,N/A
People Services - Adults and Health,Mental Health Support,Community Support,AGINCARE DERBY LIMITED,1224470,04/05/2021,3676243,"2,169.32",0.00,N/A,N/A
People Services - Adults and Health,Mental Health Support,Community Support,AGINCARE DERBY LIMITED,1224470,04/05/2021,3676042,"2,169.32",0.00,N/A,N/A
People Services - Adults and Health,Mental Health Support,Community Support,AGINCARE DERBY LIMITED,1224470,04/05/2021,3676016,832.26,0.00,N/A,N/A
People Services - Adults and Health,Mental Health Support,Community Support,AGINCARE DERBY LIMITED,1224470,04/05/2021,3675909,"1,084.66",0.00,N/A,N/A
People Services - Adults and Health,Emergency Planning,Commissioning,AGINCARE DERBY LIMITED,1224468,04/05/2021,3673039,"36,655.24",0.00,Emergency Planning,Healthcare Services
Communities & Place,Economic Development,City Development & Growth,AJ VIDEOGRAPHY,1559489,04/05/2021,3672652,"4,000.00",0.00,N/A,N/A
People Services - Children & Young People,Commissioning,Non-Schools,ALBATROSS CARS DERBY LTD,878452,04/05/2021,3672458,720.00,0.00,Home To School Transport - SEN,Transportation and Storage and Mail Serv
People Services - Children & Young People,Commissioning,Non-Schools,ALBATROSS CARS DERBY LTD,878452,04/05/2021,3672461,637.10,0.00,Home To School Transport - SEN,Transportation and Storage and Mail Serv
People Services - Children & Young People,Commissioning,Non-Schools,ALBATROSS CARS DERBY LTD,878452,04/05/2021,3672456,600.00,0.00,Home To School Transport - SEN,Transportation and Storage and Mail Serv
People Services - Children & Young People,Commissioning,Non-Schools,ALBATROSS CARS DERBY LTD,878452,04/05/2021,3672463,600.00,0.00,Home To School Transport - SEN,Transportation and Storage and Mail Serv
People Services - Children & Young People,Integrated Services,Non-Schools,ALL4U FOSTERING LTD.,1238475,04/05/2021,3675473,"4,120.00",0.00,N/A,N/A
People Services - Children & Young People,Integrated Services,Non-Schools,ALLIANCE FOSTER CARE,1108472,04/05/2021,3675248,"2,028.86",0.00,N/A,N/A
People Services - Children & Young People,Integrated Services,Non-Schools,ALLIANCE FOSTER CARE,1108472,04/05/2021,3675248,"1,127.14",0.00,N/A,N/A
People Services - Adults and Health,Physical Support,Community Support,ALLIED HEALTHCARE,1007478,04/05/2021,3673784,591.16,0.00,N/A,N/A
People Services - Adults and Health,Physical Support,Community Support,ALLIED HEALTHCARE,1007478,04/05/2021,3673550,"1,166.44",0.00,N/A,N/A
People Services - Adults and Health,Physical Support,Community Support,ALLIED HEALTHCARE,1007478,04/05/2021,3674420,"1,160.69",0.00,N/A,N/A
People Services - Adults and Health,Sensory Support,Community Support,ALLIED HEALTHCARE,1007478,04/05/2021,3673981,611.06,0.00,N/A,N/A
People Services - Adults and Health,Emergency Planning,Commissioning,AMBER LODGE NURSING HOME,289,04/05/2021,3673041,"16,112.19",0.00,N/A,N/A
Children and Young People,Children and Young People,Children and Young People,AMEY OW LTD,1399475,04/05/2021,3672977,"6,928.32",0.00,N/A,N/A
People Services - Children & Young People,Integrated Services,Non-Schools,ANCHOR FOSTER CARE,1108474,04/05/2021,3675305,"2,262.86",0.00,N/A,N/A
People Services - Children & Young People,Integrated Services,Non-Schools,ANCHOR FOSTER CARE,1108474,04/05/2021,3675305,"2,262.86",0.00,N/A,N/A
People Services - Children & Young People,Integrated Services,Non-Schools,ANCHOR FOSTER CARE,1108474,04/05/2021,3675305,"2,131.71",0.00,N/A,N/A
People Services - Children & Young People,Integrated Services,Non-Schools,ANCHOR FOSTER CARE,1108474,04/05/2021,3675305,"2,262.86",0.00,N/A,N/A
People Services - Children & Young People,Integrated Services,Non-Schools,ANCHOR FOSTER CARE,1108474,04/05/2021,3675305,"1,257.14",0.00,N/A,N/A
People Services - Children & Young People,Integrated Services,Non-Schools,ANCHOR FOSTER CARE,1108474,04/05/2021,3675305,"1,257.14",0.00,N/A,N/A
People Services - Children & Young People,Integrated Services,Non-Schools,ANCHOR FOSTER CARE,1108474,04/05/2021,3675305,"1,257.14",0.00,N/A,N/A
People Services - Children & Young People,Integrated Services,Non-Schools,ANCHOR FOSTER CARE,1108474,04/05/2021,3675305,"1,184.29",0.00,N/A,N/A
People Services - Children & Young People,Integrated Services,Non-Schools,ANCHOR FOSTER CARE,1108474,04/05/2021,3675305,"1,184.29",0.00,N/A,N/A
People Services - Children & Young People,Integrated Services,Non-Schools,ANCHOR FOSTER CARE,1108474,04/05/2021,3675305,"1,091.43",0.00,N/A,N/A
People Services - Children & Young People,Integrated Services,Non-Schools,ANCHOR FOSTER CARE,1108474,04/05/2021,3675305,"1,050.40",0.00,N/A,N/A
People Services - Children & Young People,Integrated Services,Non-Schools,ANCHOR FOSTER CARE,1108474,04/05/2021,3675305,985.70,0.00,N/A,N/A
People Services - Children & Young People,Integrated Services,Non-Schools,ANCHOR FOSTER CARE,1108474,04/05/2021,3675305,"2,131.71",0.00,N/A,N/A
People Services - Children & Young People,Integrated Services,Non-Schools,ANCHOR FOSTER CARE,1108474,04/05/2021,3675305,"1,964.57",0.00,N/A,N/A
People Services - Children & Young People,Integrated Services,Non-Schools,ANCHOR FOSTER CARE,1108474,04/05/2021,3675305,"1,890.72",0.00,N/A,N/A
People Services - Children & Young People,Integrated Services,Non-Schools,ANCHOR FOSTER CARE,1108474,04/05/2021,3675305,"1,774.26",0.00,N/A,N/A
People Services - Adults and Health,Support with Memory and Cognition,Community Support,ANCHOR TRUST,10629,04/05/2021,3676690,"2,169.32",0.00,N/A,N/A
People Services - Adults and Health,Support with Memory and Cognition,Community Support,ANCHOR TRUST,10629,04/05/2021,3676705,"2,169.32",0.00,N/A,N/A
People Services - Adults and Health,Physical Support,Community Support,ANCHOR TRUST,10629,04/05/2021,3676671,"2,169.32",0.00,N/A,N/A
People Services - Adults and Health,Physical Support,Community Support,ANCHOR TRUST,10629,04/05/2021,3676691,"2,169.32",0.00,N/A,N/A
People Services - Adults and Health,Physical Support,Community Support,ANCHOR TRUST,10629,04/05/2021,3676602,"2,169.32",0.00,N/A,N/A
People Services - Adults and Health,Physical Support,Community Support,ANCHOR TRUST,10629,04/05/2021,3676617,"2,169.32",0.00,N/A,N/A
People Services - Adults and Health,Physical Support,Community Support,ANCHOR TRUST,10629,04/05/2021,3676670,"1,815.84",0.00,N/A,N/A
People Services - Adults and Health,Physical Support,Community Support,ANCHOR TRUST,10629,04/05/2021,3676600,"1,081.52",0.00,N/A,N/A
People Services - Adults and Health,Physical Support,Community Support,ANCHOR TRUST,10629,04/05/2021,3676601,"2,169.32",0.00,N/A,N/A
People Services - Adults and Health,Physical Support,Community Support,ANCHOR TRUST,10629,04/05/2021,3676672,"2,169.32",0.00,N/A,N/A
People Services - Adults and Health,Physical Support,Community Support,ANCHOR TRUST,10629,04/05/2021,3676692,"2,169.32",0.00,N/A,N/A
People Services - Adults and Health,Physical Support,Community Support,ANCHOR TRUST,10629,04/05/2021,3676615,"2,118.48",0.00,N/A,N/A
People Services - Adults and Health,Physical Support,Community Support,ANCHOR TRUST,10629,04/05/2021,3676616,"2,118.48",0.00,N/A,N/A
People Services - Adults and Health,Physical Support,Community Support,ANCHOR TRUST,10629,04/05/2021,3676651,"2,169.32",0.00,N/A,N/A
People Services - Adults and Health,Physical Support,Community Support,ANCHOR TRUST,10629,04/05/2021,3676599,"2,118.48",0.00,N/A,N/A
People Services - Adults and Health,Mental Health Support,Mental Health,ANCHOR TRUST,10629,04/05/2021,3676652,"2,169.32",0.00,N/A,N/A
People Services - Adults and Health,Learning Disability Support,Transitions and Ordinary Lives,ANCHOR TRUST,10629,04/05/2021,3676603,"2,480.00",0.00,N/A,N/A
People Services - Adults and Health,Mental Health Support,Mental Health,ANCHOR TRUST,10629,04/05/2021,3676638,757.92,0.00,N/A,N/A
People Services - Adults and Health,Mental Health Support,Mental Health,ANCHOR TRUST,10629,04/05/2021,3676639,"2,169.32",0.00,N/A,N/A
People Services - Adults and Health,Emergency Planning,Commissioning,ANCHOR TRUST,1335472,04/05/2021,3673057,"16,515.00",0.00,N/A,N/A
People Services - Adults and Health,Physical Support,Community Support,ANDRIN HOUSE NURSING AND RESIDENTIAL HOME,1484484,04/05/2021,3676130,"2,227.64",0.00,N/A,N/A
People Services - Adults and Health,Physical Support,Community Support,ANDRIN HOUSE NURSING AND RESIDENTIAL HOME,1484484,04/05/2021,3676196,"2,227.64",0.00,N/A,N/A
People Services - Adults and Health,Physical Support,Community Support,ANDRIN HOUSE NURSING AND RESIDENTIAL HOME,1484484,04/05/2021,3675833,"2,227.64",0.00,N/A,N/A
People Services - Adults and Health,Physical Support,Community Support,ANDRIN HOUSE NURSING AND RESIDENTIAL HOME,1484484,04/05/2021,3675998,"11,165.60",0.00,N/A,N/A
People Services - Adults and Health,Physical Support,Community Support,ANDRIN HOUSE NURSING AND RESIDENTIAL HOME,1484484,04/05/2021,3675887,"1,084.66",0.00,N/A,N/A
People Services - Adults and Health,Physical Support,Community Support,ANDRIN HOUSE NURSING AND RESIDENTIAL HOME,1484484,04/05/2021,3675889,"2,169.32",0.00,N/A,N/A
People Services - Adults and Health,Support with Memory and Cognition,Community Support,ANDRIN HOUSE NURSING AND RESIDENTIAL HOME,1484484,04/05/2021,3675942,"2,169.32",0.00,N/A,N/A
People Services - Adults and Health,Support with Memory and Cognition,Community Support,ANDRIN HOUSE NURSING AND RESIDENTIAL HOME,1484484,04/05/2021,3675997,"2,227.64",0.00,N/A,N/A
People Services - Adults and Health,Physical Support,Community Support,ANDRIN HOUSE NURSING AND RESIDENTIAL HOME,1484484,04/05/2021,3676251,529.62,0.00,N/A,N/A
People Services - Adults and Health,Physical Support,Community Support,ANDRIN HOUSE NURSING AND RESIDENTIAL HOME,1484484,04/05/2021,3676131,"2,600.00",0.00,N/A,N/A
People Services - Adults and Health,Physical Support,Community Support,ANDRIN HOUSE NURSING AND RESIDENTIAL HOME,1484484,04/05/2021,3676053,"3,900.00",0.00,N/A,N/A
People Services - Adults and Health,Physical Support,Community Support,ANDRIN HOUSE NURSING AND RESIDENTIAL HOME,1484484,04/05/2021,3676197,"4,368.00",0.00,N/A,N/A
People Services - Adults and Health,Physical Support,Community Support,ANDRIN HOUSE NURSING AND RESIDENTIAL HOME,1484484,04/05/2021,3675832,"2,321.43",0.00,N/A,N/A
People Services - Adults and Health,Physical Support,Community Support,ANDRIN HOUSE NURSING AND RESIDENTIAL HOME,1484484,04/05/2021,3675890,"2,169.32",0.00,N/A,N/A
People Services - Adults and Health,Physical Support,Community Support,ANDRIN HOUSE NURSING AND RESIDENTIAL HOME,1484484,04/05/2021,3676054,"2,169.32",0.00,N/A,N/A
People Services - Adults and Health,Mental Health Support,Mental Health,ANDRIN HOUSE NURSING AND RESIDENTIAL HOME,1484484,04/05/2021,3676198,"2,169.32",0.00,N/A,N/A
People Services - Adults and Health,Learning Disability Support,Community Support,ANDRIN HOUSE NURSING AND RESIDENTIAL HOME,1484484,04/05/2021,3675834,"2,169.32",0.00,N/A,N/A
People Services - Adults and Health,Mental Health Support,Community Support,ANDRIN HOUSE NURSING AND RESIDENTIAL HOME,1484484,04/05/2021,3675835,"2,227.64",0.00,N/A,N/A
People Services - Adults and Health,Physical Support,Community Support,ANDRIN HOUSE NURSING AND RESIDENTIAL HOME,1484484,04/05/2021,3675943,"2,227.64",0.00,N/A,N/A
People Services - Adults and Health,Physical Support,Community Support,ANDRIN HOUSE NURSING AND RESIDENTIAL HOME,1484484,04/05/2021,3676195,"2,227.64",0.00,N/A,N/A
People Services - Adults and Health,Learning Disability Support,Community Support,ANDRIN HOUSE NURSING AND RESIDENTIAL HOME,1484484,04/05/2021,3676132,"2,169.32",0.00,N/A,N/A
People Services - Children & Young People,Early Help & Children’s Safeguarding,Non-Schools,ANEW YOUNG PEOPLE SERVICES LTD,125264,04/05/2021,3672503,"10,955.25",0.00,Housing Placements for Young People,Organizations and Clubs-Clubs
People Services - Children & Young People,Early Help & Children’s Safeguarding,Non-Schools,ANEW YOUNG PEOPLE SERVICES LTD,125264,04/05/2021,3672502,"14,459.10",0.00,Housing Placements for Young People,Organizations and Clubs-Clubs
People Services - Adults and Health,Mental Health Support,Mental Health,ANNEFIELD HOUSE LTD,153553,04/05/2021,3677067,960.00,0.00,N/A,N/A
People Services - Adults and Health,Mental Health Support,Mental Health,ANNEFIELD HOUSE LTD,153553,04/05/2021,3677124,"1,160.00",0.00,N/A,N/A
People Services - Adults and Health,Mental Health Support,Mental Health,ANNEFIELD HOUSE LTD,153553,04/05/2021,3677135,880.00,0.00,N/A,N/A
People Services - Adults and Health,Mental Health Support,Mental Health,ANNEFIELD HOUSE LTD,153553,04/05/2021,3677081,"1,380.00",0.00,N/A,N/A
People Services - Adults and Health,Mental Health Support,Mental Health,ANNEFIELD HOUSE LTD,153553,04/05/2021,3677027,"1,300.00",0.00,N/A,N/A
People Services - Adults and Health,Learning Disability Support,Transitions and Ordinary Lives,ANNEFIELD HOUSE LTD,153553,04/05/2021,3677028,"1,060.48",0.00,N/A,N/A
People Services - Adults and Health,Learning Disability Support,Transitions and Ordinary Lives,ANNEFIELD HOUSE LTD,153553,04/05/2021,3677125,"2,121.00",0.00,N/A,N/A
People Services - Adults and Health,Learning Disability Support,Transitions and Ordinary Lives,ANNEFIELD HOUSE LTD,153553,04/05/2021,3677048,"1,920.00",0.00,N/A,N/A
People Services - Adults and Health,Learning Disability Support,Transitions and Ordinary Lives,ANNEFIELD HOUSE LTD,153553,04/05/2021,3677082,"1,550.96",0.00,N/A,N/A
People Services - Adults and Health,Emergency Planning,Commissioning,ANNEFIELD HOUSE LTD,1333470,04/05/2021,3673042,"6,847.68",0.00,N/A,N/A
People Services - Children & Young People,Integrated Services,Non-Schools,ARNFIELD CARE LTD,1349512,04/05/2021,3675231,"11,584.98",0.00,N/A,N/A
People Services - Children & Young People,Integrated Services,Non-Schools,ARNFIELD CARE LTD,1349512,04/05/2021,3675231,"6,436.10",0.00,N/A,N/A
Communities & Place,"Highways, Gounds Maintenance and Flood Defence",Public Protection and Streetride,ARRIVING LTD,217400,04/05/2021,3672528,"6,450.00",0.00,Highways Maintenance Reactionary Works,Commercial and Military and Private Vehi
Communities & Place,"Highways, Gounds Maintenance and Flood Defence",Public Protection and Streetride,ARRIVING LTD,217400,04/05/2021,3672438,"2,920.00",0.00,Highways Maintenance Reactionary Works,Commercial and Military and Private Vehi
Corporate Resources,"Legal, Procurement and Democratic Services","Legal, Procurement and Democratic Services",ARTHUR J GALLAGHER INSURANCE BROKERS LTD,1034486,04/05/2021,3671979,"8,412.63",0.00,Insurance Premium Account,Management and Business Professionals an
Corporate Resources,"Legal, Procurement and Democratic Services","Legal, Procurement and Democratic Services",ARTHUR J GALLAGHER INSURANCE BROKERS LTD,1034486,04/05/2021,3671979,"70,105.28",0.00,Insurance Premium Account,Management and Business Professionals an
Corporate Resources,"Legal, Procurement and Democratic Services","Legal, Procurement and Democratic Services",ARTHUR J GALLAGHER INSURANCE BROKERS LTD,1034486,04/05/2021,3671979,"70,105.28",0.00,Insurance Premium Account,Management and Business Professionals an
Corporate Resources,"Legal, Procurement and Democratic Services","Legal, Procurement and Democratic Services",ARTHUR J GALLAGHER INSURANCE BROKERS LTD,1034486,04/05/2021,3671978,560.00,0.00,Insurance Premium Account,Management and Business Professionals an
People Services - Adults and Health,Learning Disability Support,Transitions and Ordinary Lives,ASH VILLA CARE HOME,15780,04/05/2021,3676924,"5,566.16",0.00,N/A,N/A
People Services - Adults and Health,Learning Disability Support,Transitions and Ordinary Lives,ASH VILLA CARE HOME,15780,04/05/2021,3676763,"5,320.00",0.00,N/A,N/A
People Services - Adults and Health,Learning Disability Support,Transitions and Ordinary Lives,ASH VILLA CARE HOME,15780,04/05/2021,3676715,"1,221.84",0.00,N/A,N/A
People Services - Adults and Health,Mental Health Support,Mental Health,ASHE FIELDS,51494,04/05/2021,3676716,"2,152.36",0.00,N/A,N/A
Communities & Place,"Trading Standards, Food and Safety, Bereavement Services and Building Consultanc",Public Protection and Streetride,ASHES INTO GLASS,470633,04/05/2021,3672524,571.89,0.00,Crematorium,Timepieces and Jewelry and Gemstone Prod
People Services - Adults and Health,Learning Disability Support,Transitions and Ordinary Lives,ASHFIELD COURT,10494,04/05/2021,3676850,"2,513.59",0.00,N/A,N/A
People Services - Adults and Health,Learning Disability Support,Transitions and Ordinary Lives,ASHFIELD COURT,10494,04/05/2021,3676971,"6,910.12",0.00,N/A,N/A
People Services - Adults and Health,Learning Disability Support,Transitions and Ordinary Lives,ASHFIELD COURT,10494,04/05/2021,3676812,"8,047.24",0.00,N/A,N/A
People Services - Adults and Health,Learning Disability Support,Transitions and Ordinary Lives,ASHFIELD COURT,10494,04/05/2021,3676775,"6,398.24",0.00,N/A,N/A
People Services - Adults and Health,Learning Disability Support,Transitions and Ordinary Lives,ASHFIELD COURT,10494,04/05/2021,3676938,"2,778.47",0.00,N/A,N/A
People Services - Adults and Health,Learning Disability Support,Transitions and Ordinary Lives,ASHFIELD COURT,10494,04/05/2021,3676727,"3,161.41",0.00,N/A,N/A
People Services - Adults and Health,Learning Disability Support,Transitions and Ordinary Lives,ASHFIELD COURT,10494,04/05/2021,3676937,"2,741.69",0.00,N/A,N/A
People Services - Adults and Health,Learning Disability Support,Transitions and Ordinary Lives,ASHFIELD COURT,10494,04/05/2021,3676900,"7,072.48",0.00,N/A,N/A
People Services - Adults and Health,Mental Health Support,Community Support,ASHFIELD SPECIALIST CARE LIMITED,1110470,04/05/2021,3676740,"2,800.00",0.00,N/A,N/A
People Services - Adults and Health,Sensory Support,Community Support,ASHFIELD SPECIALIST CARE LIMITED,1110470,04/05/2021,3676739,"4,800.00",0.00,N/A,N/A
People Services - Adults and Health,Mental Health Support,Mental Health,ASHFIELDS,1171468,04/05/2021,3676843,"1,626.36",0.00,N/A,N/A
People Services - Adults and Health,Mental Health Support,Mental Health,ASHFIELDS,1171468,04/05/2021,3676884,"2,435.44",0.00,N/A,N/A
People Services - Adults and Health,Physical Support,Community Support,ASPEN HOUSE LTD,10497,04/05/2021,3676675,"2,270.16",0.00,N/A,N/A
People Services - Adults and Health,Mental Health Support,Mental Health,ASPEN HOUSE LTD,10497,04/05/2021,3676657,"1,091.04",0.00,N/A,N/A
People Services - Adults and Health,Mental Health Support,Mental Health,ASPEN HOUSE LTD,10497,04/05/2021,3676605,"1,400.00",0.00,N/A,N/A
People Services - Adults and Health,Mental Health Support,Mental Health,ASPEN HOUSE LTD,10497,04/05/2021,3676606,"1,575.24",0.00,N/A,N/A
People Services - Adults and Health,Learning Disability Support,Community Support,ASPEN HOUSE LTD,10497,04/05/2021,3676619,"3,317.88",0.00,N/A,N/A
People Services - Adults and Health,Learning Disability Support,Transitions and Ordinary Lives,ASPEN HOUSE LTD,10497,04/05/2021,3676631,"2,169.32",0.00,N/A,N/A
People Services - Adults and Health,Learning Disability Support,Transitions and Ordinary Lives,ASPEN HOUSE LTD,10497,04/05/2021,3676658,"1,124.96",0.00,N/A,N/A
People Services - Adults and Health,Learning Disability Support,Transitions and Ordinary Lives,ASPEN HOUSE LTD,10497,04/05/2021,3676709,"2,169.32",0.00,N/A,N/A
People Services - Adults and Health,Learning Disability Support,Transitions and Ordinary Lives,ASPEN HOUSE LTD,10497,04/05/2021,3676607,"2,169.32",0.00,N/A,N/A
People Services - Adults and Health,Learning Disability Support,Transitions and Ordinary Lives,ASPEN HOUSE LTD,10497,04/05/2021,3676659,"2,169.32",0.00,N/A,N/A
People Services - Adults and Health,Learning Disability Support,Transitions and Ordinary Lives,ASPEN HOUSE LTD,10497,04/05/2021,3676630,"2,169.32",0.00,N/A,N/A
People Services - Adults and Health,Mental Health Support,Mental Health,ASPEN HOUSE LTD,10497,04/05/2021,3676642,562.48,0.00,N/A,N/A
People Services - Adults and Health,Mental Health Support,Mental Health,ASPEN HOUSE LTD,10497,04/05/2021,3676676,"2,178.48",0.00,N/A,N/A
People Services - Adults and Health,Emergency Planning,Commissioning,ASPEN HOUSE LTD,608,04/05/2021,3673043,"8,861.71",0.00,N/A,N/A
People Services - Adults and Health,Mental Health Support,Mental Health,ASPIRE HEALTH AND CARE,1132468,04/05/2021,3677114,"21,383.78",0.00,N/A,N/A
People Services - Adults and Health,Mental Health Support,Mental Health,ASPIRE HEALTH AND CARE,1132468,04/05/2021,3677054,"1,400.00",0.00,N/A,N/A
People Services - Adults and Health,Mental Health Support,Mental Health,ASPIRE HEALTH AND CARE,1132468,04/05/2021,3677037,"1,050.00",0.00,N/A,N/A
People Services - Adults and Health,Mental Health Support,Mental Health,ASPIRE HEALTH AND CARE,1132468,04/05/2021,3677113,"2,160.00",0.00,N/A,N/A
Communities & Place,Leisure,"Leisure, Culture and Tourism",ASTRA CARPETS EAST MIDLANDS LTD,1235474,04/05/2021,3672584,"1,600.00",0.00,Derby Multi Use Sports Arena,Furniture and Furnishings
People Services - Adults and Health,Mental Health Support,Mental Health,AUTONOMY HEALTHCARE LTD,469426,04/05/2021,3677109,"2,720.00",0.00,N/A,N/A
People Services - Adults and Health,Learning Disability Support,Transitions and Ordinary Lives,AUTONOMY HEALTHCARE LTD,469426,04/05/2021,3677086,"8,679.64",0.00,N/A,N/A
People Services - Adults and Health,Physical Support,Community Support,AVERY HOMES DERBY LTD,474000,04/05/2021,3676175,"2,101.24",0.00,N/A,N/A
People Services - Adults and Health,Physical Support,Community Support,AVERY HOMES DERBY LTD,474000,04/05/2021,3676096,"2,169.32",0.00,N/A,N/A
People Services - Adults and Health,Learning Disability Support,Transitions and Ordinary Lives,BANK HOUSE CARE HOMES LTD,417411,04/05/2021,3676974,"1,900.00",0.00,N/A,N/A
People Services - Adults and Health,Mental Health Support,Community Support,BANKWOOD NURSING HOME,10499,04/05/2021,3676760,"2,082.92",0.00,N/A,N/A
People Services - Children & Young People,Integrated Services,Non-Schools,BANYA FAMILY PLACEMENT AGENCY LTD,1109488,04/05/2021,3675360,"2,520.00",0.00,N/A,N/A
People Services - Children & Young People,Integrated Services,Non-Schools,BANYA FAMILY PLACEMENT AGENCY LTD,1109488,04/05/2021,3675360,"2,372.37",0.00,N/A,N/A
People Services - Children & Young People,Integrated Services,Non-Schools,BANYA FAMILY PLACEMENT AGENCY LTD,1109488,04/05/2021,3675360,"1,400.00",0.00,N/A,N/A
People Services - Children & Young People,Integrated Services,Non-Schools,BANYA FAMILY PLACEMENT AGENCY LTD,1109488,04/05/2021,3675360,"1,317.99",0.00,N/A,N/A
People Services - Children & Young People,Integrated Services,Non-Schools,BARNARDOS,1122469,04/05/2021,3675328,"1,872.00",0.00,N/A,N/A
People Services - Children & Young People,Integrated Services,Non-Schools,BARNARDOS,1122469,04/05/2021,3675328,"1,872.00",0.00,N/A,N/A
People Services - Children & Young People,Integrated Services,Non-Schools,BARNARDOS,1122469,04/05/2021,3675328,"1,598.57",0.00,N/A,N/A
People Services - Children & Young People,Integrated Services,Non-Schools,BARNARDOS,1122469,04/05/2021,3675328,"1,178.57",0.00,N/A,N/A
People Services - Children & Young People,Integrated Services,Non-Schools,BARNARDOS,1122469,04/05/2021,3675328,"1,178.57",0.00,N/A,N/A
People Services - Children & Young People,Integrated Services,Non-Schools,BARNARDOS,1122469,04/05/2021,3675328,"1,178.57",0.00,N/A,N/A
People Services - Children & Young People,Integrated Services,Non-Schools,BARNARDOS,1122469,04/05/2021,3675328,"1,178.57",0.00,N/A,N/A
People Services - Children & Young People,Integrated Services,Non-Schools,BARNARDOS,1122469,04/05/2021,3675328,"1,142.86",0.00,N/A,N/A
People Services - Children & Young People,Integrated Services,Non-Schools,BARNARDOS,1122469,04/05/2021,3675328,"1,040.00",0.00,N/A,N/A
People Services - Children & Young People,Integrated Services,Non-Schools,BARNARDOS,1122469,04/05/2021,3675328,"1,040.00",0.00,N/A,N/A
People Services - Children & Young People,Integrated Services,Non-Schools,BARNARDOS,1122469,04/05/2021,3675328,"2,877.43",0.00,N/A,N/A
People Services - Children & Young People,Integrated Services,Non-Schools,BARNARDOS,1122469,04/05/2021,3675328,"2,121.43",0.00,N/A,N/A
People Services - Children & Young People,Integrated Services,Non-Schools,BARNARDOS,1122469,04/05/2021,3675328,"2,121.43",0.00,N/A,N/A
People Services - Children & Young People,Integrated Services,Non-Schools,BARNARDOS,1122469,04/05/2021,3675328,"2,121.43",0.00,N/A,N/A
People Services - Children & Young People,Integrated Services,Non-Schools,BARNARDOS,1122469,04/05/2021,3675328,"2,121.43",0.00,N/A,N/A
People Services - Children & Young People,Integrated Services,Non-Schools,BARNARDOS,1122469,04/05/2021,3675328,"2,071.54",0.00,N/A,N/A
People Services - Adults and Health,Physical Support,Community Support,BEARWARDCOTE HALL,10500,04/05/2021,3676798,"1,872.36",0.00,N/A,N/A
People Services - Adults and Health,Mental Health Support,Community Support,BEARWARDCOTE HALL,10500,04/05/2021,3676799,631.48,0.00,N/A,N/A
People Services - Adults and Health,Mental Health Support,Community Support,BEARWARDCOTE HALL,10500,04/05/2021,3676759,"1,983.60",0.00,N/A,N/A
Communities & Place,Economic Development,City Development & Growth,BEAUT OLOGY,1559495,04/05/2021,3672648,"1,200.00",0.00,N/A,N/A
Communities & Place,Leisure,"Leisure, Culture and Tourism",BEBIDA BEVERAGE SOLUTIONS LTD,186412,04/05/2021,3672553,831.31,0.00,Derby Live Catering - Markeaton Park,Service Industry Machinery and Equipment
Communities & Place,Leisure,"Leisure, Culture and Tourism",BEBIDA BEVERAGE SOLUTIONS LTD,186412,04/05/2021,3672553,804.93,0.00,Derby Live Catering - Markeaton Park,Service Industry Machinery and Equipment
Communities & Place,Leisure,"Leisure, Culture and Tourism",BEBIDA BEVERAGE SOLUTIONS LTD,186412,04/05/2021,3672895,759.69,0.00,Derby Live Catering - Alvaston Park,Service Industry Machinery and Equipment
People Services - Adults and Health,Support with Memory and Cognition,Community Support,BELPER VIEWS RESIDENTIAL HOME,10531,04/05/2021,3676925,"2,144.80",0.00,N/A,N/A
Corporate Resources,Digital Services & Customer Management,Digital Services & Customer Management,BENTLEY SYSTEMS UK LTD,163348,04/05/2021,3672910,"1,058.00",0.00,Information Systems,Management and Business Professionals an
Corporate Resources,Communication and Consultation,Coroprate Core,BINARYFOLD4 LTD,1042473,04/05/2021,3672967,"3,172.80",0.00,Corporate Communications,Engineering and Research and Technology
People Services - Children & Young People,Non Delegated Schools Budget,Schools Block,BLACKPOOL AND FYLDE ALTERNATIVE SCHOOL LIMITED,1556481,04/05/2021,3672483,"4,092.31",0.00,N/A,N/A
People Services - Children & Young People,Integrated Services,Non-Schools,BLUE MOUNTAIN HOMES LTD,1349514,04/05/2021,3675177,"10,191.91",0.00,N/A,N/A
People Services - Children & Young People,Integrated Services,Non-Schools,BLUE MOUNTAIN HOMES LTD,1349514,04/05/2021,3675177,"5,662.17",0.00,N/A,N/A
People Services - Children & Young People,Integrated Services,Non-Schools,BLUE MOUNTAIN HOMES LTD,1349514,04/05/2021,3675177,"15,854.08",0.00,N/A,N/A
People Services - Children & Young People,Integrated Services,Non-Schools,BLUE MOUNTAIN HOMES LTD,1349514,04/05/2021,3675177,"15,854.08",0.00,N/A,N/A
People Services - Children & Young People,Integrated Services,Non-Schools,BLUE MOUNTAIN HOMES LTD,1349514,04/05/2021,3675177,"15,854.08",0.00,N/A,N/A
People Services - Children & Young People,Integrated Services,Non-Schools,BLUE MOUNTAIN HOMES LTD,1349514,04/05/2021,3675177,"15,854.08",0.00,N/A,N/A
People Services - Children & Young People,Integrated Services,Non-Schools,BLUE MOUNTAIN HOMES LTD,1349514,04/05/2021,3675177,"15,854.08",0.00,N/A,N/A
People Services - Children & Young People,Integrated Services,Non-Schools,BLUE MOUNTAIN HOMES LTD,1349514,04/05/2021,3675177,"15,854.08",0.00,N/A,N/A
People Services - Children & Young People,Integrated Services,Non-Schools,BLUE MOUNTAIN HOMES LTD,1349514,04/05/2021,3675177,"15,854.08",0.00,N/A,N/A
People Services - Children & Young People,Integrated Services,Non-Schools,BLUE MOUNTAIN HOMES LTD,1349514,04/05/2021,3675177,"15,854.08",0.00,N/A,N/A
People Services - Children & Young People,Integrated Services,Non-Schools,BLUE MOUNTAIN HOMES LTD,1349514,04/05/2021,3675177,"15,854.08",0.00,N/A,N/A
People Services - Children & Young People,Integrated Services,Non-Schools,BLUE MOUNTAIN HOMES LTD,1349514,04/05/2021,3675177,"15,854.08",0.00,N/A,N/A
People Services - Adults and Health,Support with Memory and Cognition,Community Support,BLUEBELL PARK CARE HOME,105060,04/05/2021,3676410,"2,227.64",0.00,N/A,N/A
People Services - Adults and Health,Support with Memory and Cognition,Community Support,BLUEBELL PARK CARE HOME,105060,04/05/2021,3676342,"2,284.16",0.00,N/A,N/A
People Services - Adults and Health,Physical Support,Community Support,BLUEBELL PARK CARE HOME,105060,04/05/2021,3676343,"3,739.40",0.00,N/A,N/A
People Services - Adults and Health,Physical Support,Community Support,BLUEBELL PARK CARE HOME,105060,04/05/2021,3676270,"2,227.64",0.00,N/A,N/A
People Services - Adults and Health,Mental Health Support,Mental Health,BLUEBELL PARK CARE HOME,105060,04/05/2021,3676271,"2,093.60",0.00,N/A,N/A
People Services - Adults and Health,Mental Health Support,Mental Health,BLUEBELL PARK CARE HOME,105060,04/05/2021,3676299,"2,284.16",0.00,N/A,N/A
People Services - Adults and Health,Physical Support,Community Support,BLUEBELL PARK CARE HOME,105060,04/05/2021,3676269,"2,389.92",0.00,N/A,N/A
People Services - Adults and Health,Mental Health Support,Community Support,BLUEBELL PARK CARE HOME,105060,04/05/2021,3676344,"2,169.32",0.00,N/A,N/A
Communities & Place,"Culture, Business Development & Tourism","Leisure, Culture and Tourism",BOB ON ARTS,1245478,04/05/2021,3672437,900.00,0.00,Derby Market Place,Travel and Food and Lodging and Entertai
People Services - Adults and Health,Mental Health Support,Mental Health,BRAMBLE LODGE,107083,04/05/2021,3676809,"2,228.68",0.00,N/A,N/A
People Services - Children & Young People,Integrated Services,Non-Schools,BRIDGING GAPS FOSTERING AGENCY,1498487,04/05/2021,3675293,"4,800.00",0.00,N/A,N/A
People Services - Adults and Health,Emergency Planning,Commissioning,BRILL ASSOCIATES CIC,1359479,04/05/2021,3669741,"1,300.86",0.00,N/A,N/A
People Services - Adults and Health,Physical Support,Community Support,BROOKFIELDS PNH LTD,10536,04/05/2021,3676678,"2,227.64",0.00,N/A,N/A
People Services - Adults and Health,Physical Support,Community Support,BROOKFIELDS PNH LTD,10536,04/05/2021,3676698,552.16,0.00,N/A,N/A
People Services - Adults and Health,Physical Support,Community Support,BROOKFIELDS PNH LTD,10536,04/05/2021,3676699,"2,227.64",0.00,N/A,N/A
People Services - Adults and Health,Emergency Planning,Commissioning,BROOKFIELDS PNH LTD,405,04/05/2021,3673047,"14,500.97",0.00,N/A,N/A
People Services - Adults and Health,Learning Disability Support,Transitions and Ordinary Lives,BROOMHOUSE,10538,04/05/2021,3676797,"2,697.72",0.00,N/A,N/A
People Services - Adults and Health,Learning Disability Support,Transitions and Ordinary Lives,BROOMHOUSE,10538,04/05/2021,3676922,"3,548.00",0.00,N/A,N/A
People Services - Adults and Health,Learning Disability Support,Transitions and Ordinary Lives,BROOMHOUSE,10538,04/05/2021,3676882,"2,400.00",0.00,N/A,N/A
Communities & Place,Economic Development,City Development & Growth,BROWNE JACOBSON LLP,143376,04/05/2021,3666130,"1,770.00",0.00,Derby Enterprise Growth Fund Recycled Grants,Management and Business Professionals an
People Services - Adults and Health,Physical Support,Community Support,BWA HEALTH AND CARE SERVICE LTD,1089474,04/05/2021,3673464,"2,242.10",0.00,N/A,N/A
People Services - Adults and Health,Physical Support,Community Support,BWA HEALTH AND CARE SERVICE LTD,1089474,04/05/2021,3673465,"2,546.10",0.00,N/A,N/A
People Services - Adults and Health,Physical Support,Community Support,BWA HEALTH AND CARE SERVICE LTD,1089474,04/05/2021,3673186,747.91,0.00,N/A,N/A
People Services - Adults and Health,Physical Support,Community Support,BWA HEALTH AND CARE SERVICE LTD,1089474,04/05/2021,3673187,"2,637.30",0.00,N/A,N/A
People Services - Adults and Health,Physical Support,Community Support,BWA HEALTH AND CARE SERVICE LTD,1089474,04/05/2021,3673706,"2,242.10",0.00,N/A,N/A
People Services - Adults and Health,Physical Support,Community Support,BWA HEALTH AND CARE SERVICE LTD,1089474,04/05/2021,3673434,763.90,0.00,N/A,N/A
People Services - Adults and Health,Physical Support,Community Support,BWA HEALTH AND CARE SERVICE LTD,1089474,04/05/2021,3673463,735.16,0.00,N/A,N/A
People Services - Adults and Health,Physical Support,Community Support,BWA HEALTH AND CARE SERVICE LTD,1089474,04/05/2021,3673886,725.40,0.00,N/A,N/A
People Services - Adults and Health,Physical Support,Community Support,BWA HEALTH AND CARE SERVICE LTD,1089474,04/05/2021,3674082,"1,034.44",0.00,N/A,N/A
People Services - Adults and Health,Physical Support,Community Support,BWA HEALTH AND CARE SERVICE LTD,1089474,04/05/2021,3673188,"1,042.04",0.00,N/A,N/A
People Services - Adults and Health,Physical Support,Community Support,BWA HEALTH AND CARE SERVICE LTD,1089474,04/05/2021,3673353,873.51,0.00,N/A,N/A
People Services - Adults and Health,Physical Support,Community Support,BWA HEALTH AND CARE SERVICE LTD,1089474,04/05/2021,3673911,557.72,0.00,N/A,N/A
People Services - Adults and Health,Physical Support,Community Support,BWA HEALTH AND CARE SERVICE LTD,1089474,04/05/2021,3673167,581.76,0.00,N/A,N/A
People Services - Adults and Health,Physical Support,Community Support,BWA HEALTH AND CARE SERVICE LTD,1089474,04/05/2021,3673832,"1,238.52",0.00,N/A,N/A
People Services - Adults and Health,Physical Support,Community Support,BWA HEALTH AND CARE SERVICE LTD,1089474,04/05/2021,3673912,844.72,0.00,N/A,N/A
People Services - Adults and Health,Physical Support,Community Support,BWA HEALTH AND CARE SERVICE LTD,1089474,04/05/2021,3673459,665.26,0.00,N/A,N/A
People Services - Adults and Health,Physical Support,Community Support,BWA HEALTH AND CARE SERVICE LTD,1089474,04/05/2021,3673460,665.26,0.00,N/A,N/A
People Services - Adults and Health,Physical Support,Community Support,BWA HEALTH AND CARE SERVICE LTD,1089474,04/05/2021,3673707,844.72,0.00,N/A,N/A
People Services - Children & Young People,Integrated Services,Non-Schools,BY THE BRIDGE LTD,1109490,04/05/2021,3675255,"1,355.14",0.00,N/A,N/A
People Services - Children & Young People,Integrated Services,Non-Schools,BY THE BRIDGE LTD,1109490,04/05/2021,3675255,"1,355.14",0.00,N/A,N/A
People Services - Children & Young People,Integrated Services,Non-Schools,BY THE BRIDGE LTD,1109490,04/05/2021,3675255,"1,355.14",0.00,N/A,N/A
People Services - Children & Young People,Integrated Services,Non-Schools,BY THE BRIDGE LTD,1109490,04/05/2021,3675255,"1,342.86",0.00,N/A,N/A
People Services - Children & Young People,Integrated Services,Non-Schools,BY THE BRIDGE LTD,1109490,04/05/2021,3675255,"1,057.10",0.00,N/A,N/A
People Services - Children & Young People,Integrated Services,Non-Schools,BY THE BRIDGE LTD,1109490,04/05/2021,3675255,999.10,0.00,N/A,N/A
People Services - Children & Young People,Integrated Services,Non-Schools,BY THE BRIDGE LTD,1109490,04/05/2021,3675255,"5,004.00",0.00,N/A,N/A
People Services - Children & Young People,Integrated Services,Non-Schools,BY THE BRIDGE LTD,1109490,04/05/2021,3675255,"5,004.00",0.00,N/A,N/A
People Services - Children & Young People,Integrated Services,Non-Schools,BY THE BRIDGE LTD,1109490,04/05/2021,3675255,"5,004.00",0.00,N/A,N/A
People Services - Children & Young People,Integrated Services,Non-Schools,BY THE BRIDGE LTD,1109490,04/05/2021,3675255,"5,004.00",0.00,N/A,N/A
People Services - Children & Young People,Integrated Services,Non-Schools,BY THE BRIDGE LTD,1109490,04/05/2021,3675255,"2,323.29",0.00,N/A,N/A
People Services - Children & Young People,Integrated Services,Non-Schools,BY THE BRIDGE LTD,1109490,04/05/2021,3675255,"2,323.29",0.00,N/A,N/A
People Services - Children & Young People,Integrated Services,Non-Schools,BY THE BRIDGE LTD,1109490,04/05/2021,3675255,"3,922.71",0.00,N/A,N/A
People Services - Children & Young People,Integrated Services,Non-Schools,BY THE BRIDGE LTD,1109490,04/05/2021,3675255,"3,587.14",0.00,N/A,N/A
People Services - Children & Young People,Integrated Services,Non-Schools,BY THE BRIDGE LTD,1109490,04/05/2021,3675255,"3,239.38",0.00,N/A,N/A
People Services - Children & Young People,Integrated Services,Non-Schools,BY THE BRIDGE LTD,1109490,04/05/2021,3675255,"3,239.38",0.00,N/A,N/A
People Services - Children & Young People,Integrated Services,Non-Schools,BY THE BRIDGE LTD,1109490,04/05/2021,3675255,"2,729.26",0.00,N/A,N/A
People Services - Children & Young People,Integrated Services,Non-Schools,BY THE BRIDGE LTD,1109490,04/05/2021,3675255,"2,729.26",0.00,N/A,N/A
People Services - Children & Young People,Integrated Services,Non-Schools,BY THE BRIDGE LTD,1109490,04/05/2021,3675255,"2,729.26",0.00,N/A,N/A
People Services - Children & Young People,Integrated Services,Non-Schools,BY THE BRIDGE LTD,1109490,04/05/2021,3675255,"2,439.26",0.00,N/A,N/A
People Services - Children & Young People,Integrated Services,Non-Schools,BY THE BRIDGE LTD,1109490,04/05/2021,3675255,"2,417.14",0.00,N/A,N/A
People Services - Children & Young People,Integrated Services,Non-Schools,BY THE BRIDGE LTD,1109490,04/05/2021,3675255,"2,179.29",0.00,N/A,N/A
People Services - Children & Young People,Integrated Services,Non-Schools,BY THE BRIDGE LTD,1109490,04/05/2021,3675255,"1,992.86",0.00,N/A,N/A
People Services - Children & Young People,Integrated Services,Non-Schools,BY THE BRIDGE LTD,1109490,04/05/2021,3675255,"1,902.78",0.00,N/A,N/A
People Services - Children & Young People,Integrated Services,Non-Schools,BY THE BRIDGE LTD,1109490,04/05/2021,3675255,"1,787.14",0.00,N/A,N/A
People Services - Children & Young People,Integrated Services,Non-Schools,BY THE BRIDGE LTD,1109490,04/05/2021,3675255,"1,787.14",0.00,N/A,N/A
People Services - Children & Young People,Integrated Services,Non-Schools,BY THE BRIDGE LTD,1109490,04/05/2021,3675255,"1,570.01",0.00,N/A,N/A
People Services - Children & Young People,Integrated Services,Non-Schools,BY THE BRIDGE LTD,1109490,04/05/2021,3675255,"2,997.30",0.00,N/A,N/A
People Services - Children & Young People,Integrated Services,Non-Schools,BY THE BRIDGE LTD,1109490,04/05/2021,3675255,"2,569.11",0.00,N/A,N/A
People Services - Children & Young People,Integrated Services,Non-Schools,BY THE BRIDGE LTD,1109490,04/05/2021,3675255,"2,569.11",0.00,N/A,N/A
People Services - Children & Young People,Integrated Services,Non-Schools,BY THE BRIDGE LTD,1109490,04/05/2021,3675255,"2,569.11",0.00,N/A,N/A
People Services - Children & Young People,Integrated Services,Non-Schools,BY THE BRIDGE LTD,1109490,04/05/2021,3675255,"2,439.26",0.00,N/A,N/A
People Services - Children & Young People,Integrated Services,Non-Schools,BY THE BRIDGE LTD,1109490,04/05/2021,3675255,"2,729.26",0.00,N/A,N/A
People Services - Children & Young People,Integrated Services,Non-Schools,BY THE BRIDGE LTD,1109490,04/05/2021,3675255,"2,592.03",0.00,N/A,N/A
People Services - Children & Young People,Integrated Services,Non-Schools,BY THE BRIDGE LTD,1109490,04/05/2021,3675255,"2,439.26",0.00,N/A,N/A
People Services - Children & Young People,Integrated Services,Non-Schools,BY THE BRIDGE LTD,1109490,04/05/2021,3675255,"1,505.71",0.00,N/A,N/A
People Services - Children & Young People,Integrated Services,Non-Schools,BY THE BRIDGE LTD,1109490,04/05/2021,3675255,"1,505.71",0.00,N/A,N/A
People Services - Children & Young People,Integrated Services,Non-Schools,BY THE BRIDGE LTD,1109490,04/05/2021,3675255,"1,505.71",0.00,N/A,N/A
People Services - Children & Young People,Integrated Services,Non-Schools,BY THE BRIDGE LTD,1109490,04/05/2021,3675255,"1,505.71",0.00,N/A,N/A
People Services - Children & Young People,Integrated Services,Non-Schools,BY THE BRIDGE LTD,1109490,04/05/2021,3675255,"1,430.00",0.00,N/A,N/A
People Services - Children & Young People,Integrated Services,Non-Schools,BY THE BRIDGE LTD,1109490,04/05/2021,3675255,"1,427.29",0.00,N/A,N/A
People Services - Children & Young People,Integrated Services,Non-Schools,BY THE BRIDGE LTD,1109490,04/05/2021,3675255,"1,427.29",0.00,N/A,N/A
People Services - Children & Young People,Integrated Services,Non-Schools,BY THE BRIDGE LTD,1109490,04/05/2021,3675255,"1,427.29",0.00,N/A,N/A
People Services - Children & Young People,Integrated Services,Non-Schools,BY THE BRIDGE LTD,1109490,04/05/2021,3675255,"1,427.29",0.00,N/A,N/A
People Services - Children & Young People,Integrated Services,Non-Schools,BY THE BRIDGE LTD,1109490,04/05/2021,3675255,"5,004.00",0.00,N/A,N/A
People Services - Children & Young People,Integrated Services,Non-Schools,BY THE BRIDGE LTD,1109490,04/05/2021,3675255,"5,004.00",0.00,N/A,N/A
People Services - Adults and Health,Mental Health Support,Mental Health,CADOGAN CARE LTD,946475,04/05/2021,3676943,"3,400.00",0.00,N/A,N/A
People Services - Children & Young People,Integrated Services,Non-Schools,CAMBIAN CHILDCARE LTD,1349516,04/05/2021,3675187,"18,514.29",0.00,N/A,N/A
People Services - Children & Young People,Integrated Services,Non-Schools,CAMBIAN CHILDCARE LTD,1349516,04/05/2021,3675187,"11,957.14",0.00,N/A,N/A
People Services - Children & Young People,Integrated Services,Non-Schools,CAMBIAN CHILDCARE LTD,1349516,04/05/2021,3675187,"10,285.71",0.00,N/A,N/A
People Services - Children & Young People,Integrated Services,Non-Schools,CAMBIAN CHILDCARE LTD,1349516,04/05/2021,3675187,"6,642.86",0.00,N/A,N/A
People Services - Children & Young People,Integrated Services,Non-Schools,CAPSTONE FOSTER CARE,1109499,04/05/2021,3675299,"1,105.97",0.00,N/A,N/A
People Services - Children & Young People,Integrated Services,Non-Schools,CAPSTONE FOSTER CARE,1109499,04/05/2021,3675299,"1,062.26",0.00,N/A,N/A
People Services - Children & Young People,Integrated Services,Non-Schools,CAPSTONE FOSTER CARE,1109499,04/05/2021,3675299,"1,062.26",0.00,N/A,N/A
People Services - Children & Young People,Integrated Services,Non-Schools,CAPSTONE FOSTER CARE,1109499,04/05/2021,3675299,"2,137.68",0.00,N/A,N/A
People Services - Children & Young People,Integrated Services,Non-Schools,CAPSTONE FOSTER CARE,1109499,04/05/2021,3675299,"2,058.84",0.00,N/A,N/A
People Services - Children & Young People,Integrated Services,Non-Schools,CAPSTONE FOSTER CARE,1109499,04/05/2021,3675299,"1,990.75",0.00,N/A,N/A
People Services - Children & Young People,Integrated Services,Non-Schools,CAPSTONE FOSTER CARE,1109499,04/05/2021,3675299,"1,912.06",0.00,N/A,N/A
People Services - Children & Young People,Integrated Services,Non-Schools,CAPSTONE FOSTER CARE,1109499,04/05/2021,3675299,"1,912.06",0.00,N/A,N/A
People Services - Children & Young People,Integrated Services,Non-Schools,CAPSTONE FOSTER CARE,1109499,04/05/2021,3675299,"1,187.60",0.00,N/A,N/A
People Services - Children & Young People,Integrated Services,Non-Schools,CAPSTONE FOSTER CARE,1109499,04/05/2021,3675299,"1,143.80",0.00,N/A,N/A
People Services - Children & Young People,Integrated Services,Non-Schools,CARE 4 CHILDREN RESIDENTIAL SERVICES LIMITED,1349518,04/05/2021,3675233,"14,142.86",0.00,N/A,N/A
People Services - Children & Young People,Integrated Services,Non-Schools,CARE 4 CHILDREN RESIDENTIAL SERVICES LIMITED,1349518,04/05/2021,3675233,"8,974.29",0.00,N/A,N/A
People Services - Children & Young People,Integrated Services,Non-Schools,CARE 4 CHILDREN RESIDENTIAL SERVICES LIMITED,1349518,04/05/2021,3675233,"7,857.14",0.00,N/A,N/A
People Services - Children & Young People,Integrated Services,Non-Schools,CARE 4 CHILDREN RESIDENTIAL SERVICES LIMITED,1349518,04/05/2021,3675233,"4,985.71",0.00,N/A,N/A
People Services - Children & Young People,Integrated Services,Non-Schools,CARE 4 CHILDREN RESIDENTIAL SERVICES LIMITED,1349518,04/05/2021,3675233,"1,542.86",0.00,N/A,N/A
People Services - Children & Young People,Integrated Services,Non-Schools,CARE 4 CHILDREN RESIDENTIAL SERVICES LIMITED,1349518,04/05/2021,3675233,"1,028.57",0.00,N/A,N/A
People Services - Children & Young People,Integrated Services,Non-Schools,CARE 4 CHILDREN RESIDENTIAL SERVICES LIMITED,1349518,04/05/2021,3675233,857.14,0.00,N/A,N/A
People Services - Children & Young People,Integrated Services,Non-Schools,CARE 4 CHILDREN RESIDENTIAL SERVICES LIMITED,1349518,04/05/2021,3675233,571.43,0.00,N/A,N/A
People Services - Children & Young People,Integrated Services,Non-Schools,CARE TODAY,1408486,04/05/2021,3675216,"12,882.42",0.00,N/A,N/A
People Services - Children & Young People,Integrated Services,Non-Schools,CARE TODAY,1408486,04/05/2021,3675216,"7,107.14",0.00,N/A,N/A
Communities & Place,Economic Development,City Development & Growth,CASA DAVORIO,1533516,04/05/2021,3672655,"1,200.00",0.00,N/A,N/A
People Services - Adults and Health,Mental Health Support,Mental Health,CASTLE DONINGTON NH,10468,04/05/2021,3676999,"1,500.00",0.00,N/A,N/A
People Services - Adults and Health,Support with Memory and Cognition,Community Support,CASTLE PARK NURSING HOME,10542,04/05/2021,3676608,"2,227.64",0.00,N/A,N/A
People Services - Adults and Health,Support with Memory and Cognition,Community Support,CASTLE PARK NURSING HOME,10542,04/05/2021,3676679,"2,227.64",0.00,N/A,N/A
People Services - Adults and Health,Support with Memory and Cognition,Community Support,CASTLE PARK NURSING HOME,10542,04/05/2021,3676680,"2,169.32",0.00,N/A,N/A
People Services - Adults and Health,Support with Memory and Cognition,Community Support,CASTLE PARK NURSING HOME,10542,04/05/2021,3676620,"1,084.66",0.00,N/A,N/A
People Services - Adults and Health,Physical Support,Community Support,CASTLE PARK NURSING HOME,10542,04/05/2021,3676681,"2,227.64",0.00,N/A,N/A
People Services - Adults and Health,Physical Support,Community Support,CASTLE PARK NURSING HOME,10542,04/05/2021,3676711,"2,227.64",0.00,N/A,N/A
People Services - Adults and Health,Physical Support,Community Support,CASTLE PARK NURSING HOME,10542,04/05/2021,3676712,"2,227.64",0.00,N/A,N/A
People Services - Adults and Health,Physical Support,Community Support,CASTLE PARK NURSING HOME,10542,04/05/2021,3676609,"2,169.32",0.00,N/A,N/A
People Services - Adults and Health,Physical Support,Community Support,CASTLE PARK NURSING HOME,10542,04/05/2021,3676682,"2,227.64",0.00,N/A,N/A
People Services - Adults and Health,Physical Support,Community Support,CASTLE PARK NURSING HOME,10542,04/05/2021,3676632,854.64,0.00,N/A,N/A
People Services - Adults and Health,Physical Support,Community Support,CASTLE PARK NURSING HOME,10542,04/05/2021,3676621,"2,227.64",0.00,N/A,N/A
People Services - Adults and Health,Support with Memory and Cognition,Community Support,CAVISTA LTD,1265480,04/05/2021,3675878,"2,169.32",0.00,N/A,N/A
People Services - Adults and Health,Support with Memory and Cognition,Community Support,CAVISTA LTD,1265480,04/05/2021,3676043,"2,169.32",0.00,N/A,N/A
People Services - Adults and Health,Support with Memory and Cognition,Community Support,CAVISTA LTD,1265480,04/05/2021,3675876,"1,382.80",0.00,N/A,N/A
People Services - Adults and Health,Support with Memory and Cognition,Community Support,CAVISTA LTD,1265480,04/05/2021,3675877,"2,169.32",0.00,N/A,N/A
People Services - Adults and Health,Support with Memory and Cognition,Community Support,CAVISTA LTD,1265480,04/05/2021,3676116,"2,169.32",0.00,N/A,N/A
People Services - Adults and Health,Physical Support,Community Support,CAVISTA LTD,1265480,04/05/2021,3676185,"2,169.32",0.00,N/A,N/A
People Services - Adults and Health,Physical Support,Community Support,CAVISTA LTD,1265480,04/05/2021,3676117,"2,169.32",0.00,N/A,N/A
People Services - Adults and Health,Physical Support,Community Support,CAVISTA LTD,1265480,04/05/2021,3676118,"2,169.32",0.00,N/A,N/A
People Services - Adults and Health,Physical Support,Community Support,CAVISTA LTD,1265480,04/05/2021,3676044,"2,169.32",0.00,N/A,N/A
People Services - Adults and Health,Physical Support,Community Support,CAVISTA LTD,1265480,04/05/2021,3675933,"2,169.32",0.00,N/A,N/A
People Services - Adults and Health,Learning Disability Support,Community Support,CAVISTA LTD,1265480,04/05/2021,3675823,"1,382.80",0.00,N/A,N/A
People Services - Adults and Health,Mental Health Support,Community Support,CAVISTA LTD,1265480,04/05/2021,3675935,"2,169.32",0.00,N/A,N/A
People Services - Adults and Health,Mental Health Support,Community Support,CAVISTA LTD,1265480,04/05/2021,3675934,"2,169.32",0.00,N/A,N/A
People Services - Adults and Health,Emergency Planning,Commissioning,CAVISTA LTD,1265479,04/05/2021,3673048,"8,056.10",0.00,Emergency Planning,Travel and Food and Lodging and Entertai
People Services - Adults and Health,Learning Disability Support,Transitions and Ordinary Lives,CAXTON LODGE,18515,04/05/2021,3676764,"4,846.56",0.00,N/A,N/A
Corporate Resources,Digital Services & Customer Management,Digital Services & Customer Management,CDW LTD,1377474,04/05/2021,3672885,"2,000.00",0.00,N/A,N/A
Corporate Resources,Digital Services & Customer Management,Digital Services & Customer Management,CDW LTD,1377474,04/05/2021,3672471,620.22,0.00,N/A,N/A
People Services - Adults and Health,Learning Disability Support,Transitions and Ordinary Lives,CEDAR COURT NURSING HOME,10543,04/05/2021,3676856,"1,890.84",0.00,N/A,N/A
People Services - Adults and Health,Physical Support,Community Support,CEDAR TREE CARE HOME,94367,04/05/2021,3676506,769.52,0.00,N/A,N/A
People Services - Adults and Health,Physical Support,Community Support,CEDAR TREE CARE HOME,94367,04/05/2021,3676398,"2,227.64",0.00,N/A,N/A
People Services - Adults and Health,Physical Support,Community Support,CEDAR TREE CARE HOME,94367,04/05/2021,3676399,"2,600.00",0.00,N/A,N/A
People Services - Adults and Health,Physical Support,Community Support,CEDAR TREE CARE HOME,94367,04/05/2021,3676292,853.52,0.00,N/A,N/A
People Services - Adults and Health,Physical Support,Community Support,CEDAR TREE CARE HOME,94367,04/05/2021,3676293,"2,227.64",0.00,N/A,N/A
People Services - Adults and Health,Mental Health Support,Community Support,CEDAR TREE CARE HOME,94367,04/05/2021,3676444,"3,000.00",0.00,N/A,N/A
People Services - Adults and Health,Sensory Support,Community Support,CEDAR TREE CARE HOME,94367,04/05/2021,3676443,763.84,0.00,N/A,N/A
People Services - Adults and Health,Sensory Support,Community Support,CEDAR TREE CARE HOME,94367,04/05/2021,3676408,"2,227.64",0.00,N/A,N/A
People Services - Adults and Health,Mental Health Support,Community Support,CEDAR TREE CARE HOME,94367,04/05/2021,3676268,"2,227.64",0.00,N/A,N/A
People Services - Adults and Health,Mental Health Support,Community Support,CEDAR TREE CARE HOME,94367,04/05/2021,3676409,652.56,0.00,N/A,N/A
People Services - Adults and Health,Emergency Planning,Commissioning,CEDAR TREE CARE HOME,1333472,04/05/2021,3673049,"16,112.19",0.00,N/A,N/A
People Services - Children & Young People,Non Delegated Schools Budget,Schools Block,CER,1397477,04/05/2021,3672981,600.00,0.00,N/A,N/A
People Services - Adults and Health,Learning Disability Support,Transitions and Ordinary Lives,CHANGING LIVES UK QUALITY CARE LTD,1042485,04/05/2021,3677057,"3,180.00",0.00,N/A,N/A
People Services - Adults and Health,Emergency Planning,Commissioning,CHANGING LIVES UK QUALITY CARE LTD,1335468,04/05/2021,3673046,805.61,0.00,N/A,N/A
Communities & Place,Economic Development,City Development & Growth,CHELLASTON CHIROPRACTIC AND HEALTH LTD,1559497,04/05/2021,3672653,"4,000.00",0.00,N/A,N/A
People Services - Adults and Health,Learning Disability Support,Transitions and Ordinary Lives,CHESAPEAKE HOUSE,10547,04/05/2021,3677061,"2,132.40",0.00,N/A,N/A
People Services - Adults and Health,Learning Disability Support,Transitions and Ordinary Lives,CHESAPEAKE HOUSE,10547,04/05/2021,3677062,"2,132.40",0.00,N/A,N/A
People Services - Adults and Health,Learning Disability Support,Transitions and Ordinary Lives,CHESAPEAKE HOUSE,10547,04/05/2021,3677040,"2,132.40",0.00,N/A,N/A
People Services - Adults and Health,Learning Disability Support,Transitions and Ordinary Lives,CHESAPEAKE HOUSE,10547,04/05/2021,3677041,"2,132.40",0.00,N/A,N/A
People Services - Adults and Health,Learning Disability Support,Transitions and Ordinary Lives,CHESAPEAKE HOUSE,10547,04/05/2021,3677131,"2,132.40",0.00,N/A,N/A
People Services - Adults and Health,Learning Disability Support,Transitions and Ordinary Lives,CHESAPEAKE HOUSE,10547,04/05/2021,3677042,"2,132.40",0.00,N/A,N/A
People Services - Adults and Health,Learning Disability Support,Transitions and Ordinary Lives,CHESAPEAKE HOUSE,10547,04/05/2021,3677043,"2,559.24",0.00,N/A,N/A
People Services - Adults and Health,Learning Disability Support,Transitions and Ordinary Lives,CHESAPEAKE HOUSE,10547,04/05/2021,3677103,"2,132.40",0.00,N/A,N/A
People Services - Adults and Health,Learning Disability Support,Community Support,CHESAPEAKE HOUSE,10547,04/05/2021,3677102,"2,132.40",0.00,N/A,N/A
People Services - Adults and Health,Learning Disability Support,Transitions and Ordinary Lives,CHESAPEAKE HOUSE,10547,04/05/2021,3677122,"2,132.40",0.00,N/A,N/A
People Services - Adults and Health,Emergency Planning,Commissioning,CHESAPEAKE HOUSE,1207470,04/05/2021,3673044,"4,430.85",0.00,N/A,N/A
People Services - Adults and Health,Support with Memory and Cognition,Community Support,CHESTNUT VIEW,10548,04/05/2021,3676414,"2,169.32",0.00,N/A,N/A
People Services - Adults and Health,Support with Memory and Cognition,Community Support,CHESTNUT VIEW,10548,04/05/2021,3676415,"2,169.32",0.00,N/A,N/A
People Services - Adults and Health,Support with Memory and Cognition,Community Support,CHESTNUT VIEW,10548,04/05/2021,3676274,"2,169.32",0.00,N/A,N/A
People Services - Adults and Health,Physical Support,Community Support,CHESTNUT VIEW,10548,04/05/2021,3676348,"2,169.32",0.00,N/A,N/A
People Services - Children & Young People,Integrated Services,Non-Schools,CHILDCARE BUREAU LTD,1109500,04/05/2021,3675288,"2,121.43",0.00,N/A,N/A
People Services - Children & Young People,Integrated Services,Non-Schools,CHILDCARE BUREAU LTD,1109500,04/05/2021,3675288,"2,121.43",0.00,N/A,N/A
People Services - Children & Young People,Integrated Services,Non-Schools,CHILDCARE BUREAU LTD,1109500,04/05/2021,3675288,"2,121.43",0.00,N/A,N/A
People Services - Children & Young People,Integrated Services,Non-Schools,CHILDCARE BUREAU LTD,1109500,04/05/2021,3675288,"1,178.57",0.00,N/A,N/A
People Services - Children & Young People,Integrated Services,Non-Schools,CHILDCARE BUREAU LTD,1109500,04/05/2021,3675288,"1,178.57",0.00,N/A,N/A
People Services - Children & Young People,Integrated Services,Non-Schools,CHILDCARE BUREAU LTD,1109500,04/05/2021,3675288,"1,178.57",0.00,N/A,N/A
People Services - Children & Young People,Integrated Services,Non-Schools,CHRYSALIS CONSORTIUM,1109501,04/05/2021,3675411,"3,085.71",0.00,N/A,N/A
People Services - Children & Young People,Integrated Services,Non-Schools,CHRYSALIS CONSORTIUM,1109501,04/05/2021,3675411,"3,085.71",0.00,N/A,N/A
People Services - Children & Young People,Integrated Services,Non-Schools,CHRYSALIS CONSORTIUM,1109501,04/05/2021,3675411,"3,085.71",0.00,N/A,N/A
People Services - Children & Young People,Integrated Services,Non-Schools,CHRYSALIS CONSORTIUM,1109501,04/05/2021,3675411,"1,714.29",0.00,N/A,N/A
People Services - Children & Young People,Integrated Services,Non-Schools,CHRYSALIS CONSORTIUM,1109501,04/05/2021,3675411,"1,714.29",0.00,N/A,N/A
People Services - Children & Young People,Integrated Services,Non-Schools,CHRYSALIS CONSORTIUM,1109501,04/05/2021,3675411,"1,714.29",0.00,N/A,N/A
Communities & Place,Economic Development,City Development & Growth,CHUCKLES PLAYGROUP,806,04/05/2021,3672714,"2,800.00",0.00,N/A,N/A
Communities & Place,Economic Development,City Development & Growth,CLARE AT CUCO,1559499,04/05/2021,3672656,"4,000.00",0.00,N/A,N/A
People Services - Adults and Health,Physical Support,Community Support,CLOVA HOUSE,10572,04/05/2021,3676555,"2,169.32",0.00,N/A,N/A
People Services - Adults and Health,Physical Support,Community Support,CLOVA HOUSE,10572,04/05/2021,3676589,"2,169.32",0.00,N/A,N/A
People Services - Adults and Health,Physical Support,Community Support,CLOVA HOUSE,10572,04/05/2021,3676518,"2,169.32",0.00,N/A,N/A
People Services - Adults and Health,Physical Support,Community Support,CLOVA HOUSE,10572,04/05/2021,3676526,"2,169.32",0.00,N/A,N/A
People Services - Adults and Health,Physical Support,Community Support,CLOVA HOUSE,10572,04/05/2021,3676556,"2,169.32",0.00,N/A,N/A
People Services - Adults and Health,Physical Support,Community Support,CLOVA HOUSE,10572,04/05/2021,3676536,"2,169.32",0.00,N/A,N/A
People Services - Adults and Health,Physical Support,Community Support,CLOVA HOUSE,10572,04/05/2021,3676566,"2,169.32",0.00,N/A,N/A
People Services - Adults and Health,Physical Support,Community Support,CLOVA HOUSE,10572,04/05/2021,3675095,832.26,0.00,N/A,N/A
People Services - Adults and Health,Physical Support,Community Support,CLOVA HOUSE,10572,04/05/2021,3675091,"1,084.66",0.00,N/A,N/A
People Services - Adults and Health,Mental Health Support,Mental Health,CLOVA HOUSE,10572,04/05/2021,3676527,"2,169.32",0.00,N/A,N/A
People Services - Adults and Health,Learning Disability Support,Transitions and Ordinary Lives,CLOVA HOUSE,10572,04/05/2021,3676528,"2,169.32",0.00,N/A,N/A
People Services - Adults and Health,Mental Health Support,Mental Health,CLOVA HOUSE,10572,04/05/2021,3676557,"2,169.32",0.00,N/A,N/A
People Services - Adults and Health,Emergency Planning,Commissioning,CLOVA HOUSE,1467471,04/05/2021,3673045,"8,056.10",0.00,N/A,N/A
Communities & Place,"Highways, Gounds Maintenance and Flood Defence",Public Protection and Streetride,COLAS LTD,11227,04/05/2021,3655245,"1,870.00",0.00,N/A,N/A
People Services - Adults and Health,Learning Disability Support,Community Support,COMMUNITY LINKS DERBY CIC,868453,04/05/2021,3673388,"2,223.75",0.00,N/A,N/A
People Services - Adults and Health,Learning Disability Support,Community Support,COMMUNITY LINKS DERBY CIC,868453,04/05/2021,3673514,"1,495.18",0.00,N/A,N/A
People Services - Adults and Health,Learning Disability Support,Community Support,COMMUNITY LINKS DERBY CIC,868453,04/05/2021,3673749,"2,223.75",0.00,N/A,N/A
People Services - Adults and Health,Learning Disability Support,Community Support,COMMUNITY LINKS DERBY CIC,868453,04/05/2021,3673882,"2,223.75",0.00,N/A,N/A
People Services - Adults and Health,Learning Disability Support,Community Support,COMMUNITY LINKS DERBY CIC,868453,04/05/2021,3673957,607.14,0.00,N/A,N/A
People Services - Adults and Health,Learning Disability Support,Community Support,COMMUNITY LINKS DERBY CIC,868453,04/05/2021,3673517,"2,223.75",0.00,N/A,N/A
People Services - Adults and Health,Learning Disability Support,Community Support,COMMUNITY LINKS DERBY CIC,868453,04/05/2021,3673243,"2,223.75",0.00,N/A,N/A
People Services - Adults and Health,Learning Disability Support,Community Support,COMMUNITY LINKS DERBY CIC,868453,04/05/2021,3673389,"2,223.75",0.00,N/A,N/A
People Services - Adults and Health,Learning Disability Support,Community Support,COMMUNITY LINKS DERBY CIC,868453,04/05/2021,3673750,607.14,0.00,N/A,N/A
People Services - Adults and Health,Learning Disability Support,Community Support,COMMUNITY LINKS DERBY CIC,868453,04/05/2021,3673656,622.65,0.00,N/A,N/A
People Services - Adults and Health,Learning Disability Support,Community Support,COMMUNITY LINKS DERBY CIC,868453,04/05/2021,3674132,"2,490.60",0.00,N/A,N/A
People Services - Adults and Health,Learning Disability Support,Community Support,COMMUNITY LINKS DERBY CIC,868453,04/05/2021,3673245,"1,495.18",0.00,N/A,N/A
People Services - Adults and Health,Learning Disability Support,Community Support,COMMUNITY LINKS DERBY CIC,868453,04/05/2021,3673404,"2,223.75",0.00,N/A,N/A
People Services - Adults and Health,Learning Disability Support,Transitions and Ordinary Lives,COMMUNITY LINKS DERBY CIC,868453,04/05/2021,3673969,"1,233.54",0.00,N/A,N/A
People Services - Adults and Health,Physical Support,Community Support,COMMUNITY LINKS DERBY CIC,868453,04/05/2021,3673657,"1,779.00",0.00,N/A,N/A
People Services - Adults and Health,Learning Disability Support,Transitions and Ordinary Lives,COMMUNITY LINKS DERBY CIC,868453,04/05/2021,3673526,"2,055.89",0.00,N/A,N/A
People Services - Children & Young People,Integrated Services,Non-Schools,COMPASS CHILDRENS HOMES LTD,1476518,04/05/2021,3675174,"14,000.00",0.00,N/A,N/A
People Services - Children & Young People,Integrated Services,Non-Schools,COMPASS CHILDRENS HOMES LTD,1476518,04/05/2021,3675174,"3,200.00",0.00,N/A,N/A
People Services - Children & Young People,Integrated Services,Non-Schools,COMPASS CHILDRENS HOMES LTD,1476518,04/05/2021,3675174,"14,000.00",0.00,N/A,N/A
People Services - Children & Young People,Integrated Services,Non-Schools,COMPASS CHILDRENS HOMES LTD,1476518,04/05/2021,3675174,"3,200.00",0.00,N/A,N/A
People Services - Children & Young People,Integrated Services,Non-Schools,COMPASS CHILDRENS HOMES LTD,1476518,04/05/2021,3675174,"10,500.00",0.00,N/A,N/A
People Services - Children & Young People,Integrated Services,Non-Schools,COMPASS CHILDRENS HOMES LTD,1476518,04/05/2021,3675174,"3,500.00",0.00,N/A,N/A
People Services - Children & Young People,Integrated Services,Non-Schools,COMPASS CHILDRENS HOMES LTD,1476518,04/05/2021,3675174,"3,200.00",0.00,N/A,N/A
People Services - Children & Young People,Integrated Services,Non-Schools,COMPASS CHILDRENS HOMES LTD,1476518,04/05/2021,3675174,"1,550.00",0.00,N/A,N/A
People Services - Children & Young People,Integrated Services,Non-Schools,COMPASS CHILDRENS HOMES LTD,1476518,04/05/2021,3675174,"14,000.00",0.00,N/A,N/A
People Services - Children & Young People,Integrated Services,Non-Schools,COMPASS CHILDRENS HOMES LTD,1476518,04/05/2021,3675174,"3,200.00",0.00,N/A,N/A
People Services - Children & Young People,Integrated Services,Non-Schools,COMPASS CHILDRENS HOMES LTD,1476518,04/05/2021,3675174,"9,063.00",0.00,N/A,N/A
People Services - Children & Young People,Integrated Services,Non-Schools,COMPASS CHILDRENS HOMES LTD,1476518,04/05/2021,3675174,"5,000.00",0.00,N/A,N/A
People Services - Children & Young People,Integrated Services,Non-Schools,COMPASS CHILDRENS HOMES LTD,1476518,04/05/2021,3675174,"2,057.14",0.00,N/A,N/A
People Services - Children & Young People,Integrated Services,Non-Schools,COMPASS CHILDRENS HOMES LTD,1476518,04/05/2021,3675174,"1,142.86",0.00,N/A,N/A
People Services - Children & Young People,Integrated Services,Non-Schools,COMPASS FOSTERING CENTRAL LTD,1109502,04/05/2021,3675250,"1,836.00",0.00,N/A,N/A
People Services - Children & Young People,Integrated Services,Non-Schools,COMPASS FOSTERING CENTRAL LTD,1109502,04/05/2021,3675250,"1,785.71",0.00,N/A,N/A
People Services - Children & Young People,Integrated Services,Non-Schools,COMPASS FOSTERING CENTRAL LTD,1109502,04/05/2021,3675250,"1,282.26",0.00,N/A,N/A
People Services - Children & Young People,Integrated Services,Non-Schools,COMPASS FOSTERING CENTRAL LTD,1109502,04/05/2021,3675250,"1,214.29",0.00,N/A,N/A
People Services - Children & Young People,Integrated Services,Non-Schools,COMPASS FOSTERING CENTRAL LTD,1109502,04/05/2021,3675250,"1,056.41",0.00,N/A,N/A
People Services - Children & Young People,Integrated Services,Non-Schools,COMPASS FOSTERING CENTRAL LTD,1109502,04/05/2021,3675250,"1,020.00",0.00,N/A,N/A
People Services - Children & Young People,Integrated Services,Non-Schools,COMPASS FOSTERING CENTRAL LTD,1109502,04/05/2021,3675250,"1,020.00",0.00,N/A,N/A
People Services - Children & Young People,Integrated Services,Non-Schools,COMPASS FOSTERING CENTRAL LTD,1109502,04/05/2021,3675250,"1,020.00",0.00,N/A,N/A
People Services - Children & Young People,Integrated Services,Non-Schools,COMPASS FOSTERING CENTRAL LTD,1109502,04/05/2021,3675250,"1,020.00",0.00,N/A,N/A
People Services - Children & Young People,Integrated Services,Non-Schools,COMPASS FOSTERING CENTRAL LTD,1109502,04/05/2021,3675250,"1,020.00",0.00,N/A,N/A
People Services - Children & Young People,Integrated Services,Non-Schools,COMPASS FOSTERING CENTRAL LTD,1109502,04/05/2021,3675250,"3,236.79",0.00,N/A,N/A
People Services - Children & Young People,Integrated Services,Non-Schools,COMPASS FOSTERING CENTRAL LTD,1109502,04/05/2021,3675250,"2,201.01",0.00,N/A,N/A
People Services - Children & Young People,Integrated Services,Non-Schools,COMPASS FOSTERING CENTRAL LTD,1109502,04/05/2021,3675250,"2,201.01",0.00,N/A,N/A
People Services - Children & Young People,Integrated Services,Non-Schools,COMPASS FOSTERING CENTRAL LTD,1109502,04/05/2021,3675250,"2,142.00",0.00,N/A,N/A
People Services - Children & Young People,Integrated Services,Non-Schools,COMPASS FOSTERING CENTRAL LTD,1109502,04/05/2021,3675250,"2,123.33",0.00,N/A,N/A
People Services - Children & Young People,Integrated Services,Non-Schools,COMPASS FOSTERING CENTRAL LTD,1109502,04/05/2021,3675250,"2,123.33",0.00,N/A,N/A
People Services - Children & Young People,Integrated Services,Non-Schools,COMPASS FOSTERING CENTRAL LTD,1109502,04/05/2021,3675250,"1,190.00",0.00,N/A,N/A
People Services - Children & Young People,Integrated Services,Non-Schools,COMPASS FOSTERING CENTRAL LTD,1109502,04/05/2021,3675250,"1,171.43",0.00,N/A,N/A
People Services - Children & Young People,Integrated Services,Non-Schools,COMPASS FOSTERING CENTRAL LTD,1109502,04/05/2021,3675250,"1,171.43",0.00,N/A,N/A
People Services - Children & Young People,Integrated Services,Non-Schools,COMPASS FOSTERING CENTRAL LTD,1109502,04/05/2021,3675250,"1,171.43",0.00,N/A,N/A
People Services - Children & Young People,Integrated Services,Non-Schools,COMPASS FOSTERING CENTRAL LTD,1109502,04/05/2021,3675250,"1,092.86",0.00,N/A,N/A
People Services - Children & Young People,Integrated Services,Non-Schools,COMPASS FOSTERING CENTRAL LTD,1109502,04/05/2021,3675250,"1,092.83",0.00,N/A,N/A
People Services - Children & Young People,Integrated Services,Non-Schools,COMPASS FOSTERING CENTRAL LTD,1109502,04/05/2021,3675250,"1,092.83",0.00,N/A,N/A
People Services - Children & Young People,Integrated Services,Non-Schools,COMPASS FOSTERING CENTRAL LTD,1109502,04/05/2021,3675250,"1,092.83",0.00,N/A,N/A
People Services - Children & Young People,Integrated Services,Non-Schools,COMPASS FOSTERING CENTRAL LTD,1109502,04/05/2021,3675250,"1,071.43",0.00,N/A,N/A
People Services - Children & Young People,Integrated Services,Non-Schools,COMPASS FOSTERING CENTRAL LTD,1109502,04/05/2021,3675250,874.26,0.00,N/A,N/A
People Services - Children & Young People,Integrated Services,Non-Schools,COMPASS FOSTERING CENTRAL LTD,1109502,04/05/2021,3675250,728.57,0.00,N/A,N/A
People Services - Children & Young People,Integrated Services,Non-Schools,COMPASS FOSTERING CENTRAL LTD,1109502,04/05/2021,3675250,607.14,0.00,N/A,N/A
People Services - Children & Young People,Integrated Services,Non-Schools,COMPASS FOSTERING CENTRAL LTD,1109502,04/05/2021,3675250,"2,123.33",0.00,N/A,N/A
People Services - Children & Young People,Integrated Services,Non-Schools,COMPASS FOSTERING CENTRAL LTD,1109502,04/05/2021,3675250,"1,967.09",0.00,N/A,N/A
People Services - Children & Young People,Integrated Services,Non-Schools,COMPASS FOSTERING CENTRAL LTD,1109502,04/05/2021,3675250,"1,967.09",0.00,N/A,N/A
People Services - Children & Young People,Integrated Services,Non-Schools,COMPASS FOSTERING CENTRAL LTD,1109502,04/05/2021,3675250,"1,967.09",0.00,N/A,N/A
People Services - Children & Young People,Integrated Services,Non-Schools,COMPASS FOSTERING CENTRAL LTD,1109502,04/05/2021,3675250,"1,967.09",0.00,N/A,N/A
People Services - Children & Young People,Integrated Services,Non-Schools,COMPASS FOSTERING CENTRAL LTD,1109502,04/05/2021,3675250,"1,942.07",0.00,N/A,N/A
People Services - Children & Young People,Integrated Services,Non-Schools,COMPASS FOSTERING CENTRAL LTD,1109502,04/05/2021,3675250,"1,901.55",0.00,N/A,N/A
People Services - Children & Young People,Integrated Services,Non-Schools,COMPASS FOSTERING CENTRAL LTD,1109502,04/05/2021,3675250,"1,901.55",0.00,N/A,N/A
People Services - Children & Young People,Integrated Services,Non-Schools,COMPASS FOSTERING CENTRAL LTD,1109502,04/05/2021,3675250,"1,901.55",0.00,N/A,N/A
People Services - Children & Young People,Integrated Services,Non-Schools,COMPASS FOSTERING CENTRAL LTD,1109502,04/05/2021,3675250,"1,901.55",0.00,N/A,N/A
People Services - Children & Young People,Integrated Services,Non-Schools,COMPASS FOSTERING CENTRAL LTD,1109502,04/05/2021,3675250,"1,056.41",0.00,N/A,N/A
People Services - Children & Young People,Integrated Services,Non-Schools,COMPASS FOSTERING CENTRAL LTD,1109502,04/05/2021,3675250,"1,056.41",0.00,N/A,N/A
People Services - Children & Young People,Integrated Services,Non-Schools,COMPASS FOSTERING CENTRAL LTD,1109502,04/05/2021,3675250,"1,056.41",0.00,N/A,N/A
People Services - Children & Young People,Integrated Services,Non-Schools,COMPASS FOSTERING CENTRAL LTD,1109502,04/05/2021,3675250,"1,056.41",0.00,N/A,N/A
People Services - Children & Young People,Integrated Services,Non-Schools,COMPASS FOSTERING CENTRAL LTD,1109502,04/05/2021,3675250,"1,901.55",0.00,N/A,N/A
People Services - Children & Young People,Integrated Services,Non-Schools,COMPASS FOSTERING CENTRAL LTD,1109502,04/05/2021,3675250,"1,901.55",0.00,N/A,N/A
People Services - Children & Young People,Integrated Services,Non-Schools,COMPASS FOSTERING CENTRAL LTD,1109502,04/05/2021,3675250,"1,901.55",0.00,N/A,N/A
People Services - Children & Young People,Integrated Services,Non-Schools,COMPASS FOSTERING CENTRAL LTD,1109502,04/05/2021,3675250,"1,901.55",0.00,N/A,N/A
People Services - Children & Young People,Integrated Services,Non-Schools,COMPASS FOSTERING CENTRAL LTD,1109502,04/05/2021,3675250,"1,901.55",0.00,N/A,N/A
People Services - Children & Young People,Integrated Services,Non-Schools,COMPASS FOSTERING CENTRAL LTD,1109502,04/05/2021,3675250,"1,901.55",0.00,N/A,N/A
People Services - Children & Young People,Integrated Services,Non-Schools,COMPASS FOSTERING CENTRAL LTD,1109502,04/05/2021,3675250,"1,901.55",0.00,N/A,N/A
People Services - Children & Young People,Integrated Services,Non-Schools,COMPASS FOSTERING CENTRAL LTD,1109502,04/05/2021,3675250,"1,056.41",0.00,N/A,N/A
People Services - Children & Young People,Integrated Services,Non-Schools,COMPASS FOSTERING CENTRAL LTD,1109502,04/05/2021,3675250,"1,056.41",0.00,N/A,N/A
People Services - Children & Young People,Integrated Services,Non-Schools,COMPASS FOSTERING CENTRAL LTD,1109502,04/05/2021,3675250,"1,056.41",0.00,N/A,N/A
People Services - Children & Young People,Integrated Services,Non-Schools,COMPASS FOSTERING CENTRAL LTD,1109502,04/05/2021,3675250,"1,056.41",0.00,N/A,N/A
People Services - Children & Young People,Integrated Services,Non-Schools,COMPASS FOSTERING CENTRAL LTD,1109502,04/05/2021,3675250,"1,836.00",0.00,N/A,N/A
People Services - Children & Young People,Integrated Services,Non-Schools,COMPASS FOSTERING CENTRAL LTD,1109502,04/05/2021,3675250,"1,901.55",0.00,N/A,N/A
People Services - Children & Young People,Integrated Services,Non-Schools,COMPASS FOSTERING CENTRAL LTD,1109502,04/05/2021,3675250,"1,836.00",0.00,N/A,N/A
People Services - Children & Young People,Integrated Services,Non-Schools,COMPASS FOSTERING CENTRAL LTD,1109502,04/05/2021,3675250,"1,901.55",0.00,N/A,N/A
People Services - Children & Young People,Integrated Services,Non-Schools,COMPASS FOSTERING CENTRAL LTD,1109502,04/05/2021,3675250,"1,901.55",0.00,N/A,N/A
People Services - Children & Young People,Integrated Services,Non-Schools,COMPASS FOSTERING CENTRAL LTD,1109502,04/05/2021,3675250,"1,836.00",0.00,N/A,N/A
People Services - Children & Young People,Integrated Services,Non-Schools,COMPASS FOSTERING CENTRAL LTD,1109502,04/05/2021,3675250,"1,836.00",0.00,N/A,N/A
People Services - Children & Young People,Integrated Services,Non-Schools,COMPASS FOSTERING CENTRAL LTD,1109502,04/05/2021,3675250,"1,056.41",0.00,N/A,N/A
People Services - Children & Young People,Integrated Services,Non-Schools,COMPASS FOSTERING CENTRAL LTD,1109502,04/05/2021,3675250,"1,056.41",0.00,N/A,N/A
People Services - Children & Young People,Integrated Services,Non-Schools,COMPASS FOSTERING CENTRAL LTD,1109502,04/05/2021,3675250,"1,056.41",0.00,N/A,N/A
People Services - Children & Young People,Integrated Services,Non-Schools,COMPASS FOSTERING CENTRAL LTD,1109502,04/05/2021,3675250,"1,056.41",0.00,N/A,N/A
People Services - Children & Young People,Integrated Services,Non-Schools,COMPASS FOSTERING CENTRAL LTD,1109502,04/05/2021,3675250,"1,056.41",0.00,N/A,N/A
People Services - Adults and Health,Learning Disability Support,Transitions and Ordinary Lives,CRAEGMOOR HEALTHCARE,10478,04/05/2021,3676821,"1,604.60",0.00,N/A,N/A
People Services - Adults and Health,Emergency Planning,Commissioning,CRAEGMOOR OAKLANDS DERBY PRIORY,119837,04/05/2021,3673067,"3,222.44",0.00,N/A,N/A
People Services - Adults and Health,Learning Disability Support,Transitions and Ordinary Lives,CRAEGMOOR WIGGINTON COTTAGE,896468,04/05/2021,3677055,"9,969.68",0.00,N/A,N/A
People Services - Adults and Health,Physical Support,Community Support,CREATIVE SUPPORT LTD,1026475,04/05/2021,3673338,640.68,0.00,N/A,N/A
People Services - Adults and Health,Physical Support,Community Support,CREATIVE SUPPORT LTD,1026475,04/05/2021,3673692,630.29,0.00,N/A,N/A
People Services - Adults and Health,Learning Disability Support,Community Support,CREATIVE SUPPORT LTD,1026475,04/05/2021,3673472,"1,793.45",0.00,N/A,N/A
People Services - Adults and Health,Learning Disability Support,Community Support,CREATIVE SUPPORT LTD,1026475,04/05/2021,3674071,"1,091.04",0.00,N/A,N/A
People Services - Adults and Health,Learning Disability Support,Community Support,CREATIVE SUPPORT LTD,1026475,04/05/2021,3673693,"1,160.47",0.00,N/A,N/A
People Services - Adults and Health,Learning Disability Support,Community Support,CREATIVE SUPPORT LTD,1026475,04/05/2021,3674089,"1,181.09",0.00,N/A,N/A
People Services - Adults and Health,Learning Disability Support,Community Support,CREATIVE SUPPORT LTD,1026475,04/05/2021,3673604,764.23,0.00,N/A,N/A
People Services - Adults and Health,Learning Disability Support,Community Support,CREATIVE SUPPORT LTD,1026475,04/05/2021,3673174,705.96,0.00,N/A,N/A
People Services - Adults and Health,Learning Disability Support,Transitions and Ordinary Lives,CREATIVE SUPPORT LTD,1026475,04/05/2021,3673357,"2,575.63",0.00,N/A,N/A
People Services - Adults and Health,Learning Disability Support,Transitions and Ordinary Lives,CREATIVE SUPPORT LTD,1026475,04/05/2021,3673473,"2,126.54",0.00,N/A,N/A
People Services - Adults and Health,Learning Disability Support,Transitions and Ordinary Lives,CREATIVE SUPPORT LTD,1026475,04/05/2021,3673474,"2,721.29",0.00,N/A,N/A
People Services - Adults and Health,Learning Disability Support,Transitions and Ordinary Lives,CREATIVE SUPPORT LTD,1026475,04/05/2021,3673915,"3,286.46",0.00,N/A,N/A
People Services - Adults and Health,Learning Disability Support,Transitions and Ordinary Lives,CREATIVE SUPPORT LTD,1026475,04/05/2021,3673837,879.56,0.00,N/A,N/A
People Services - Adults and Health,Learning Disability Support,Transitions and Ordinary Lives,CREATIVE SUPPORT LTD,1026475,04/05/2021,3673916,"4,205.63",0.00,N/A,N/A
People Services - Adults and Health,Learning Disability Support,Transitions and Ordinary Lives,CREATIVE SUPPORT LTD,1026475,04/05/2021,3674090,"2,126.54",0.00,N/A,N/A
People Services - Adults and Health,Learning Disability Support,Transitions and Ordinary Lives,CREATIVE SUPPORT LTD,1026475,04/05/2021,3674091,"2,721.29",0.00,N/A,N/A
People Services - Adults and Health,Learning Disability Support,Transitions and Ordinary Lives,CREATIVE SUPPORT LTD,1026475,04/05/2021,3673194,"1,359.32",0.00,N/A,N/A
People Services - Adults and Health,Learning Disability Support,Transitions and Ordinary Lives,CREATIVE SUPPORT LTD,1026475,04/05/2021,3673195,"3,257.29",0.00,N/A,N/A
People Services - Adults and Health,Learning Disability Support,Transitions and Ordinary Lives,CREATIVE SUPPORT LTD,1026475,04/05/2021,3673196,"3,286.46",0.00,N/A,N/A
People Services - Adults and Health,Learning Disability Support,Transitions and Ordinary Lives,CREATIVE SUPPORT LTD,1026475,04/05/2021,3673197,"4,205.63",0.00,N/A,N/A
People Services - Adults and Health,Learning Disability Support,Transitions and Ordinary Lives,CREATIVE SUPPORT LTD,1026475,04/05/2021,3673710,"2,103.73",0.00,N/A,N/A
People Services - Adults and Health,Learning Disability Support,Transitions and Ordinary Lives,CREATIVE SUPPORT LTD,1026475,04/05/2021,3673711,"3,251.23",0.00,N/A,N/A
People Services - Adults and Health,Learning Disability Support,Transitions and Ordinary Lives,CREATIVE SUPPORT LTD,1026475,04/05/2021,3673712,"3,980.53",0.00,N/A,N/A
People Services - Adults and Health,Learning Disability Support,Transitions and Ordinary Lives,CREATIVE SUPPORT LTD,1026475,04/05/2021,3673713,"5,033.99",0.00,N/A,N/A
People Services - Adults and Health,Learning Disability Support,Transitions and Ordinary Lives,CREATIVE SUPPORT LTD,1026475,04/05/2021,3673838,576.45,0.00,N/A,N/A
People Services - Adults and Health,Learning Disability Support,Transitions and Ordinary Lives,CREATIVE SUPPORT LTD,1026475,04/05/2021,3673714,"3,512.85",0.00,N/A,N/A
People Services - Adults and Health,Learning Disability Support,Transitions and Ordinary Lives,CREATIVE SUPPORT LTD,1026475,04/05/2021,3673358,"5,428.95",0.00,N/A,N/A
People Services - Adults and Health,Learning Disability Support,Transitions and Ordinary Lives,CREATIVE SUPPORT LTD,1026475,04/05/2021,3674092,712.11,0.00,N/A,N/A
People Services - Children & Young People,Integrated Services,Non-Schools,CREDO CARE LTD,1109505,04/05/2021,3675272,"4,073.17",0.00,N/A,N/A
People Services - Children & Young People,Integrated Services,Non-Schools,CREDO CARE LTD,1109505,04/05/2021,3675272,"2,247.14",0.00,N/A,N/A
People Services - Children & Young People,Integrated Services,Non-Schools,CREDO CARE LTD,1109505,04/05/2021,3675272,"2,247.14",0.00,N/A,N/A
People Services - Children & Young People,Integrated Services,Non-Schools,CREDO CARE LTD,1109505,04/05/2021,3675272,"4,073.17",0.00,N/A,N/A
People Services - Adults and Health,Learning Disability Support,Community Support,CYGNET LEARNING DISABILITIES MIDLANDS LIMITED,959473,04/05/2021,3677008,"6,552.00",0.00,N/A,N/A
People Services - Adults and Health,Learning Disability Support,Transitions and Ordinary Lives,CYGNET LEARNING DISABILITIES MIDLANDS LIMITED,959473,04/05/2021,3676979,"9,340.00",0.00,N/A,N/A
People Services - Adults and Health,Learning Disability Support,Transitions and Ordinary Lives,CYGNET LEARNING DISABILITIES MIDLANDS LIMITED,959473,04/05/2021,3676866,"9,705.20",0.00,N/A,N/A
People Services - Adults and Health,Physical Support,Community Support,CYGNET LEARNING DISABILITIES MIDLANDS LIMITED,959473,04/05/2021,3676944,"7,922.24",0.00,N/A,N/A
People Services - Adults and Health,Learning Disability Support,Transitions and Ordinary Lives,CYGNET LEARNING DISABILITIES MIDLANDS LIMITED,959473,04/05/2021,3677009,"5,016.68",0.00,N/A,N/A
People Services - Adults and Health,Learning Disability Support,Transitions and Ordinary Lives,CYGNET NW LTD,920472,04/05/2021,3677119,"8,295.84",0.00,N/A,N/A
People Services - Adults and Health,Learning Disability Support,Community Support,CYGNET NW LTD,920472,04/05/2021,3677118,"10,708.00",0.00,N/A,N/A
People Services - Adults and Health,Mental Health Support,Mental Health,DALE TOPCO LTD,624443,04/05/2021,3676942,"2,400.00",0.00,N/A,N/A
People Services - Adults and Health,Mental Health Support,Mental Health,DALE TOPCO LTD,624443,04/05/2021,3676734,"3,750.40",0.00,N/A,N/A
People Services - Adults and Health,Mental Health Support,Mental Health,DALE TOPCO LTD,624443,04/05/2021,3676903,"3,400.00",0.00,N/A,N/A
Corporate Resources,Financial Services,Financial Services,DATATANK LTD,553448,04/05/2021,3672529,"3,300.00",0.00,Corporate Fraud Team,Information Technology Broadcasting and-Communications Devices and Accessories
Communities & Place,Economic Development,City Development & Growth,DEBBIE SALMON DRIVING INSTRUCTOR,1559490,04/05/2021,3672659,"2,800.00",0.00,N/A,N/A
Communities & Place,Economic Development,City Development & Growth,DERBY CATHEDRAL CHAPTER,139333,04/05/2021,3672658,"6,000.00",0.00,N/A,N/A
People Services - Adults and Health,Learning Disability Support,Transitions and Ordinary Lives,DERBY ROAD CARE HOME,10579,04/05/2021,3676947,"6,105.60",0.00,N/A,N/A
People Services - Adults and Health,Learning Disability Support,Transitions and Ordinary Lives,DERBY ROAD CARE HOME,10579,04/05/2021,3676948,"9,134.60",0.00,N/A,N/A
People Services - Adults and Health,Learning Disability Support,Transitions and Ordinary Lives,DERBY ROAD CARE HOME,10579,04/05/2021,3677013,"8,556.68",0.00,N/A,N/A
People Services - Adults and Health,Physical Support,Community Support,DERBYSHIRE CARE SERVICES,388459,04/05/2021,3674147,744.27,0.00,N/A,N/A
People Services - Adults and Health,Physical Support,Community Support,DERBYSHIRE CARE SERVICES,388459,04/05/2021,3673226,744.27,0.00,N/A,N/A
People Services - Adults and Health,Physical Support,Community Support,DERBYSHIRE CARE SERVICES,388459,04/05/2021,3673384,530.92,0.00,N/A,N/A
People Services - Adults and Health,Physical Support,Community Support,DERBYSHIRE CARE SERVICES,388459,04/05/2021,3673385,531.49,0.00,N/A,N/A
People Services - Adults and Health,Physical Support,Community Support,DERBYSHIRE CARE SERVICES,388459,04/05/2021,3673386,539.47,0.00,N/A,N/A
People Services - Adults and Health,Physical Support,Community Support,DERBYSHIRE CARE SERVICES,388459,04/05/2021,3674120,531.49,0.00,N/A,N/A
People Services - Adults and Health,Physical Support,Community Support,DERBYSHIRE CARE SERVICES,388459,04/05/2021,3673867,539.47,0.00,N/A,N/A
People Services - Adults and Health,Physical Support,Community Support,DERBYSHIRE CARE SERVICES,388459,04/05/2021,3673638,530.92,0.00,N/A,N/A
People Services - Adults and Health,Physical Support,Community Support,DERBYSHIRE CARE SERVICES,388459,04/05/2021,3673730,567.74,0.00,N/A,N/A
People Services - Adults and Health,Physical Support,Community Support,DERBYSHIRE CARE SERVICES,388459,04/05/2021,3673860,548.76,0.00,N/A,N/A
People Services - Adults and Health,Physical Support,Community Support,DERBYSHIRE CARE SERVICES,388459,04/05/2021,3673861,864.74,0.00,N/A,N/A
People Services - Adults and Health,Physical Support,Community Support,DERBYSHIRE CARE SERVICES,388459,04/05/2021,3673824,584.13,0.00,N/A,N/A
People Services - Adults and Health,Physical Support,Community Support,DERBYSHIRE CARE SERVICES,388459,04/05/2021,3673825,653.74,0.00,N/A,N/A
People Services - Adults and Health,Physical Support,Community Support,DERBYSHIRE CARE SERVICES,388459,04/05/2021,3673826,683.35,0.00,N/A,N/A
People Services - Adults and Health,Physical Support,Community Support,DERBYSHIRE CARE SERVICES,388459,04/05/2021,3673343,516.67,0.00,N/A,N/A
People Services - Adults and Health,Physical Support,Community Support,DERBYSHIRE CARE SERVICES,388459,04/05/2021,3673344,623.23,0.00,N/A,N/A
People Services - Adults and Health,Physical Support,Community Support,DERBYSHIRE CARE SERVICES,388459,04/05/2021,3673345,635.64,0.00,N/A,N/A
People Services - Adults and Health,Physical Support,Community Support,DERBYSHIRE CARE SERVICES,388459,04/05/2021,3673346,744.27,0.00,N/A,N/A
People Services - Adults and Health,Physical Support,Community Support,DERBYSHIRE CARE SERVICES,388459,04/05/2021,3673607,635.64,0.00,N/A,N/A
People Services - Adults and Health,Physical Support,Community Support,DERBYSHIRE CARE SERVICES,388459,04/05/2021,3674077,808.82,0.00,N/A,N/A
People Services - Adults and Health,Physical Support,Community Support,DERBYSHIRE CARE SERVICES,388459,04/05/2021,3673178,523.69,0.00,N/A,N/A
People Services - Adults and Health,Physical Support,Community Support,DERBYSHIRE CARE SERVICES,388459,04/05/2021,3673450,533.98,0.00,N/A,N/A
People Services - Adults and Health,Physical Support,Community Support,DERBYSHIRE CARE SERVICES,388459,04/05/2021,3673451,562.54,0.00,N/A,N/A
People Services - Adults and Health,Physical Support,Community Support,DERBYSHIRE CARE SERVICES,388459,04/05/2021,3673452,910.15,0.00,N/A,N/A
People Services - Adults and Health,Physical Support,Community Support,DERBYSHIRE CARE SERVICES,388459,04/05/2021,3673904,541.58,0.00,N/A,N/A
People Services - Adults and Health,Physical Support,Community Support,DERBYSHIRE CARE SERVICES,388459,04/05/2021,3673905,623.23,0.00,N/A,N/A
People Services - Adults and Health,Physical Support,Community Support,DERBYSHIRE CARE SERVICES,388459,04/05/2021,3673906,683.35,0.00,N/A,N/A
People Services - Adults and Health,Physical Support,Community Support,DERBYSHIRE CARE SERVICES,388459,04/05/2021,3673700,808.82,0.00,N/A,N/A
People Services - Adults and Health,Physical Support,Community Support,DERBYSHIRE CARE SERVICES,388459,04/05/2021,3673179,683.35,0.00,N/A,N/A
People Services - Adults and Health,Physical Support,Community Support,DERBYSHIRE CARE SERVICES,388459,04/05/2021,3674045,562.54,0.00,N/A,N/A
People Services - Adults and Health,Physical Support,Community Support,DERBYSHIRE CARE SERVICES,388459,04/05/2021,3674046,579.22,0.00,N/A,N/A
People Services - Adults and Health,Physical Support,Community Support,DERBYSHIRE CARE SERVICES,388459,04/05/2021,3674047,623.23,0.00,N/A,N/A
People Services - Adults and Health,Physical Support,Community Support,DERBYSHIRE CARE SERVICES,388459,04/05/2021,3674048,683.35,0.00,N/A,N/A
People Services - Adults and Health,Physical Support,Community Support,DERBYSHIRE CARE SERVICES,388459,04/05/2021,3674197,635.64,0.00,N/A,N/A
People Services - Adults and Health,Physical Support,Community Support,DERBYSHIRE CARE SERVICES,388459,04/05/2021,3674198,683.35,0.00,N/A,N/A
People Services - Adults and Health,Physical Support,Community Support,DERBYSHIRE CARE SERVICES,388459,04/05/2021,3673590,683.35,0.00,N/A,N/A
People Services - Adults and Health,Physical Support,Community Support,DERBYSHIRE CARE SERVICES,388459,04/05/2021,3673327,635.64,0.00,N/A,N/A
People Services - Adults and Health,Physical Support,Community Support,DERBYSHIRE CARE SERVICES,388459,04/05/2021,3673487,646.98,0.00,N/A,N/A
People Services - Adults and Health,Physical Support,Community Support,DERBYSHIRE CARE SERVICES,388459,04/05/2021,3673152,683.35,0.00,N/A,N/A
People Services - Adults and Health,Physical Support,Community Support,DERBYSHIRE CARE SERVICES,388459,04/05/2021,3674385,562.27,0.00,N/A,N/A
People Services - Adults and Health,Physical Support,Community Support,DERBYSHIRE CARE SERVICES,388459,04/05/2021,3674386,683.35,0.00,N/A,N/A
People Services - Adults and Health,Physical Support,Community Support,DERBYSHIRE CARE SERVICES,388459,04/05/2021,3674296,607.19,0.00,N/A,N/A
People Services - Adults and Health,Physical Support,Community Support,DERBYSHIRE CARE SERVICES,388459,04/05/2021,3674297,623.23,0.00,N/A,N/A
People Services - Adults and Health,Physical Support,Community Support,DERBYSHIRE CARE SERVICES,388459,04/05/2021,3674123,552.56,0.00,N/A,N/A
People Services - Adults and Health,Physical Support,Community Support,DERBYSHIRE CARE SERVICES,388459,04/05/2021,3673742,533.35,0.00,N/A,N/A
People Services - Adults and Health,Physical Support,Community Support,DERBYSHIRE CARE SERVICES,388459,04/05/2021,3673870,683.35,0.00,N/A,N/A
People Services - Adults and Health,Learning Disability Support,Community Support,DERBYSHIRE CARE SERVICES,388459,04/05/2021,3674098,623.23,0.00,N/A,N/A
People Services - Adults and Health,Mental Health Support,Mental Health,DERBYSHIRE CARE SERVICES,388459,04/05/2021,3674113,526.32,0.00,N/A,N/A
People Services - Adults and Health,Mental Health Support,Mental Health,DERBYSHIRE CARE SERVICES,388459,04/05/2021,3673731,526.32,0.00,N/A,N/A
People Services - Adults and Health,Sensory Support,Community Support,DERBYSHIRE CARE SERVICES,388459,04/05/2021,3673721,683.35,0.00,N/A,N/A
People Services - Adults and Health,Sensory Support,Community Support,DERBYSHIRE CARE SERVICES,388459,04/05/2021,3674097,514.29,0.00,N/A,N/A
People Services - Adults and Health,Support with Memory and Cognition,Community Support,DERBYSHIRE CARE SERVICES,388459,04/05/2021,3674114,744.27,0.00,N/A,N/A
People Services - Adults and Health,Support with Memory and Cognition,Community Support,DERBYSHIRE CARE SERVICES,388459,04/05/2021,3673381,744.27,0.00,N/A,N/A
People Services - Adults and Health,Mental Health Support,Community Support,DERBYSHIRE CARE SERVICES,388459,04/05/2021,3673497,623.23,0.00,N/A,N/A
People Services - Adults and Health,Mental Health Support,Community Support,DERBYSHIRE CARE SERVICES,388459,04/05/2021,3673940,623.23,0.00,N/A,N/A
Communities & Place,Strategic Housing,City Development & Growth,DERBYSHIRE CARE SERVICES,1207,04/05/2021,3672942,"1,985.94",0.00,Housing Development HRA,Healthcare Services
People Services - Adults and Health,Learning Disability Support,Transitions and Ordinary Lives,DERBYSHIRE CARE SERVICES,388459,04/05/2021,3673334,612.80,0.00,N/A,N/A
People Services - Adults and Health,Learning Disability Support,Transitions and Ordinary Lives,DERBYSHIRE CARE SERVICES,388459,04/05/2021,3674206,612.80,0.00,N/A,N/A
People Services - Adults and Health,Learning Disability Support,Transitions and Ordinary Lives,DERBYSHIRE HOME CARE LTD,388460,04/05/2021,3673968,"3,398.80",0.00,N/A,N/A
People Services - Adults and Health,Learning Disability Support,Transitions and Ordinary Lives,DERBYSHIRE HOME CARE LTD,388460,04/05/2021,3673967,"1,394.82",0.00,N/A,N/A
People Services - Adults and Health,Learning Disability Support,Transitions and Ordinary Lives,DERBYSHIRE HOME CARE LTD,388460,04/05/2021,3673666,"1,071.18",0.00,N/A,N/A
People Services - Adults and Health,Learning Disability Support,Transitions and Ordinary Lives,DERBYSHIRE HOME CARE LTD,388460,04/05/2021,3673523,693.78,0.00,N/A,N/A
People Services - Adults and Health,Learning Disability Support,Transitions and Ordinary Lives,DERBYSHIRE HOME CARE LTD,388460,04/05/2021,3673398,"2,628.62",0.00,N/A,N/A
People Services - Adults and Health,Learning Disability Support,Transitions and Ordinary Lives,DERWENT VIEW RESIDENTIAL HOME,10577,04/05/2021,3677120,"8,593.28",0.00,N/A,N/A
People Services - Adults and Health,Learning Disability Support,Transitions and Ordinary Lives,DERWENT VIEW RESIDENTIAL HOME,10577,04/05/2021,3677022,"6,000.00",0.00,N/A,N/A
People Services - Adults and Health,Learning Disability Support,Transitions and Ordinary Lives,DERWENT VIEW RESIDENTIAL HOME,10577,04/05/2021,3677091,"7,529.84",0.00,N/A,N/A
People Services - Adults and Health,Learning Disability Support,Transitions and Ordinary Lives,DERWENT VIEW RESIDENTIAL HOME,10577,04/05/2021,3677101,"9,008.28",0.00,N/A,N/A
People Services - Adults and Health,Learning Disability Support,Transitions and Ordinary Lives,DERWENT VIEW RESIDENTIAL HOME,10577,04/05/2021,3677059,"6,820.88",0.00,N/A,N/A
People Services - Adults and Health,Emergency Planning,Commissioning,DERWENT VIEW RESIDENTIAL HOME,9895,04/05/2021,3673050,"7,653.29",0.00,N/A,N/A
People Services - Adults and Health,Physical Support,Community Support,DEVONSHIRE COURT,40529,04/05/2021,3676962,"1,842.08",0.00,N/A,N/A
People Services - Children & Young People,Early Help & Children’s Safeguarding,Non-Schools,DODDS SOLICITORS LLP,952477,04/05/2021,3672431,"2,551.86",0.00,Legal Fees,Management and Business Professionals an
People Services - Children & Young People,Early Help & Children’s Safeguarding,Non-Schools,DODDS SOLICITORS LLP,952477,04/05/2021,3672424,"1,029.56",0.00,Legal Fees,Management and Business Professionals an
People Services - Children & Young People,Early Help & Children’s Safeguarding,Non-Schools,DODDS SOLICITORS LLP,952477,04/05/2021,3672425,"1,423.25",0.00,Legal Fees,Management and Business Professionals an
People Services - Adults and Health,Support with Memory and Cognition,Community Support,DOUGLAS COURT CARE HOME,1430468,04/05/2021,3676147,"2,347.96",0.00,N/A,N/A
People Services - Adults and Health,Support with Memory and Cognition,Community Support,DOUGLAS COURT CARE HOME,1430468,04/05/2021,3676148,"2,347.96",0.00,N/A,N/A
People Services - Adults and Health,Support with Memory and Cognition,Community Support,DOUGLAS COURT CARE HOME,1430468,04/05/2021,3676013,"2,169.32",0.00,N/A,N/A
People Services - Adults and Health,Support with Memory and Cognition,Community Support,DOUGLAS COURT CARE HOME,1430468,04/05/2021,3676014,"2,347.96",0.00,N/A,N/A
People Services - Adults and Health,Physical Support,Community Support,DOUGLAS COURT CARE HOME,1430468,04/05/2021,3675796,"2,169.32",0.00,N/A,N/A
People Services - Adults and Health,Physical Support,Community Support,DOUGLAS COURT CARE HOME,1430468,04/05/2021,3676150,"2,169.32",0.00,N/A,N/A
People Services - Adults and Health,Physical Support,Community Support,DOUGLAS COURT CARE HOME,1430468,04/05/2021,3676151,"2,169.32",0.00,N/A,N/A
People Services - Adults and Health,Physical Support,Community Support,DOUGLAS COURT CARE HOME,1430468,04/05/2021,3676076,"2,347.96",0.00,N/A,N/A
People Services - Adults and Health,Physical Support,Community Support,DOUGLAS COURT CARE HOME,1430468,04/05/2021,3675961,"2,169.32",0.00,N/A,N/A
People Services - Adults and Health,Mental Health Support,Mental Health,DOUGLAS COURT CARE HOME,1430468,04/05/2021,3676210,"2,169.32",0.00,N/A,N/A
People Services - Adults and Health,Mental Health Support,Mental Health,DOUGLAS COURT CARE HOME,1430468,04/05/2021,3675886,"2,347.96",0.00,N/A,N/A
People Services - Adults and Health,Mental Health Support,Community Support,DOUGLAS COURT CARE HOME,1430468,04/05/2021,3676193,511.24,0.00,N/A,N/A
People Services - Adults and Health,Mental Health Support,Community Support,DOUGLAS COURT CARE HOME,1430468,04/05/2021,3676250,"2,169.32",0.00,N/A,N/A
People Services - Adults and Health,Emergency Planning,Commissioning,DOUGLAS COURT CARE HOME,1434473,04/05/2021,3673051,"17,320.61",0.00,N/A,N/A
Communities & Place,Leisure,"Leisure, Culture and Tourism",EDEN FARM LTD,238423,04/05/2021,3672509,622.24,0.00,Derby Live Catering - Markeaton Park,Food Beverage and Tobacco Products-Beverages
Communities & Place,"Trading Standards, Food and Safety, Bereavement Services and Building Consultanc",Public Protection and Streetride,EDEN SPRINGS LTD,1206479,04/05/2021,3672930,873.88,0.00,Crematorium,Food Beverage and Tobacco Products
People Services - Adults and Health,Learning Disability Support,Transitions and Ordinary Lives,ELMCARE LTD,552446,04/05/2021,3676819,"4,400.00",0.00,N/A,N/A
People Services - Adults and Health,Learning Disability Support,Transitions and Ordinary Lives,ELMCARE LTD,552446,04/05/2021,3676975,"3,600.00",0.00,N/A,N/A
People Services - Adults and Health,Learning Disability Support,Transitions and Ordinary Lives,ELMCARE LTD,552446,04/05/2021,3676852,"3,600.00",0.00,N/A,N/A
People Services - Adults and Health,Learning Disability Support,Transitions and Ordinary Lives,ELMCARE LTD,552446,04/05/2021,3676853,"3,600.00",0.00,N/A,N/A
People Services - Adults and Health,Learning Disability Support,Transitions and Ordinary Lives,ELMCARE LTD,552446,04/05/2021,3676977,"3,600.00",0.00,N/A,N/A
People Services - Adults and Health,Learning Disability Support,Transitions and Ordinary Lives,ELMCARE LTD,552446,04/05/2021,3676857,"3,787.92",0.00,N/A,N/A
People Services - Adults and Health,Learning Disability Support,Transitions and Ordinary Lives,ELMCARE LTD,552446,04/05/2021,3676858,"3,888.92",0.00,N/A,N/A
People Services - Adults and Health,Learning Disability Support,Transitions and Ordinary Lives,ELMCARE LTD,552446,04/05/2021,3676976,"4,137.76",0.00,N/A,N/A
People Services - Adults and Health,Learning Disability Support,Transitions and Ordinary Lives,ELMCARE LTD,552446,04/05/2021,3676776,"4,137.76",0.00,N/A,N/A
People Services - Adults and Health,Learning Disability Support,Transitions and Ordinary Lives,ELMCARE LTD,552446,04/05/2021,3676905,"2,400.00",0.00,N/A,N/A
People Services - Adults and Health,Physical Support,Community Support,ELVASTON LODGE RESIDENTIAL HOME,10582,04/05/2021,3675893,"2,142.86",0.00,N/A,N/A
People Services - Adults and Health,Support with Memory and Cognition,Community Support,ELVASTON LODGE RESIDENTIAL HOME,10582,04/05/2021,3676199,"2,169.32",0.00,N/A,N/A
People Services - Adults and Health,Support with Memory and Cognition,Community Support,ELVASTON LODGE RESIDENTIAL HOME,10582,04/05/2021,3676056,"2,438.48",0.00,N/A,N/A
People Services - Adults and Health,Physical Support,Community Support,ELVASTON LODGE RESIDENTIAL HOME,10582,04/05/2021,3676002,"1,113.82",0.00,N/A,N/A
People Services - Adults and Health,Physical Support,Community Support,ELVASTON LODGE RESIDENTIAL HOME,10582,04/05/2021,3676057,"2,227.64",0.00,N/A,N/A
People Services - Adults and Health,Physical Support,Community Support,ELVASTON LODGE RESIDENTIAL HOME,10582,04/05/2021,3676134,"2,169.32",0.00,N/A,N/A
People Services - Adults and Health,Physical Support,Community Support,ELVASTON LODGE RESIDENTIAL HOME,10582,04/05/2021,3675947,"2,347.96",0.00,N/A,N/A
People Services - Adults and Health,Physical Support,Community Support,ELVASTON LODGE RESIDENTIAL HOME,10582,04/05/2021,3676059,"2,169.32",0.00,N/A,N/A
People Services - Adults and Health,Physical Support,Community Support,ELVASTON LODGE RESIDENTIAL HOME,10582,04/05/2021,3676058,"2,169.32",0.00,N/A,N/A
People Services - Adults and Health,Physical Support,Community Support,ELVASTON LODGE RESIDENTIAL HOME,10582,04/05/2021,3676135,"2,227.64",0.00,N/A,N/A
People Services - Adults and Health,Physical Support,Community Support,ELVASTON LODGE RESIDENTIAL HOME,10582,04/05/2021,3676060,"2,169.32",0.00,N/A,N/A
People Services - Adults and Health,Mental Health Support,Mental Health,ELVASTON LODGE RESIDENTIAL HOME,10582,04/05/2021,3676256,"2,347.96",0.00,N/A,N/A
People Services - Adults and Health,Mental Health Support,Mental Health,ELVASTON LODGE RESIDENTIAL HOME,10582,04/05/2021,3676062,"3,985.71",0.00,N/A,N/A
People Services - Adults and Health,Mental Health Support,Mental Health,ELVASTON LODGE RESIDENTIAL HOME,10582,04/05/2021,3676258,"2,169.32",0.00,N/A,N/A
People Services - Adults and Health,Mental Health Support,Mental Health,ELVASTON LODGE RESIDENTIAL HOME,10582,04/05/2021,3676061,"2,347.96",0.00,N/A,N/A
People Services - Adults and Health,Mental Health Support,Mental Health,ELVASTON LODGE RESIDENTIAL HOME,10582,04/05/2021,3676201,"2,169.32",0.00,N/A,N/A
People Services - Adults and Health,Mental Health Support,Mental Health,ELVASTON LODGE RESIDENTIAL HOME,10582,04/05/2021,3676136,"2,227.64",0.00,N/A,N/A
People Services - Adults and Health,Mental Health Support,Community Support,ELVASTON LODGE RESIDENTIAL HOME,10582,04/05/2021,3676137,"2,169.32",0.00,N/A,N/A
People Services - Adults and Health,Mental Health Support,Mental Health,ELVASTON LODGE RESIDENTIAL HOME,10582,04/05/2021,3675839,"2,169.32",0.00,N/A,N/A
People Services - Adults and Health,Mental Health Support,Mental Health,ELVASTON LODGE RESIDENTIAL HOME,10582,04/05/2021,3676139,"1,433.64",0.00,N/A,N/A
People Services - Adults and Health,Emergency Planning,Commissioning,ELVASTON LODGE RESIDENTIAL HOME,1399,04/05/2021,3673052,"17,723.41",0.00,N/A,N/A
People Services - Adults and Health,Physical Support,Community Support,EMBRACE CARE LIMITED,683453,04/05/2021,3675983,"2,175.44",0.00,N/A,N/A
People Services - Adults and Health,Physical Support,Community Support,EMBRACE CARE LIMITED,683453,04/05/2021,3676125,"2,227.64",0.00,N/A,N/A
People Services - Adults and Health,Physical Support,Community Support,EMBRACE CARE LIMITED,683453,04/05/2021,3676124,"2,169.32",0.00,N/A,N/A
People Services - Adults and Health,Support with Memory and Cognition,Community Support,EMBRACE CARE LIMITED,683453,04/05/2021,3675879,"2,227.64",0.00,N/A,N/A
People Services - Adults and Health,Support with Memory and Cognition,Community Support,EMBRACE CARE LIMITED,683453,04/05/2021,3675821,"2,227.64",0.00,N/A,N/A
People Services - Adults and Health,Support with Memory and Cognition,Community Support,EMBRACE CARE LIMITED,683453,04/05/2021,3676039,"2,227.64",0.00,N/A,N/A
People Services - Adults and Health,Support with Memory and Cognition,Community Support,EMBRACE CARE LIMITED,683453,04/05/2021,3676046,"2,227.64",0.00,N/A,N/A
People Services - Adults and Health,Support with Memory and Cognition,Community Support,EMBRACE CARE LIMITED,683453,04/05/2021,3675936,"2,169.32",0.00,N/A,N/A
People Services - Adults and Health,Support with Memory and Cognition,Community Support,EMBRACE CARE LIMITED,683453,04/05/2021,3676232,542.33,0.00,N/A,N/A
People Services - Adults and Health,Support with Memory and Cognition,Community Support,EMBRACE CARE LIMITED,683453,04/05/2021,3676186,"2,169.32",0.00,N/A,N/A
People Services - Adults and Health,Support with Memory and Cognition,Community Support,EMBRACE CARE LIMITED,683453,04/05/2021,3676245,"2,169.32",0.00,N/A,N/A
People Services - Adults and Health,Support with Memory and Cognition,Community Support,EMBRACE CARE LIMITED,683453,04/05/2021,3676246,"2,227.64",0.00,N/A,N/A
People Services - Adults and Health,Physical Support,Community Support,EMBRACE CARE LIMITED,683453,04/05/2021,3675826,"2,169.32",0.00,N/A,N/A
People Services - Adults and Health,Physical Support,Community Support,EMBRACE CARE LIMITED,683453,04/05/2021,3676247,"2,227.64",0.00,N/A,N/A
People Services - Adults and Health,Physical Support,Community Support,EMBRACE CARE LIMITED,683453,04/05/2021,3676248,"2,227.64",0.00,N/A,N/A
People Services - Adults and Health,Physical Support,Community Support,EMBRACE CARE LIMITED,683453,04/05/2021,3675926,"1,113.82",0.00,N/A,N/A
People Services - Adults and Health,Physical Support,Community Support,EMBRACE CARE LIMITED,683453,04/05/2021,3675924,"1,786.97",0.00,N/A,N/A
People Services - Adults and Health,Physical Support,Community Support,EMBRACE CARE LIMITED,683453,04/05/2021,3676048,"2,227.64",0.00,N/A,N/A
People Services - Adults and Health,Physical Support,Community Support,EMBRACE CARE LIMITED,683453,04/05/2021,3676122,"2,227.64",0.00,N/A,N/A
People Services - Adults and Health,Physical Support,Community Support,EMBRACE CARE LIMITED,683453,04/05/2021,3676123,"2,227.64",0.00,N/A,N/A
People Services - Adults and Health,Physical Support,Community Support,EMBRACE CARE LIMITED,683453,04/05/2021,3676187,"2,227.64",0.00,N/A,N/A
People Services - Adults and Health,Physical Support,Community Support,EMBRACE CARE LIMITED,683453,04/05/2021,3676188,"2,227.64",0.00,N/A,N/A
People Services - Adults and Health,Physical Support,Community Support,EMBRACE CARE LIMITED,683453,04/05/2021,3676047,"2,227.64",0.00,N/A,N/A
People Services - Adults and Health,Physical Support,Community Support,EMBRACE CARE LIMITED,683453,04/05/2021,3675815,854.64,0.00,N/A,N/A
People Services - Adults and Health,Physical Support,Community Support,EMBRACE CARE LIMITED,683453,04/05/2021,3675991,"2,227.64",0.00,N/A,N/A
People Services - Adults and Health,Physical Support,Community Support,EMBRACE CARE LIMITED,683453,04/05/2021,3675992,"2,227.64",0.00,N/A,N/A
People Services - Adults and Health,Physical Support,Community Support,EMBRACE CARE LIMITED,683453,04/05/2021,3676033,"1,113.82",0.00,N/A,N/A
People Services - Adults and Health,Physical Support,Community Support,EMBRACE CARE LIMITED,683453,04/05/2021,3675923,578.57,0.00,N/A,N/A
People Services - Adults and Health,Physical Support,Community Support,EMBRACE CARE LIMITED,683453,04/05/2021,3675880,"2,169.32",0.00,N/A,N/A
People Services - Adults and Health,Physical Support,Community Support,EMBRACE CARE LIMITED,683453,04/05/2021,3676099,"1,059.24",0.00,N/A,N/A
People Services - Adults and Health,Physical Support,Community Support,EMBRACE CARE LIMITED,683453,04/05/2021,3676105,907.92,0.00,N/A,N/A
People Services - Adults and Health,Physical Support,Community Support,EMBRACE CARE LIMITED,683453,04/05/2021,3675868,"2,700.00",0.00,N/A,N/A
People Services - Adults and Health,Physical Support,Community Support,EMBRACE CARE LIMITED,683453,04/05/2021,3676126,"2,227.64",0.00,N/A,N/A
People Services - Adults and Health,Physical Support,Community Support,EMBRACE CARE LIMITED,683453,04/05/2021,3675995,"2,227.64",0.00,N/A,N/A
People Services - Adults and Health,Physical Support,Community Support,EMBRACE CARE LIMITED,683453,04/05/2021,3675884,"2,227.64",0.00,N/A,N/A
People Services - Adults and Health,Physical Support,Community Support,EMBRACE CARE LIMITED,683453,04/05/2021,3675885,"2,449.96",0.00,N/A,N/A
People Services - Adults and Health,Physical Support,Community Support,EMBRACE CARE LIMITED,683453,04/05/2021,3676050,"2,227.64",0.00,N/A,N/A
People Services - Adults and Health,Physical Support,Community Support,EMBRACE CARE LIMITED,683453,04/05/2021,3675829,"2,227.64",0.00,N/A,N/A
People Services - Adults and Health,Physical Support,Community Support,EMBRACE CARE LIMITED,683453,04/05/2021,3675830,"2,227.64",0.00,N/A,N/A
People Services - Adults and Health,Physical Support,Community Support,EMBRACE CARE LIMITED,683453,04/05/2021,3676005,"2,885.52",0.00,N/A,N/A
People Services - Adults and Health,Mental Health Support,Mental Health,EMBRACE CARE LIMITED,683453,04/05/2021,3676129,"1,702.00",0.00,N/A,N/A
People Services - Adults and Health,Mental Health Support,Mental Health,EMBRACE CARE LIMITED,683453,04/05/2021,3675894,"2,427.64",0.00,N/A,N/A
People Services - Adults and Health,Mental Health Support,Mental Health,EMBRACE CARE LIMITED,683453,04/05/2021,3676051,"1,258.32",0.00,N/A,N/A
People Services - Adults and Health,Mental Health Support,Mental Health,EMBRACE CARE LIMITED,683453,04/05/2021,3675840,"2,227.64",0.00,N/A,N/A
People Services - Adults and Health,Mental Health Support,Mental Health,EMBRACE CARE LIMITED,683453,04/05/2021,3675920,"1,916.87",0.00,N/A,N/A
People Services - Adults and Health,Mental Health Support,Mental Health,EMBRACE CARE LIMITED,683453,04/05/2021,3675895,"2,227.64",0.00,N/A,N/A
People Services - Adults and Health,Mental Health Support,Mental Health,EMBRACE CARE LIMITED,683453,04/05/2021,3675787,"2,227.64",0.00,N/A,N/A
People Services - Adults and Health,Mental Health Support,Mental Health,EMBRACE CARE LIMITED,683453,04/05/2021,3675814,"2,064.32",0.00,N/A,N/A
People Services - Adults and Health,Mental Health Support,Mental Health,EMBRACE CARE LIMITED,683453,04/05/2021,3676101,"2,064.32",0.00,N/A,N/A
People Services - Adults and Health,Mental Health Support,Mental Health,EMBRACE CARE LIMITED,683453,04/05/2021,3675950,"1,331.56",0.00,N/A,N/A
People Services - Adults and Health,Mental Health Support,Mental Health,EMBRACE CARE LIMITED,683453,04/05/2021,3675951,"2,064.32",0.00,N/A,N/A
People Services - Adults and Health,Mental Health Support,Mental Health,EMBRACE CARE LIMITED,683453,04/05/2021,3675871,"1,843.14",0.00,N/A,N/A
People Services - Adults and Health,Mental Health Support,Mental Health,EMBRACE CARE LIMITED,683453,04/05/2021,3676230,"2,064.32",0.00,N/A,N/A
People Services - Adults and Health,Learning Disability Support,Transitions and Ordinary Lives,EMBRACE CARE LIMITED,683453,04/05/2021,3675952,"1,888.68",0.00,N/A,N/A
People Services - Adults and Health,Learning Disability Support,Transitions and Ordinary Lives,EMBRACE CARE LIMITED,683453,04/05/2021,3675788,"2,227.64",0.00,N/A,N/A
People Services - Adults and Health,Learning Disability Support,Transitions and Ordinary Lives,EMBRACE CARE LIMITED,683453,04/05/2021,3676063,"2,227.64",0.00,N/A,N/A
People Services - Adults and Health,Mental Health Support,Community Support,EMBRACE CARE LIMITED,683453,04/05/2021,3675789,"2,227.64",0.00,N/A,N/A
People Services - Adults and Health,Mental Health Support,Community Support,EMBRACE CARE LIMITED,683453,04/05/2021,3675811,"1,117.81",0.00,N/A,N/A
People Services - Adults and Health,Mental Health Support,Community Support,EMBRACE CARE LIMITED,683453,04/05/2021,3676098,768.49,0.00,N/A,N/A
People Services - Adults and Health,Sensory Support,Community Support,EMBRACE CARE LIMITED,683453,04/05/2021,3675841,"2,227.64",0.00,N/A,N/A
People Services - Adults and Health,Learning Disability Support,Transitions and Ordinary Lives,EMBRACE CARE LIMITED,683453,04/05/2021,3675897,"2,227.64",0.00,N/A,N/A
People Services - Adults and Health,Mental Health Support,Mental Health,EMBRACE CARE LIMITED,683453,04/05/2021,3675980,"2,118.48",0.00,N/A,N/A
People Services - Adults and Health,Mental Health Support,Mental Health,EMBRACE CARE LIMITED,683453,04/05/2021,3676100,"1,740.18",0.00,N/A,N/A
People Services - Adults and Health,Mental Health Support,Mental Health,EMBRACE CARE LIMITED,683453,04/05/2021,3675953,"2,169.32",0.00,N/A,N/A
People Services - Adults and Health,Mental Health Support,Mental Health,EMBRACE CARE LIMITED,683453,04/05/2021,3676102,"2,118.48",0.00,N/A,N/A
People Services - Adults and Health,Learning Disability Support,Transitions and Ordinary Lives,EMBRACE CARE LIMITED,683453,04/05/2021,3675791,"2,440.16",0.00,N/A,N/A
People Services - Adults and Health,Mental Health Support,Mental Health,EMBRACE CARE LIMITED,683453,04/05/2021,3675790,"1,377.92",0.00,N/A,N/A
People Services - Adults and Health,Mental Health Support,Mental Health,EMBRACE CARE LIMITED,683453,04/05/2021,3675931,"1,113.82",0.00,N/A,N/A
People Services - Adults and Health,Mental Health Support,Mental Health,EMBRACE CARE LIMITED,683453,04/05/2021,3675818,854.64,0.00,N/A,N/A
People Services - Adults and Health,Mental Health Support,Mental Health,EMBRACE CARE LIMITED,683453,04/05/2021,3676064,"2,227.64",0.00,N/A,N/A
People Services - Adults and Health,Mental Health Support,Mental Health,EMBRACE CARE LIMITED,683453,04/05/2021,3676202,"2,317.76",0.00,N/A,N/A
People Services - Adults and Health,Mental Health Support,Mental Health,EMBRACE CARE LIMITED,683453,04/05/2021,3676231,"2,175.44",0.00,N/A,N/A
People Services - Adults and Health,Mental Health Support,Mental Health,EMBRACE CARE LIMITED,683453,04/05/2021,3676103,"2,514.29",0.00,N/A,N/A
People Services - Adults and Health,Mental Health Support,Mental Health,EMBRACE CARE LIMITED,683453,04/05/2021,3675866,"2,171.43",0.00,N/A,N/A
People Services - Adults and Health,Mental Health Support,Mental Health,EMBRACE CARE LIMITED,683453,04/05/2021,3676227,"3,200.00",0.00,N/A,N/A
People Services - Adults and Health,Learning Disability Support,Transitions and Ordinary Lives,EMBRACE CARE LIMITED,683453,04/05/2021,3676004,"2,126.72",0.00,N/A,N/A
People Services - Adults and Health,Mental Health Support,Mental Health,EMBRACE CARE LIMITED,683453,04/05/2021,3675842,"2,227.64",0.00,N/A,N/A
People Services - Adults and Health,Support with Memory and Cognition,Community Support,EMBRACE CARE LIMITED,683453,04/05/2021,3676140,"2,227.64",0.00,N/A,N/A
People Services - Adults and Health,Learning Disability Support,Transitions and Ordinary Lives,EMH CARE AND SUPPORT LTD,1033482,04/05/2021,3676782,"2,810.32",0.00,N/A,N/A
People Services - Children & Young People,Integrated Services,Non-Schools,ESLAND NORTH LTD,1349520,04/05/2021,3675195,"11,442.86",0.00,N/A,N/A
People Services - Children & Young People,Integrated Services,Non-Schools,ESLAND NORTH LTD,1349520,04/05/2021,3675195,"6,814.29",0.00,N/A,N/A
People Services - Children & Young People,Integrated Services,Non-Schools,ESLAND NORTH LTD,1349520,04/05/2021,3675195,"11,522.96",0.00,N/A,N/A
People Services - Children & Young People,Integrated Services,Non-Schools,ESLAND NORTH LTD,1349520,04/05/2021,3675195,"6,814.29",0.00,N/A,N/A
People Services - Children & Young People,Integrated Services,Non-Schools,ESLAND NORTH LTD,1349520,04/05/2021,3675195,"6,357.14",0.00,N/A,N/A
People Services - Children & Young People,Integrated Services,Non-Schools,ESLAND NORTH LTD,1349520,04/05/2021,3675195,"3,785.71",0.00,N/A,N/A
Communities & Place,Traffic & Transportation,Planning & Transportation,EXTREME MOUNTAIN BIKE SHOW LTD,1250478,04/05/2021,3672879,"4,500.00",0.00,Emergency Active Travel Fund,Travel and Food and Lodging and Entertai
People Services - Adults and Health,Support with Memory and Cognition,Community Support,FARRIESS COURT,10585,04/05/2021,3676470,"2,169.32",0.00,N/A,N/A
People Services - Adults and Health,Physical Support,Community Support,FARRIESS COURT,10585,04/05/2021,3676471,"2,169.32",0.00,N/A,N/A
People Services - Adults and Health,Physical Support,Community Support,FARRIESS COURT,10585,04/05/2021,3676369,"2,169.32",0.00,N/A,N/A
People Services - Adults and Health,Physical Support,Community Support,FARRIESS COURT,10585,04/05/2021,3676432,"2,169.32",0.00,N/A,N/A
People Services - Adults and Health,Mental Health Support,Mental Health,FARRIESS COURT,10585,04/05/2021,3676261,"2,061.76",0.00,N/A,N/A
People Services - Adults and Health,Mental Health Support,Mental Health,FARRIESS COURT,10585,04/05/2021,3676262,"1,720.00",0.00,N/A,N/A
People Services - Adults and Health,Mental Health Support,Mental Health,FARRIESS COURT,10585,04/05/2021,3676297,"2,169.32",0.00,N/A,N/A
People Services - Adults and Health,Mental Health Support,Community Support,FARRIESS COURT,10585,04/05/2021,3676405,"2,169.32",0.00,N/A,N/A
People Services - Adults and Health,Learning Disability Support,Community Support,FARRIESS COURT,10585,04/05/2021,3676316,"2,169.32",0.00,N/A,N/A
People Services - Adults and Health,Mental Health Support,Mental Health,FARRIESS COURT,10585,04/05/2021,3676298,"2,169.32",0.00,N/A,N/A
People Services - Adults and Health,Mental Health Support,Mental Health,FARRIESS COURT,10585,04/05/2021,3676440,"1,820.00",0.00,N/A,N/A
People Services - Adults and Health,Emergency Planning,Commissioning,FARRIESS COURT,282,04/05/2021,3673054,"10,472.93",0.00,N/A,N/A
Communities & Place,Economic Development,City Development & Growth,FHW WOLF LIMITED,1559491,04/05/2021,3672660,"2,800.00",0.00,N/A,N/A
People Services - Children & Young People,Integrated Services,Non-Schools,FIRST BLUE HEALTHCARE LIMITED,1401475,04/05/2021,3675172,"12,600.00",0.00,N/A,N/A
People Services - Children & Young People,Integrated Services,Non-Schools,FIRST BLUE HEALTHCARE LIMITED,1401475,04/05/2021,3675172,"7,000.00",0.00,N/A,N/A
People Services - Children & Young People,Integrated Services,Non-Schools,FIVE RIVERS CHILDCARE LTD,1122471,04/05/2021,3675314,"1,355.14",0.00,N/A,N/A
People Services - Children & Young People,Integrated Services,Non-Schools,FIVE RIVERS CHILDCARE LTD,1122471,04/05/2021,3675314,"1,355.14",0.00,N/A,N/A
People Services - Children & Young People,Integrated Services,Non-Schools,FIVE RIVERS CHILDCARE LTD,1122471,04/05/2021,3675314,"1,231.43",0.00,N/A,N/A
People Services - Children & Young People,Integrated Services,Non-Schools,FIVE RIVERS CHILDCARE LTD,1122471,04/05/2021,3675314,"1,191.43",0.00,N/A,N/A
People Services - Children & Young People,Integrated Services,Non-Schools,FIVE RIVERS CHILDCARE LTD,1122471,04/05/2021,3675314,"1,098.57",0.00,N/A,N/A
People Services - Children & Young People,Integrated Services,Non-Schools,FIVE RIVERS CHILDCARE LTD,1122471,04/05/2021,3675314,514.29,0.00,N/A,N/A
People Services - Children & Young People,Integrated Services,Non-Schools,FIVE RIVERS CHILDCARE LTD,1122471,04/05/2021,3675314,"3,985.71",0.00,N/A,N/A
People Services - Children & Young People,Integrated Services,Non-Schools,FIVE RIVERS CHILDCARE LTD,1122471,04/05/2021,3675314,"3,728.57",0.00,N/A,N/A
People Services - Children & Young People,Integrated Services,Non-Schools,FIVE RIVERS CHILDCARE LTD,1122471,04/05/2021,3675314,"3,728.57",0.00,N/A,N/A
People Services - Children & Young People,Integrated Services,Non-Schools,FIVE RIVERS CHILDCARE LTD,1122471,04/05/2021,3675314,"3,324.86",0.00,N/A,N/A
People Services - Children & Young People,Integrated Services,Non-Schools,FIVE RIVERS CHILDCARE LTD,1122471,04/05/2021,3675314,"2,232.08",0.00,N/A,N/A
People Services - Children & Young People,Integrated Services,Non-Schools,FIVE RIVERS CHILDCARE LTD,1122471,04/05/2021,3675314,"2,214.29",0.00,N/A,N/A
People Services - Children & Young People,Integrated Services,Non-Schools,FIVE RIVERS CHILDCARE LTD,1122471,04/05/2021,3675314,"2,159.59",0.00,N/A,N/A
People Services - Children & Young People,Integrated Services,Non-Schools,FIVE RIVERS CHILDCARE LTD,1122471,04/05/2021,3675314,"2,071.43",0.00,N/A,N/A
People Services - Children & Young People,Integrated Services,Non-Schools,FIVE RIVERS CHILDCARE LTD,1122471,04/05/2021,3675314,"2,071.43",0.00,N/A,N/A
People Services - Children & Young People,Integrated Services,Non-Schools,FIVE RIVERS CHILDCARE LTD,1122471,04/05/2021,3675314,"2,439.26",0.00,N/A,N/A
People Services - Children & Young People,Integrated Services,Non-Schools,FIVE RIVERS CHILDCARE LTD,1122471,04/05/2021,3675314,"2,439.26",0.00,N/A,N/A
People Services - Children & Young People,Integrated Services,Non-Schools,FIVE RIVERS CHILDCARE LTD,1122471,04/05/2021,3675314,"1,977.43",0.00,N/A,N/A
People Services - Children & Young People,Integrated Services,Non-Schools,FIVE RIVERS CHILDCARE LTD,1122471,04/05/2021,3675314,"1,847.14",0.00,N/A,N/A
People Services - Children & Young People,Integrated Services,Non-Schools,FLOURISH FOSTERING LIMITED,1426477,04/05/2021,3675291,"2,439.26",0.00,N/A,N/A
People Services - Children & Young People,Integrated Services,Non-Schools,FLOURISH FOSTERING LIMITED,1426477,04/05/2021,3675291,"1,355.14",0.00,N/A,N/A
People Services - Children & Young People,Integrated Services,Non-Schools,FOSTER CARE ASSOCIATES LTD fca,1109506,04/05/2021,3675312,"3,218.76",0.00,N/A,N/A
People Services - Children & Young People,Integrated Services,Non-Schools,FOSTER CARE ASSOCIATES LTD fca,1109506,04/05/2021,3675312,"2,557.62",0.00,N/A,N/A
People Services - Children & Young People,Integrated Services,Non-Schools,FOSTER CARE ASSOCIATES LTD fca,1109506,04/05/2021,3675312,"2,410.56",0.00,N/A,N/A
People Services - Children & Young People,Integrated Services,Non-Schools,FOSTER CARE ASSOCIATES LTD fca,1109506,04/05/2021,3675312,"2,269.36",0.00,N/A,N/A
People Services - Children & Young People,Integrated Services,Non-Schools,FOSTER CARE ASSOCIATES LTD fca,1109506,04/05/2021,3675312,"2,173.11",0.00,N/A,N/A
People Services - Children & Young People,Integrated Services,Non-Schools,FOSTER CARE ASSOCIATES LTD fca,1109506,04/05/2021,3675312,"2,152.86",0.00,N/A,N/A
People Services - Children & Young People,Integrated Services,Non-Schools,FOSTER CARE ASSOCIATES LTD fca,1109506,04/05/2021,3675312,"2,019.24",0.00,N/A,N/A
People Services - Children & Young People,Integrated Services,Non-Schools,FOSTER CARE ASSOCIATES LTD fca,1109506,04/05/2021,3675312,"1,788.20",0.00,N/A,N/A
People Services - Children & Young People,Integrated Services,Non-Schools,FOSTER CARE ASSOCIATES LTD fca,1109506,04/05/2021,3675312,"1,786.22",0.00,N/A,N/A
People Services - Children & Young People,Integrated Services,Non-Schools,FOSTER CARE ASSOCIATES LTD fca,1109506,04/05/2021,3675312,"1,420.90",0.00,N/A,N/A
People Services - Children & Young People,Integrated Services,Non-Schools,FOSTER CARE ASSOCIATES LTD fca,1109506,04/05/2021,3675312,"1,339.20",0.00,N/A,N/A
People Services - Children & Young People,Integrated Services,Non-Schools,FOSTER CARE ASSOCIATES LTD fca,1109506,04/05/2021,3675312,"1,252.00",0.00,N/A,N/A
People Services - Children & Young People,Integrated Services,Non-Schools,FOSTER CARE ASSOCIATES LTD fca,1109506,04/05/2021,3675312,"1,252.00",0.00,N/A,N/A
People Services - Children & Young People,Integrated Services,Non-Schools,FOSTER CARE ASSOCIATES LTD fca,1109506,04/05/2021,3675312,"1,198.90",0.00,N/A,N/A
People Services - Children & Young People,Integrated Services,Non-Schools,FOSTER CARE ASSOCIATES LTD fca,1109506,04/05/2021,3675312,"1,114.00",0.00,N/A,N/A
People Services - Children & Young People,Integrated Services,Non-Schools,FOSTER CARE ASSOCIATES LTD fca,1109506,04/05/2021,3675312,803.52,0.00,N/A,N/A
People Services - Children & Young People,Integrated Services,Non-Schools,FOSTER CARE ASSOCIATES LTD fca,1109506,04/05/2021,3675302,"1,151.00",0.00,N/A,N/A
People Services - Children & Young People,Integrated Services,Non-Schools,FOSTER CARE ASSOCIATES LTD fca,1109506,04/05/2021,3675302,"1,151.00",0.00,N/A,N/A
People Services - Children & Young People,Integrated Services,Non-Schools,FOSTER CARE ASSOCIATES LTD fca,1109506,04/05/2021,3675302,"1,151.00",0.00,N/A,N/A
People Services - Children & Young People,Integrated Services,Non-Schools,FOSTER CARE ASSOCIATES LTD fca,1109506,04/05/2021,3675302,"1,151.00",0.00,N/A,N/A
People Services - Children & Young People,Integrated Services,Non-Schools,FOSTER CARE ASSOCIATES LTD fca,1109506,04/05/2021,3675302,"1,096.00",0.00,N/A,N/A
People Services - Children & Young People,Integrated Services,Non-Schools,FOSTER CARE ASSOCIATES LTD fca,1109506,04/05/2021,3675302,"1,096.00",0.00,N/A,N/A
People Services - Children & Young People,Integrated Services,Non-Schools,FOSTER CARE ASSOCIATES LTD fca,1109506,04/05/2021,3675302,"1,086.00",0.00,N/A,N/A
People Services - Children & Young People,Integrated Services,Non-Schools,FOSTER CARE ASSOCIATES LTD fca,1109506,04/05/2021,3675312,504.30,0.00,N/A,N/A
People Services - Children & Young People,Integrated Services,Non-Schools,FOSTER CARE ASSOCIATES LTD fca,1109506,04/05/2021,3675312,803.52,0.00,N/A,N/A
People Services - Children & Young People,Integrated Services,Non-Schools,FOSTER CARE ASSOCIATES LTD fca,1109506,04/05/2021,3675302,"3,276.00",0.00,N/A,N/A
People Services - Children & Young People,Integrated Services,Non-Schools,FOSTER CARE ASSOCIATES LTD fca,1109506,04/05/2021,3675302,"2,638.62",0.00,N/A,N/A
People Services - Children & Young People,Integrated Services,Non-Schools,FOSTER CARE ASSOCIATES LTD fca,1109506,04/05/2021,3675302,"2,488.50",0.00,N/A,N/A
People Services - Children & Young People,Integrated Services,Non-Schools,FOSTER CARE ASSOCIATES LTD fca,1109506,04/05/2021,3675302,"2,488.50",0.00,N/A,N/A
People Services - Children & Young People,Integrated Services,Non-Schools,FOSTER CARE ASSOCIATES LTD fca,1109506,04/05/2021,3675302,"1,972.80",0.00,N/A,N/A
People Services - Children & Young People,Integrated Services,Non-Schools,FOSTER CARE ASSOCIATES LTD fca,1109506,04/05/2021,3675302,"1,954.80",0.00,N/A,N/A
People Services - Children & Young People,Integrated Services,Non-Schools,FOSTER CARE ASSOCIATES LTD fca,1109506,04/05/2021,3675302,"1,820.00",0.00,N/A,N/A
People Services - Children & Young People,Integrated Services,Non-Schools,FOSTER CARE ASSOCIATES LTD fca,1109506,04/05/2021,3675302,"1,465.90",0.00,N/A,N/A
People Services - Children & Young People,Integrated Services,Non-Schools,FOSTER CARE ASSOCIATES LTD fca,1109506,04/05/2021,3675302,"1,382.50",0.00,N/A,N/A
People Services - Children & Young People,Integrated Services,Non-Schools,FOSTER CARE ASSOCIATES LTD fca,1109506,04/05/2021,3675302,"2,488.50",0.00,N/A,N/A
People Services - Children & Young People,Integrated Services,Non-Schools,FOSTER CARE ASSOCIATES LTD fca,1109506,04/05/2021,3675302,"2,443.50",0.00,N/A,N/A
People Services - Children & Young People,Integrated Services,Non-Schools,FOSTER CARE ASSOCIATES LTD fca,1109506,04/05/2021,3675302,"2,443.50",0.00,N/A,N/A
People Services - Children & Young People,Integrated Services,Non-Schools,FOSTER CARE ASSOCIATES LTD fca,1109506,04/05/2021,3675302,"2,071.80",0.00,N/A,N/A
People Services - Children & Young People,Integrated Services,Non-Schools,FOSTER CARE ASSOCIATES LTD fca,1109506,04/05/2021,3675302,"2,071.80",0.00,N/A,N/A
People Services - Children & Young People,Integrated Services,Non-Schools,FOSTER CARE ASSOCIATES LTD fca,1109506,04/05/2021,3675302,"2,071.80",0.00,N/A,N/A
People Services - Children & Young People,Integrated Services,Non-Schools,FOSTER CARE ASSOCIATES LTD fca,1109506,04/05/2021,3675302,"2,071.80",0.00,N/A,N/A
People Services - Children & Young People,Integrated Services,Non-Schools,FOSTER CARE ASSOCIATES LTD fca,1109506,04/05/2021,3675302,"1,972.80",0.00,N/A,N/A
People Services - Children & Young People,Integrated Services,Non-Schools,FOSTER CARE ASSOCIATES LTD fca,1109506,04/05/2021,3675312,"3,902.35",0.00,N/A,N/A
People Services - Children & Young People,Integrated Services,Non-Schools,FOSTER CARE ASSOCIATES LTD fca,1109506,04/05/2021,3675302,"1,382.50",0.00,N/A,N/A
People Services - Children & Young People,Integrated Services,Non-Schools,FOSTER CARE ASSOCIATES LTD fca,1109506,04/05/2021,3675302,"1,382.50",0.00,N/A,N/A
People Services - Children & Young People,Integrated Services,Non-Schools,FOSTER CARE ASSOCIATES LTD fca,1109506,04/05/2021,3675302,"1,357.50",0.00,N/A,N/A
People Services - Children & Young People,Integrated Services,Non-Schools,FOSTER CARE ASSOCIATES LTD fca,1109506,04/05/2021,3675302,"1,357.50",0.00,N/A,N/A
People Services - Children & Young People,Integrated Services,Non-Schools,FOSTERING DIMENSIONS LTD,1109507,04/05/2021,3675474,"1,801.80",0.00,N/A,N/A
People Services - Children & Young People,Integrated Services,Non-Schools,FOSTERING DIMENSIONS LTD,1109507,04/05/2021,3675474,"1,801.80",0.00,N/A,N/A
People Services - Children & Young People,Integrated Services,Non-Schools,FOSTERING DIMENSIONS LTD,1109507,04/05/2021,3675474,"1,001.00",0.00,N/A,N/A
People Services - Children & Young People,Integrated Services,Non-Schools,FOSTERING DIMENSIONS LTD,1109507,04/05/2021,3675474,"1,001.00",0.00,N/A,N/A
People Services - Children & Young People,Integrated Services,Non-Schools,FOSTERING PEOPLE LTD,1109510,04/05/2021,3675242,"1,120.00",0.00,N/A,N/A
People Services - Children & Young People,Integrated Services,Non-Schools,FOSTERING PEOPLE LTD,1109510,04/05/2021,3675242,"1,120.00",0.00,N/A,N/A
People Services - Children & Young People,Integrated Services,Non-Schools,FOSTERING PEOPLE LTD,1109510,04/05/2021,3675242,"1,120.00",0.00,N/A,N/A
People Services - Children & Young People,Integrated Services,Non-Schools,FOSTERING PEOPLE LTD,1109510,04/05/2021,3675242,"1,120.00",0.00,N/A,N/A
People Services - Children & Young People,Integrated Services,Non-Schools,FOSTERING PEOPLE LTD,1109510,04/05/2021,3675242,"2,390.76",0.00,N/A,N/A
People Services - Children & Young People,Integrated Services,Non-Schools,FOSTERING PEOPLE LTD,1109510,04/05/2021,3675242,"2,164.76",0.00,N/A,N/A
People Services - Children & Young People,Integrated Services,Non-Schools,FOSTERING PEOPLE LTD,1109510,04/05/2021,3675242,"2,164.76",0.00,N/A,N/A
People Services - Children & Young People,Integrated Services,Non-Schools,FOSTERING PEOPLE LTD,1109510,04/05/2021,3675242,"2,164.76",0.00,N/A,N/A
People Services - Children & Young People,Integrated Services,Non-Schools,FOSTERING PEOPLE LTD,1109510,04/05/2021,3675242,"2,164.76",0.00,N/A,N/A
People Services - Children & Young People,Integrated Services,Non-Schools,FOSTERING PEOPLE LTD,1109510,04/05/2021,3675242,"2,164.76",0.00,N/A,N/A
People Services - Children & Young People,Integrated Services,Non-Schools,FOSTERING PEOPLE LTD,1109510,04/05/2021,3675242,"2,306.16",0.00,N/A,N/A
People Services - Children & Young People,Integrated Services,Non-Schools,FOSTERING PEOPLE LTD,1109510,04/05/2021,3675242,"2,306.16",0.00,N/A,N/A
People Services - Children & Young People,Integrated Services,Non-Schools,FOSTERING PEOPLE LTD,1109510,04/05/2021,3675242,"2,245.70",0.00,N/A,N/A
People Services - Children & Young People,Integrated Services,Non-Schools,FOSTERING PEOPLE LTD,1109510,04/05/2021,3675242,"2,030.12",0.00,N/A,N/A
People Services - Children & Young People,Integrated Services,Non-Schools,FOSTERING PEOPLE LTD,1109510,04/05/2021,3675242,"2,030.12",0.00,N/A,N/A
People Services - Children & Young People,Integrated Services,Non-Schools,FOSTERING PEOPLE LTD,1109510,04/05/2021,3675242,"2,030.12",0.00,N/A,N/A
People Services - Children & Young People,Integrated Services,Non-Schools,FOSTERING PEOPLE LTD,1109510,04/05/2021,3675242,"2,030.12",0.00,N/A,N/A
People Services - Children & Young People,Integrated Services,Non-Schools,FOSTERING PEOPLE LTD,1109510,04/05/2021,3675242,"2,030.12",0.00,N/A,N/A
People Services - Children & Young People,Integrated Services,Non-Schools,FOSTERING PEOPLE LTD,1109510,04/05/2021,3675242,"2,030.12",0.00,N/A,N/A
People Services - Children & Young People,Integrated Services,Non-Schools,FOSTERING PEOPLE LTD,1109510,04/05/2021,3675242,"1,999.80",0.00,N/A,N/A
People Services - Children & Young People,Integrated Services,Non-Schools,FOSTERING PEOPLE LTD,1109510,04/05/2021,3675242,"1,999.80",0.00,N/A,N/A
People Services - Children & Young People,Integrated Services,Non-Schools,FOSTERING PEOPLE LTD,1109510,04/05/2021,3675242,"1,111.00",0.00,N/A,N/A
People Services - Children & Young People,Integrated Services,Non-Schools,FOSTERING PEOPLE LTD,1109510,04/05/2021,3675242,"1,111.00",0.00,N/A,N/A
People Services - Children & Young People,Integrated Services,Non-Schools,FOSTERING PEOPLE LTD,1109510,04/05/2021,3675242,"1,111.00",0.00,N/A,N/A
People Services - Children & Young People,Integrated Services,Non-Schools,FOSTERING PEOPLE LTD,1109510,04/05/2021,3675242,"1,120.00",0.00,N/A,N/A
People Services - Children & Young People,Integrated Services,Non-Schools,FOSTERING PEOPLE LTD,1109510,04/05/2021,3675242,"1,120.00",0.00,N/A,N/A
People Services - Children & Young People,Integrated Services,Non-Schools,FOSTERING PEOPLE LTD,1109510,04/05/2021,3675242,"1,111.00",0.00,N/A,N/A
People Services - Children & Young People,Integrated Services,Non-Schools,FOSTERING PEOPLE LTD,1109510,04/05/2021,3675242,"1,111.00",0.00,N/A,N/A
People Services - Children & Young People,Integrated Services,Non-Schools,FOSTERING PEOPLE LTD,1109510,04/05/2021,3675242,"1,120.00",0.00,N/A,N/A
People Services - Children & Young People,Integrated Services,Non-Schools,FOSTERING PEOPLE LTD,1109510,04/05/2021,3675242,"1,111.00",0.00,N/A,N/A
People Services - Children & Young People,Integrated Services,Non-Schools,FOSTERING PEOPLE LTD,1109510,04/05/2021,3675242,"1,999.80",0.00,N/A,N/A
People Services - Children & Young People,Integrated Services,Non-Schools,FOSTERING PEOPLE LTD,1109510,04/05/2021,3675242,"1,999.80",0.00,N/A,N/A
People Services - Children & Young People,Integrated Services,Non-Schools,FOSTERING PEOPLE LTD,1109510,04/05/2021,3675242,"1,999.80",0.00,N/A,N/A
People Services - Children & Young People,Integrated Services,Non-Schools,FOSTERING PEOPLE LTD,1109510,04/05/2021,3675242,"1,999.80",0.00,N/A,N/A
People Services - Children & Young People,Integrated Services,Non-Schools,FOSTERING PEOPLE LTD,1109510,04/05/2021,3675242,"1,999.80",0.00,N/A,N/A
People Services - Children & Young People,Integrated Services,Non-Schools,FOSTERING PEOPLE LTD,1109510,04/05/2021,3675242,"1,999.80",0.00,N/A,N/A
People Services - Children & Young People,Integrated Services,Non-Schools,FOSTERING PEOPLE LTD,1109510,04/05/2021,3675242,"1,999.80",0.00,N/A,N/A
People Services - Children & Young People,Integrated Services,Non-Schools,FOSTERING PEOPLE LTD,1109510,04/05/2021,3675242,"1,999.80",0.00,N/A,N/A
People Services - Children & Young People,Integrated Services,Non-Schools,FOSTERING PEOPLE LTD,1109510,04/05/2021,3675242,"1,980.00",0.00,N/A,N/A
People Services - Children & Young People,Integrated Services,Non-Schools,FOSTERING PEOPLE LTD,1109510,04/05/2021,3675242,"1,980.00",0.00,N/A,N/A
People Services - Children & Young People,Integrated Services,Non-Schools,FOSTERING PEOPLE LTD,1109510,04/05/2021,3675242,"1,944.10",0.00,N/A,N/A
People Services - Children & Young People,Integrated Services,Non-Schools,FOSTERING PEOPLE LTD,1109510,04/05/2021,3675242,"1,899.00",0.00,N/A,N/A
People Services - Children & Young People,Integrated Services,Non-Schools,FOSTERING PEOPLE LTD,1109510,04/05/2021,3675242,"1,899.00",0.00,N/A,N/A
People Services - Children & Young People,Integrated Services,Non-Schools,FOSTERING PEOPLE LTD,1109510,04/05/2021,3675242,"1,899.00",0.00,N/A,N/A
People Services - Children & Young People,Integrated Services,Non-Schools,FOSTERING PEOPLE LTD,1109510,04/05/2021,3675242,"1,899.00",0.00,N/A,N/A
People Services - Children & Young People,Integrated Services,Non-Schools,FOSTERING PEOPLE LTD,1109510,04/05/2021,3675242,"1,899.00",0.00,N/A,N/A
People Services - Children & Young People,Integrated Services,Non-Schools,FOSTERING PEOPLE LTD,1109510,04/05/2021,3675242,"1,899.00",0.00,N/A,N/A
People Services - Children & Young People,Integrated Services,Non-Schools,FOSTERING PEOPLE LTD,1109510,04/05/2021,3675242,"2,030.12",0.00,N/A,N/A
People Services - Children & Young People,Integrated Services,Non-Schools,FOSTERING PEOPLE LTD,1109510,04/05/2021,3675242,"2,030.12",0.00,N/A,N/A
People Services - Children & Young People,Integrated Services,Non-Schools,FOSTERING PEOPLE LTD,1109510,04/05/2021,3675242,"2,000.00",0.00,N/A,N/A
People Services - Children & Young People,Integrated Services,Non-Schools,FOSTERING PEOPLE LTD,1109510,04/05/2021,3675242,"1,899.00",0.00,N/A,N/A
People Services - Children & Young People,Integrated Services,Non-Schools,FOSTERING PEOPLE LTD,1109510,04/05/2021,3675242,"1,899.00",0.00,N/A,N/A
People Services - Children & Young People,Integrated Services,Non-Schools,FOSTERING PEOPLE LTD,1109510,04/05/2021,3675242,"1,899.00",0.00,N/A,N/A
People Services - Children & Young People,Integrated Services,Non-Schools,FOSTERING PEOPLE LTD,1109510,04/05/2021,3675242,"1,899.00",0.00,N/A,N/A
People Services - Children & Young People,Integrated Services,Non-Schools,FOSTERING PEOPLE LTD,1109510,04/05/2021,3675242,"1,798.20",0.00,N/A,N/A
People Services - Children & Young People,Integrated Services,Non-Schools,FOSTERING PEOPLE LTD,1109510,04/05/2021,3675242,"1,798.20",0.00,N/A,N/A
People Services - Children & Young People,Integrated Services,Non-Schools,FOSTERING PEOPLE LTD,1109510,04/05/2021,3675242,"1,798.20",0.00,N/A,N/A
People Services - Children & Young People,Integrated Services,Non-Schools,FOSTERING PEOPLE LTD,1109510,04/05/2021,3675242,"1,714.29",0.00,N/A,N/A
People Services - Children & Young People,Integrated Services,Non-Schools,FOSTERING PEOPLE LTD,1109510,04/05/2021,3675242,"1,427.50",0.00,N/A,N/A
People Services - Children & Young People,Integrated Services,Non-Schools,FOSTERING PEOPLE LTD,1109510,04/05/2021,3675242,"1,328.20",0.00,N/A,N/A
People Services - Children & Young People,Integrated Services,Non-Schools,FOSTERING PEOPLE LTD,1109510,04/05/2021,3675242,"1,328.20",0.00,N/A,N/A
People Services - Children & Young People,Integrated Services,Non-Schools,FOSTERING PEOPLE LTD,1109510,04/05/2021,3675242,"1,328.20",0.00,N/A,N/A
People Services - Children & Young People,Integrated Services,Non-Schools,FOSTERING PEOPLE LTD,1109510,04/05/2021,3675242,"1,328.20",0.00,N/A,N/A
People Services - Children & Young People,Integrated Services,Non-Schools,FOSTERING PEOPLE LTD,1109510,04/05/2021,3675242,"1,281.20",0.00,N/A,N/A
People Services - Children & Young People,Integrated Services,Non-Schools,FOSTERING PEOPLE LTD,1109510,04/05/2021,3675242,"1,281.20",0.00,N/A,N/A
People Services - Children & Young People,Integrated Services,Non-Schools,FOSTERING PEOPLE LTD,1109510,04/05/2021,3675242,"1,266.00",0.00,N/A,N/A
People Services - Children & Young People,Integrated Services,Non-Schools,FOSTERING PEOPLE LTD,1109510,04/05/2021,3675242,"1,194.29",0.00,N/A,N/A
People Services - Children & Young People,Integrated Services,Non-Schools,FOSTERING PEOPLE LTD,1109510,04/05/2021,3675242,"1,194.29",0.00,N/A,N/A
People Services - Children & Young People,Integrated Services,Non-Schools,FOSTERING PEOPLE LTD,1109510,04/05/2021,3675242,"1,194.29",0.00,N/A,N/A
People Services - Children & Young People,Integrated Services,Non-Schools,FOSTERING PEOPLE LTD,1109510,04/05/2021,3675242,"1,111.00",0.00,N/A,N/A
People Services - Children & Young People,Integrated Services,Non-Schools,FOSTERING PEOPLE LTD,1109510,04/05/2021,3675242,"1,111.00",0.00,N/A,N/A
People Services - Children & Young People,Integrated Services,Non-Schools,FOSTERING PEOPLE LTD,1109510,04/05/2021,3675242,"1,111.00",0.00,N/A,N/A
People Services - Children & Young People,Integrated Services,Non-Schools,FOSTERING PEOPLE LTD,1109510,04/05/2021,3675242,"1,111.00",0.00,N/A,N/A
People Services - Children & Young People,Integrated Services,Non-Schools,FOSTERING PEOPLE LTD,1109510,04/05/2021,3675242,"1,100.00",0.00,N/A,N/A
People Services - Children & Young People,Integrated Services,Non-Schools,FOSTERING PEOPLE LTD,1109510,04/05/2021,3675242,"1,100.00",0.00,N/A,N/A
People Services - Children & Young People,Integrated Services,Non-Schools,FOSTERING PEOPLE LTD,1109510,04/05/2021,3675242,"1,055.00",0.00,N/A,N/A
People Services - Children & Young People,Integrated Services,Non-Schools,FOSTERING PEOPLE LTD,1109510,04/05/2021,3675242,"1,055.00",0.00,N/A,N/A
People Services - Children & Young People,Integrated Services,Non-Schools,FOSTERING PEOPLE LTD,1109510,04/05/2021,3675242,"1,571.99",0.00,N/A,N/A
People Services - Children & Young People,Integrated Services,Non-Schools,FOSTERING PEOPLE LTD,1109510,04/05/2021,3675242,"4,042.26",0.00,N/A,N/A
People Services - Children & Young People,Integrated Services,Non-Schools,FOSTERING PEOPLE LTD,1109510,04/05/2021,3675242,"3,600.00",0.00,N/A,N/A
People Services - Children & Young People,Integrated Services,Non-Schools,FOSTERING PEOPLE LTD,1109510,04/05/2021,3675242,"1,194.29",0.00,N/A,N/A
People Services - Children & Young People,Integrated Services,Non-Schools,FOSTERING PEOPLE LTD,1109510,04/05/2021,3675242,"1,194.29",0.00,N/A,N/A
People Services - Children & Young People,Integrated Services,Non-Schools,FOSTERING PEOPLE LTD,1109510,04/05/2021,3675242,"1,120.00",0.00,N/A,N/A
People Services - Children & Young People,Integrated Services,Non-Schools,FOSTERING PEOPLE LTD,1109510,04/05/2021,3675242,"1,055.00",0.00,N/A,N/A
People Services - Children & Young People,Integrated Services,Non-Schools,FOSTERING PEOPLE LTD,1109510,04/05/2021,3675242,"1,055.00",0.00,N/A,N/A
People Services - Children & Young People,Integrated Services,Non-Schools,FOSTERING PEOPLE LTD,1109510,04/05/2021,3675242,"1,055.00",0.00,N/A,N/A
People Services - Children & Young People,Integrated Services,Non-Schools,FOSTERING PEOPLE LTD,1109510,04/05/2021,3675242,"1,055.00",0.00,N/A,N/A
People Services - Children & Young People,Integrated Services,Non-Schools,FOSTERING PEOPLE LTD,1109510,04/05/2021,3675242,"1,055.00",0.00,N/A,N/A
People Services - Children & Young People,Integrated Services,Non-Schools,FOSTERING PEOPLE LTD,1109510,04/05/2021,3675242,"1,055.00",0.00,N/A,N/A
People Services - Children & Young People,Integrated Services,Non-Schools,FOSTERING PEOPLE LTD,1109510,04/05/2021,3675242,"1,055.00",0.00,N/A,N/A
People Services - Children & Young People,Integrated Services,Non-Schools,FOSTERING PEOPLE LTD,1109510,04/05/2021,3675242,"1,055.00",0.00,N/A,N/A
People Services - Children & Young People,Integrated Services,Non-Schools,FOSTERING PEOPLE LTD,1109510,04/05/2021,3675242,"1,055.00",0.00,N/A,N/A
People Services - Children & Young People,Integrated Services,Non-Schools,FOSTERING PEOPLE LTD,1109510,04/05/2021,3675242,999.00,0.00,N/A,N/A
People Services - Children & Young People,Integrated Services,Non-Schools,FOSTERING PEOPLE LTD,1109510,04/05/2021,3675242,999.00,0.00,N/A,N/A
People Services - Children & Young People,Integrated Services,Non-Schools,FOSTERING PEOPLE LTD,1109510,04/05/2021,3675242,999.00,0.00,N/A,N/A
People Services - Children & Young People,Integrated Services,Non-Schools,FOSTERING PEOPLE LTD,1109510,04/05/2021,3675242,841.85,0.00,N/A,N/A
People Services - Children & Young People,Integrated Services,Non-Schools,FOSTERING PEOPLE LTD,1109510,04/05/2021,3675242,841.85,0.00,N/A,N/A
People Services - Children & Young People,Integrated Services,Non-Schools,FOSTERING PEOPLE LTD,1109510,04/05/2021,3675242,666.60,0.00,N/A,N/A
People Services - Children & Young People,Integrated Services,Non-Schools,FOSTERING PEOPLE LTD,1109510,04/05/2021,3675242,"3,499.38",0.00,N/A,N/A
People Services - Children & Young People,Integrated Services,Non-Schools,FOSTERING PEOPLE LTD,1109510,04/05/2021,3675242,"3,107.31",0.00,N/A,N/A
People Services - Children & Young People,Integrated Services,Non-Schools,FOSTERING PEOPLE LTD,1109510,04/05/2021,3675242,"2,569.50",0.00,N/A,N/A
People Services - Children & Young People,Integrated Services,Non-Schools,FOSTERING PEOPLE LTD,1109510,04/05/2021,3675242,"2,390.76",0.00,N/A,N/A
People Services - Children & Young People,Integrated Services,Non-Schools,FOSTERING PEOPLE LTD,1109510,04/05/2021,3675242,"2,390.76",0.00,N/A,N/A
People Services - Children & Young People,Integrated Services,Non-Schools,FOSTERING PEOPLE LTD,1109510,04/05/2021,3675242,"2,390.76",0.00,N/A,N/A
People Services - Children & Young People,Integrated Services,Non-Schools,FOSTERING SOLUTIONS LTD,1109511,04/05/2021,3675287,"1,064.30",0.00,N/A,N/A
People Services - Children & Young People,Integrated Services,Non-Schools,FOSTERING SOLUTIONS LTD,1109511,04/05/2021,3675287,"1,028.57",0.00,N/A,N/A
People Services - Children & Young People,Integrated Services,Non-Schools,FOSTERING SOLUTIONS LTD,1109511,04/05/2021,3675287,"1,007.10",0.00,N/A,N/A
People Services - Children & Young People,Integrated Services,Non-Schools,FOSTERING SOLUTIONS LTD,1109511,04/05/2021,3675287,"3,908.57",0.00,N/A,N/A
People Services - Children & Young People,Integrated Services,Non-Schools,FOSTERING SOLUTIONS LTD,1109511,04/05/2021,3675287,"2,550.86",0.00,N/A,N/A
People Services - Children & Young People,Integrated Services,Non-Schools,FOSTERING SOLUTIONS LTD,1109511,04/05/2021,3675287,"2,171.43",0.00,N/A,N/A
People Services - Children & Young People,Integrated Services,Non-Schools,FOSTERING SOLUTIONS LTD,1109511,04/05/2021,3675287,"2,106.00",0.00,N/A,N/A
People Services - Children & Young People,Integrated Services,Non-Schools,FOSTERING SOLUTIONS LTD,1109511,04/05/2021,3675287,"1,993.86",0.00,N/A,N/A
People Services - Children & Young People,Integrated Services,Non-Schools,FOSTERING SOLUTIONS LTD,1109511,04/05/2021,3675287,"1,993.86",0.00,N/A,N/A
People Services - Children & Young People,Integrated Services,Non-Schools,FOSTERING SOLUTIONS LTD,1109511,04/05/2021,3675287,"1,915.74",0.00,N/A,N/A
People Services - Children & Young People,Integrated Services,Non-Schools,FOSTERING SOLUTIONS LTD,1109511,04/05/2021,3675287,"1,864.39",0.00,N/A,N/A
People Services - Children & Young People,Integrated Services,Non-Schools,FOSTERING SOLUTIONS LTD,1109511,04/05/2021,3675287,"1,812.78",0.00,N/A,N/A
People Services - Children & Young People,Integrated Services,Non-Schools,FOSTERING SOLUTIONS LTD,1109511,04/05/2021,3675287,"1,417.14",0.00,N/A,N/A
People Services - Children & Young People,Integrated Services,Non-Schools,FOSTERING SOLUTIONS LTD,1109511,04/05/2021,3675287,"1,170.00",0.00,N/A,N/A
People Services - Children & Young People,Integrated Services,Non-Schools,FOSTERING SOLUTIONS LTD,1109511,04/05/2021,3675287,"1,100.00",0.00,N/A,N/A
People Services - Children & Young People,Integrated Services,Non-Schools,FOSTERING SOLUTIONS LTD,1109511,04/05/2021,3675287,"1,100.00",0.00,N/A,N/A
Communities & Place,Economic Development,City Development & Growth,FRESHWATER ACCOUNTING LIMITED,1559494,04/05/2021,3672662,"1,200.00",0.00,N/A,N/A
People Services - Adults and Health,Learning Disability Support,Transitions and Ordinary Lives,FULLWOOD HOUSE ACH LTD,222389,04/05/2021,3676816,"2,154.44",0.00,N/A,N/A
People Services - Adults and Health,Learning Disability Support,Transitions and Ordinary Lives,FULLWOOD HOUSE ACH LTD,222389,04/05/2021,3676817,"2,200.00",0.00,N/A,N/A
People Services - Adults and Health,Learning Disability Support,Transitions and Ordinary Lives,FULLWOOD HOUSE ACH LTD,222389,04/05/2021,3676939,"2,786.24",0.00,N/A,N/A
People Services - Children & Young People,Integrated Services,Non-Schools,FUSION FOSTERING,1112468,04/05/2021,3675409,"1,178.57",0.00,N/A,N/A
People Services - Children & Young People,Integrated Services,Non-Schools,FUSION FOSTERING,1112468,04/05/2021,3675409,"2,278.70",0.00,N/A,N/A
People Services - Children & Young People,Integrated Services,Non-Schools,FUSION FOSTERING,1112468,04/05/2021,3675409,"2,278.70",0.00,N/A,N/A
People Services - Children & Young People,Integrated Services,Non-Schools,FUSION FOSTERING,1112468,04/05/2021,3675409,"2,278.70",0.00,N/A,N/A
People Services - Children & Young People,Integrated Services,Non-Schools,FUSION FOSTERING,1112468,04/05/2021,3675409,"2,278.70",0.00,N/A,N/A
People Services - Children & Young People,Integrated Services,Non-Schools,FUSION FOSTERING,1112468,04/05/2021,3675409,"2,169.95",0.00,N/A,N/A
People Services - Children & Young People,Integrated Services,Non-Schools,FUSION FOSTERING,1112468,04/05/2021,3675409,"2,169.95",0.00,N/A,N/A
People Services - Children & Young People,Integrated Services,Non-Schools,FUSION FOSTERING,1112468,04/05/2021,3675409,"2,169.95",0.00,N/A,N/A
People Services - Children & Young People,Integrated Services,Non-Schools,FUSION FOSTERING,1112468,04/05/2021,3675409,"2,169.95",0.00,N/A,N/A
People Services - Children & Young People,Integrated Services,Non-Schools,FUSION FOSTERING,1112468,04/05/2021,3675409,"2,121.43",0.00,N/A,N/A
People Services - Children & Young People,Integrated Services,Non-Schools,FUSION FOSTERING,1112468,04/05/2021,3675409,"2,011.99",0.00,N/A,N/A
People Services - Children & Young People,Integrated Services,Non-Schools,FUSION FOSTERING,1112468,04/05/2021,3675409,"1,321.43",0.00,N/A,N/A
People Services - Children & Young People,Integrated Services,Non-Schools,FUSION FOSTERING,1112468,04/05/2021,3675409,"1,321.43",0.00,N/A,N/A
People Services - Children & Young People,Integrated Services,Non-Schools,FUSION FOSTERING,1112468,04/05/2021,3675409,"1,321.43",0.00,N/A,N/A
People Services - Children & Young People,Integrated Services,Non-Schools,FUSION FOSTERING,1112468,04/05/2021,3675409,"1,321.43",0.00,N/A,N/A
People Services - Children & Young People,Integrated Services,Non-Schools,FUSION FOSTERING,1112468,04/05/2021,3675409,"1,207.14",0.00,N/A,N/A
People Services - Children & Young People,Integrated Services,Non-Schools,FUSION FOSTERING,1112468,04/05/2021,3675409,"1,207.14",0.00,N/A,N/A
People Services - Children & Young People,Integrated Services,Non-Schools,FUSION FOSTERING,1112468,04/05/2021,3675409,"1,207.14",0.00,N/A,N/A
People Services - Children & Young People,Integrated Services,Non-Schools,FUSION FOSTERING,1112468,04/05/2021,3675409,"1,207.14",0.00,N/A,N/A
People Services - Children & Young People,Integrated Services,Non-Schools,FUSION FOSTERING,1112468,04/05/2021,3675409,"1,178.57",0.00,N/A,N/A
Communities & Place,Regeneration and Major Projects,City Development & Growth,G2V RECRUITMENT GROUP LIMITED,886471,04/05/2021,3672581,"4,781.25",0.00,Regeneration Projects,Management and Business Professionals an
Communities & Place,Strategic Housing,City Development & Growth,G2V RECRUITMENT GROUP LIMITED,886471,04/05/2021,3672580,"1,796.72",0.00,Housing Revenue Account,Management and Business Professionals an
People Services - Adults and Health,Learning Disability Support,Community Support,GELDARD AND SON LIMITED,1144470,04/05/2021,3672531,"2,744.00",0.00,South Adults (under 65) LD - DP/Mgd,Healthcare Services
People Services - Adults and Health,Learning Disability Support,Community Support,GELDARD AND SON LIMITED,1144470,04/05/2021,3672547,"1,218.00",0.00,South Adults (under 65) LD - DP/Mgd,Healthcare Services
Neighbourhoods,Neighbourhoods,Neighbourhoods,GELDARDS LLP,1431476,04/05/2021,3672983,"32,659.85",0.00,N/A,N/A
Neighbourhoods,Neighbourhoods,Neighbourhoods,GELDER LIMITED,1519478,04/05/2021,3675154,"91,401.56",0.00,N/A,N/A
Children and Young People,Children and Young People,Children and Young People,GF TOMLINSON BUILDING LTD,188552,04/05/2021,3675157,"40,199.85",0.00,N/A,N/A
People Services - Adults and Health,Mental Health Support,Mental Health,GILBY HOUSE NURSING HOME,471192,04/05/2021,3676941,992.60,0.00,N/A,N/A
People Services - Adults and Health,Physical Support,Community Support,GOKUL VRANDAVAN CARE HOME,1446485,04/05/2021,3676769,"2,420.00",0.00,N/A,N/A
People Services - Adults and Health,Learning Disability Support,Transitions and Ordinary Lives,GRATIA RESIDENTIAL HOME,10590,04/05/2021,3676936,"3,148.56",0.00,N/A,N/A
People Services - Children & Young People,Integrated Services,Non-Schools,GREENLEAF HOUSE CO LIMITED,1398478,04/05/2021,3675173,"27,077.14",0.00,N/A,N/A
People Services - Children & Young People,Integrated Services,Non-Schools,GREENLEAF HOUSE CO LIMITED,1398478,04/05/2021,3675173,"15,042.86",0.00,N/A,N/A
People Services - Adults and Health,Physical Support,Community Support,GREENWICH GARDENS EXTRA CAS DCS,537476,04/05/2021,3674412,647.59,0.00,N/A,N/A
People Services - Adults and Health,Physical Support,Community Support,GREENWICH GARDENS EXTRA CAS DCS,537476,04/05/2021,3674410,744.27,0.00,N/A,N/A
People Services - Adults and Health,Physical Support,Community Support,GREENWICH GARDENS EXTRA CAS DCS,537476,04/05/2021,3674411,744.27,0.00,N/A,N/A
People Services - Adults and Health,Physical Support,Community Support,GREENWICH GARDENS EXTRA CAS DCS,537476,04/05/2021,3673411,"1,042.04",0.00,N/A,N/A
People Services - Adults and Health,Physical Support,Community Support,GREENWICH GARDENS EXTRA CAS DCS,537476,04/05/2021,3673419,890.73,0.00,N/A,N/A
People Services - Adults and Health,Physical Support,Community Support,GREENWICH GARDENS EXTRA CAS DCS,537476,04/05/2021,3673246,"1,147.47",0.00,N/A,N/A
People Services - Adults and Health,Physical Support,Community Support,GREENWICH GARDENS EXTRA CAS DCS,537476,04/05/2021,3673536,516.67,0.00,N/A,N/A
People Services - Adults and Health,Physical Support,Community Support,GREENWICH GARDENS EXTRA CAS DCS,537476,04/05/2021,3673537,590.67,0.00,N/A,N/A
People Services - Adults and Health,Physical Support,Community Support,GREENWICH GARDENS EXTRA CAS DCS,537476,04/05/2021,3673538,623.23,0.00,N/A,N/A
People Services - Adults and Health,Physical Support,Community Support,GREENWICH GARDENS EXTRA CAS DCS,537476,04/05/2021,3673777,562.54,0.00,N/A,N/A
People Services - Adults and Health,Physical Support,Community Support,GREENWICH GARDENS EXTRA CAS DCS,537476,04/05/2021,3673778,744.15,0.00,N/A,N/A
People Services - Adults and Health,Physical Support,Community Support,GREENWICH GARDENS EXTRA CAS DCS,537476,04/05/2021,3673766,820.08,0.00,N/A,N/A
People Services - Adults and Health,Physical Support,Community Support,GREENWICH GARDENS EXTRA CAS DCS,537476,04/05/2021,3674323,942.08,0.00,N/A,N/A
People Services - Adults and Health,Physical Support,Community Support,GREENWICH GARDENS EXTRA CAS DCS,537476,04/05/2021,3674330,516.93,0.00,N/A,N/A
People Services - Adults and Health,Physical Support,Community Support,GREENWICH GARDENS EXTRA CAS DCS,537476,04/05/2021,3674331,531.49,0.00,N/A,N/A
People Services - Adults and Health,Physical Support,Community Support,GREENWICH GARDENS EXTRA CAS DCS,537476,04/05/2021,3674220,942.08,0.00,N/A,N/A
People Services - Adults and Health,Physical Support,Community Support,GREENWICH GARDENS EXTRA CAS DCS,537476,04/05/2021,3674221,"1,261.08",0.00,N/A,N/A
People Services - Adults and Health,Physical Support,Community Support,GREENWICH GARDENS EXTRA CAS DCS,537476,04/05/2021,3673253,787.76,0.00,N/A,N/A
People Services - Adults and Health,Physical Support,Community Support,GREENWICH GARDENS EXTRA CAS DCS,537476,04/05/2021,3673528,665.79,0.00,N/A,N/A
People Services - Adults and Health,Physical Support,Community Support,GREENWICH GARDENS EXTRA CAS DCS,537476,04/05/2021,3673529,710.84,0.00,N/A,N/A
People Services - Adults and Health,Physical Support,Community Support,GREENWICH GARDENS EXTRA CAS DCS,537476,04/05/2021,3673976,562.54,0.00,N/A,N/A
People Services - Adults and Health,Physical Support,Community Support,GREENWICH GARDENS EXTRA CAS DCS,537476,04/05/2021,3674215,820.08,0.00,N/A,N/A
People Services - Adults and Health,Physical Support,Community Support,GREENWICH GARDENS EXTRA CAS DCS,537476,04/05/2021,3674226,531.49,0.00,N/A,N/A
People Services - Adults and Health,Physical Support,Community Support,GREENWICH GARDENS EXTRA CAS DCS,537476,04/05/2021,3673410,887.72,0.00,N/A,N/A
People Services - Adults and Health,Physical Support,Community Support,GREENWICH GARDENS EXTRA CAS DCS,537476,04/05/2021,3673406,781.53,0.00,N/A,N/A
People Services - Adults and Health,Physical Support,Community Support,GREENWICH GARDENS EXTRA CAS DCS,537476,04/05/2021,3673413,887.51,0.00,N/A,N/A
People Services - Adults and Health,Physical Support,Community Support,GREENWICH GARDENS EXTRA CAS DCS,537476,04/05/2021,3674406,608.61,0.00,N/A,N/A
People Services - Adults and Health,Physical Support,Community Support,GREENWICH GARDENS EXTRA CAS DCS,537476,04/05/2021,3674407,998.39,0.00,N/A,N/A
People Services - Adults and Health,Physical Support,Community Support,GREENWICH GARDENS EXTRA CAS DCS,537476,04/05/2021,3673256,588.93,0.00,N/A,N/A
People Services - Adults and Health,Sensory Support,Community Support,GREENWICH GARDENS EXTRA CAS DCS,537476,04/05/2021,3673539,683.35,0.00,N/A,N/A
People Services - Adults and Health,Sensory Support,Community Support,GREENWICH GARDENS EXTRA CAS DCS,537476,04/05/2021,3673769,"1,139.48",0.00,N/A,N/A
People Services - Adults and Health,Sensory Support,Community Support,GREENWICH GARDENS EXTRA CAS DCS,537476,04/05/2021,3674324,787.76,0.00,N/A,N/A
People Services - Adults and Health,Mental Health Support,Community Support,GREENWICH GARDENS EXTRA CAS DCS,537476,04/05/2021,3674231,623.23,0.00,N/A,N/A
People Services - Adults and Health,Mental Health Support,Community Support,GREENWICH GARDENS EXTRA CAS DCS,537476,04/05/2021,3673770,909.69,0.00,N/A,N/A
People Services - Adults and Health,Mental Health Support,Community Support,GREENWICH GARDENS EXTRA CAS DCS,537476,04/05/2021,3673421,516.67,0.00,N/A,N/A
People Services - Adults and Health,Mental Health Support,Community Support,GREENWICH GARDENS EXTRA CAS DCS,537476,04/05/2021,3673254,909.69,0.00,N/A,N/A
People Services - Adults and Health,Mental Health Support,Community Support,GREENWICH GARDENS EXTRA CAS DCS,537476,04/05/2021,3673783,623.23,0.00,N/A,N/A
People Services - Adults and Health,Learning Disability Support,Transitions and Ordinary Lives,GRETTON HOMES,10594,04/05/2021,3676861,"6,699.08",0.00,N/A,N/A
Communities & Place,"Highways, Gounds Maintenance and Flood Defence",Public Protection and Streetride,GTM GO TRAFFIC MANAGEMENT,200402,04/05/2021,3672937,900.00,0.00,Highways Maintenance Reactionary Works,Defense and Law Enforcement and Security
People Services - Adults and Health,Mental Health Support,Mental Health,HALCYON LIVING 111 LTD,473756,04/05/2021,3676902,"1,517.80",0.00,N/A,N/A
People Services - Children & Young People,Integrated Services,Non-Schools,HANDS FREE COMPUTING LTD,220401,04/05/2021,3664140,"1,540.00",0.00,Rosewood,Information Technology Broadcasting and
People Services - Children & Young People,Integrated Services,Non-Schools,HANDS FREE COMPUTING LTD,220401,04/05/2021,3664140,"1,395.85",0.00,Rosewood,Information Technology Broadcasting and
People Services - Children & Young People,Integrated Services,Non-Schools,HANDS FREE COMPUTING LTD,220401,04/05/2021,3664140,"2,180.00",0.00,Rosewood,Information Technology Broadcasting and
People Services - Children & Young People,Integrated Services,Non-Schools,HANDS FREE COMPUTING LTD,220401,04/05/2021,3664140,"2,935.85",0.00,Rosewood,Information Technology Broadcasting and
People Services - Adults and Health,Learning Disability Support,Transitions and Ordinary Lives,HAREWOOD PARK NURSING HOME,10593,04/05/2021,3676881,"2,801.56",0.00,N/A,N/A
People Services - Children & Young People,Integrated Services,Non-Schools,HAVEN CARE GROUP,1349523,04/05/2021,3675184,"11,639.49",0.00,N/A,N/A
People Services - Children & Young People,Integrated Services,Non-Schools,HAVEN CARE GROUP,1349523,04/05/2021,3675184,"6,421.43",0.00,N/A,N/A
People Services - Children & Young People,Integrated Services,Non-Schools,HAVEN CARE GROUP,1349523,04/05/2021,3675184,"7,705.71",0.00,N/A,N/A
People Services - Adults and Health,Physical Support,Community Support,HC ONE LIMITED,1111483,04/05/2021,3676980,"2,038.76",0.00,N/A,N/A
People Services - Adults and Health,Support with Memory and Cognition,Community Support,HC ONE OVAL LTD,119813,04/05/2021,3676315,"2,227.64",0.00,N/A,N/A
People Services - Adults and Health,Physical Support,Community Support,HC ONE OVAL LTD,119813,04/05/2021,3676482,"2,318.48",0.00,N/A,N/A
People Services - Adults and Health,Physical Support,Community Support,HC ONE OVAL LTD,119813,04/05/2021,3676411,"2,227.64",0.00,N/A,N/A
People Services - Adults and Health,Physical Support,Community Support,HC ONE OVAL LTD,119813,04/05/2021,3676449,"2,227.64",0.00,N/A,N/A
People Services - Adults and Health,Physical Support,Community Support,HC ONE OVAL LTD,119813,04/05/2021,3676412,"2,227.64",0.00,N/A,N/A
People Services - Adults and Health,Physical Support,Community Support,HC ONE OVAL LTD,119813,04/05/2021,3676450,"2,169.32",0.00,N/A,N/A
People Services - Adults and Health,Physical Support,Community Support,HC ONE OVAL LTD,119813,04/05/2021,3676347,"2,169.32",0.00,N/A,N/A
People Services - Adults and Health,Physical Support,Community Support,HC ONE OVAL LTD,119813,04/05/2021,3676374,"2,227.64",0.00,N/A,N/A
People Services - Adults and Health,Physical Support,Community Support,HC ONE OVAL LTD,119813,04/05/2021,3676451,"2,227.64",0.00,N/A,N/A
People Services - Adults and Health,Physical Support,Community Support,HC ONE OVAL LTD,119813,04/05/2021,3676373,"2,227.64",0.00,N/A,N/A
People Services - Adults and Health,Physical Support,Community Support,HC ONE OVAL LTD,119813,04/05/2021,3676401,"1,864.66",0.00,N/A,N/A
People Services - Adults and Health,Physical Support,Community Support,HC ONE OVAL LTD,119813,04/05/2021,3676338,"1,010.03",0.00,N/A,N/A
People Services - Adults and Health,Mental Health Support,Mental Health,HC ONE OVAL LTD,119813,04/05/2021,3676970,"1,243.20",0.00,N/A,N/A
People Services - Adults and Health,Physical Support,Community Support,HC ONE OVAL LTD,119813,04/05/2021,3676448,"2,169.32",0.00,N/A,N/A
People Services - Adults and Health,Physical Support,Community Support,HC ONE OVAL LTD,119813,04/05/2021,3676301,"1,455.56",0.00,N/A,N/A
People Services - Adults and Health,Learning Disability Support,Transitions and Ordinary Lives,HC ONE OVAL LTD,119813,04/05/2021,3676483,"2,169.32",0.00,N/A,N/A
People Services - Adults and Health,Mental Health Support,Mental Health,HC ONE OVAL LTD,119813,04/05/2021,3676435,"1,864.66",0.00,N/A,N/A
People Services - Adults and Health,Mental Health Support,Mental Health,HC ONE OVAL LTD,119813,04/05/2021,3676476,854.64,0.00,N/A,N/A
People Services - Adults and Health,Mental Health Support,Mental Health,HC ONE OVAL LTD,119813,04/05/2021,3676477,"1,113.82",0.00,N/A,N/A
People Services - Adults and Health,Mental Health Support,Mental Health,HC ONE OVAL LTD,119813,04/05/2021,3676367,"2,175.44",0.00,N/A,N/A
People Services - Adults and Health,Mental Health Support,Mental Health,HC ONE OVAL LTD,119813,04/05/2021,3676323,"2,227.64",0.00,N/A,N/A
People Services - Adults and Health,Mental Health Support,Mental Health,HC ONE OVAL LTD,119813,04/05/2021,3676314,"2,175.44",0.00,N/A,N/A
People Services - Children & Young People,Integrated Services,Non-Schools,HEATH FARM FOSTERING,1112471,04/05/2021,3675273,"3,728.57",0.00,N/A,N/A
People Services - Children & Young People,Integrated Services,Non-Schools,HEATH FARM FOSTERING,1112471,04/05/2021,3675273,"2,071.43",0.00,N/A,N/A
People Services - Children & Young People,Integrated Services,Non-Schools,HEATH FARM FOSTERING,1112471,04/05/2021,3675273,"1,714.29",0.00,N/A,N/A
People Services - Children & Young People,Integrated Services,Non-Schools,HEATH FARM FOSTERING,1112471,04/05/2021,3675273,"1,714.29",0.00,N/A,N/A
People Services - Adults and Health,Learning Disability Support,Transitions and Ordinary Lives,HEATHCOTES CARE LTD,22350,04/05/2021,3676885,"7,813.96",0.00,N/A,N/A
People Services - Adults and Health,Learning Disability Support,Transitions and Ordinary Lives,HEATHCOTES CARE LTD,22350,04/05/2021,3676886,"9,993.68",0.00,N/A,N/A
People Services - Adults and Health,Learning Disability Support,Transitions and Ordinary Lives,HEATHCOTES CARE LTD,22350,04/05/2021,3676765,"8,681.08",0.00,N/A,N/A
People Services - Adults and Health,Learning Disability Support,Transitions and Ordinary Lives,HEATHCOTES CARE LTD,22350,04/05/2021,3676844,"8,400.00",0.00,N/A,N/A
People Services - Adults and Health,Learning Disability Support,Transitions and Ordinary Lives,HEATHCOTES CARE LTD,22350,04/05/2021,3676802,"1,378.92",0.00,N/A,N/A
People Services - Adults and Health,Learning Disability Support,Transitions and Ordinary Lives,HEATHCOTES DERBY,568444,04/05/2021,3677143,"7,094.92",0.00,N/A,N/A
People Services - Adults and Health,Learning Disability Support,Transitions and Ordinary Lives,HEATHCOTES DERBY,568444,04/05/2021,3677127,"7,334.56",0.00,N/A,N/A
People Services - Adults and Health,Learning Disability Support,Transitions and Ordinary Lives,HEATHCOTES DERBY,568444,04/05/2021,3677071,"8,529.72",0.00,N/A,N/A
People Services - Adults and Health,Physical Support,Community Support,HEATHCOTES DERBY,568444,04/05/2021,3677142,"2,523.24",0.00,N/A,N/A
People Services - Adults and Health,Physical Support,Community Support,HEATHCOTES DERBY,568444,04/05/2021,3677141,"5,887.52",0.00,N/A,N/A
People Services - Adults and Health,Learning Disability Support,Community Support,HEATHCOTES DERBY,568444,04/05/2021,3677088,"8,189.72",0.00,N/A,N/A
People Services - Adults and Health,Emergency Planning,Commissioning,HEATHCOTES DERBY,568442,04/05/2021,3673055,"2,416.83",0.00,N/A,N/A
People Services - Adults and Health,Mental Health Support,Mental Health,HEGARTY CARE LIMITED,924470,04/05/2021,3677115,"3,725.00",0.00,N/A,N/A
People Services - Adults and Health,Learning Disability Support,Transitions and Ordinary Lives,HEGARTY CARE LIMITED,924470,04/05/2021,3677073,"12,389.48",0.00,N/A,N/A
People Services - Adults and Health,Learning Disability Support,Transitions and Ordinary Lives,HEGARTY CARE LIMITED,924470,04/05/2021,3677116,"12,250.00",0.00,N/A,N/A
Communities & Place,"Highways, Gounds Maintenance and Flood Defence",Public Protection and Streetride,HGV DIRECT,2404,04/05/2021,3672532,504.44,0.00,Grounds Maintenance,Commercial and Military and Private Vehi-Aerospace systems and components and equ
Communities & Place,"Waste, Street Cleansing & Fleet",Public Protection and Streetride,HGV DIRECT,2404,04/05/2021,3672950,675.00,0.00,Vehicle Maintenance,Commercial and Military and Private Vehi-Aerospace systems and components and equ
People Services - Adults and Health,Learning Disability Support,Transitions and Ordinary Lives,HICA GROUP,1255471,04/05/2021,3677020,"2,186.96",0.00,N/A,N/A
Corporate Resources,Communication and Consultation,Coroprate Core,HICKLING AND SQUIRES LTD,1103476,04/05/2021,3664053,"1,410.00",0.00,Corporate Communications,Editorial and Design and Graphic and Fin
People Services - Adults and Health,Learning Disability Support,Transitions and Ordinary Lives,HIGHFIELD COURT CARE COMPLEX,10608,04/05/2021,3676863,"2,192.72",0.00,N/A,N/A
People Services - Adults and Health,Learning Disability Support,Transitions and Ordinary Lives,HIGHFIELD COURT CARE COMPLEX,10608,04/05/2021,3676864,"4,810.40",0.00,N/A,N/A
People Services - Adults and Health,Learning Disability Support,Transitions and Ordinary Lives,HIGHFIELD COURT CARE COMPLEX,10608,04/05/2021,3676737,"3,000.00",0.00,N/A,N/A
People Services - Adults and Health,Learning Disability Support,Transitions and Ordinary Lives,HIGHFIELD COURT CARE COMPLEX,10608,04/05/2021,3676738,"3,200.00",0.00,N/A,N/A
People Services - Adults and Health,Learning Disability Support,Transitions and Ordinary Lives,HIGHFIELD COURT CARE COMPLEX,10608,04/05/2021,3676822,"3,000.00",0.00,N/A,N/A
People Services - Adults and Health,Learning Disability Support,Transitions and Ordinary Lives,HIGHFIELD COURT CARE COMPLEX,10608,04/05/2021,3676865,"2,628.12",0.00,N/A,N/A
People Services - Children & Young People,Integrated Services,Non-Schools,HIGHFIELD HOUSE CC PRIORY,1468491,04/05/2021,3675222,"12,092.63",0.00,N/A,N/A
People Services - Children & Young People,Integrated Services,Non-Schools,HIGHFIELD HOUSE CC PRIORY,1468491,04/05/2021,3675222,"6,671.43",0.00,N/A,N/A
Corporate Resources,Property Design & Maintenance,Property,HIGHFIELD JOINERY AND BUILD SERVS LTD,215391,04/05/2021,3675163,"17,225.00",0.00,N/A,N/A
People Services - Children & Young People,Integrated Services,Non-Schools,HILLCREST CHILDRENS SERVICES 2 LIMITED,1372476,04/05/2021,3675176,"11,409.43",0.00,N/A,N/A
People Services - Children & Young People,Integrated Services,Non-Schools,HILLCREST CHILDRENS SERVICES 2 LIMITED,1372476,04/05/2021,3675176,"9,743.94",0.00,N/A,N/A
People Services - Children & Young People,Integrated Services,Non-Schools,HILLCREST CHILDRENS SERVICES 2 LIMITED,1372476,04/05/2021,3675176,"9,743.94",0.00,N/A,N/A
People Services - Children & Young People,Integrated Services,Non-Schools,HILLCREST CHILDRENS SERVICES 2 LIMITED,1372476,04/05/2021,3675176,"6,338.57",0.00,N/A,N/A
People Services - Children & Young People,Integrated Services,Non-Schools,HILLCREST CHILDRENS SERVICES 2 LIMITED,1372476,04/05/2021,3675176,"5,413.30",0.00,N/A,N/A
People Services - Children & Young People,Integrated Services,Non-Schools,HILLCREST CHILDRENS SERVICES 2 LIMITED,1372476,04/05/2021,3675176,"5,413.30",0.00,N/A,N/A
People Services - Children & Young People,Integrated Services,Non-Schools,HILLCREST CHILDRENS SERVICES 2 LIMITED,1372476,04/05/2021,3675176,"1,960.56",0.00,N/A,N/A
People Services - Children & Young People,Integrated Services,Non-Schools,HILLCREST CHILDRENS SERVICES 2 LIMITED,1372476,04/05/2021,3675176,"1,089.20",0.00,N/A,N/A
People Services - Adults and Health,Physical Support,Community Support,HOLLY TREE LODGE,10612,04/05/2021,3676520,"1,059.24",0.00,N/A,N/A
People Services - Adults and Health,Physical Support,Community Support,HOLLY TREE LODGE,10612,04/05/2021,3676577,"1,084.66",0.00,N/A,N/A
People Services - Adults and Health,Physical Support,Community Support,HOLLY TREE LODGE,10612,04/05/2021,3676562,"2,169.32",0.00,N/A,N/A
People Services - Adults and Health,Physical Support,Community Support,HOLLY TREE LODGE,10612,04/05/2021,3676563,"2,169.32",0.00,N/A,N/A
People Services - Adults and Health,Physical Support,Community Support,HOLLY TREE LODGE,10612,04/05/2021,3676591,"2,118.48",0.00,N/A,N/A
People Services - Adults and Health,Physical Support,Community Support,HOLLY TREE LODGE,10612,04/05/2021,3676592,605.28,0.00,N/A,N/A
People Services - Adults and Health,Support with Memory and Cognition,Community Support,HOLLY TREE LODGE,10612,04/05/2021,3676531,"2,169.32",0.00,N/A,N/A
People Services - Adults and Health,Support with Memory and Cognition,Community Support,HOLLY TREE LODGE,10612,04/05/2021,3676559,"2,169.32",0.00,N/A,N/A
People Services - Adults and Health,Support with Memory and Cognition,Community Support,HOLLY TREE LODGE,10612,04/05/2021,3676570,"2,169.32",0.00,N/A,N/A
People Services - Adults and Health,Physical Support,Community Support,HOLLY TREE LODGE,10612,04/05/2021,3676560,"2,061.76",0.00,N/A,N/A
People Services - Adults and Health,Physical Support,Community Support,HOLLY TREE LODGE,10612,04/05/2021,3676517,"1,124.66",0.00,N/A,N/A
People Services - Adults and Health,Mental Health Support,Mental Health,HOLLY TREE LODGE,10612,04/05/2021,3676538,"2,169.32",0.00,N/A,N/A
People Services - Adults and Health,Mental Health Support,Mental Health,HOLLY TREE LODGE,10612,04/05/2021,3676532,"2,169.32",0.00,N/A,N/A
People Services - Adults and Health,Mental Health Support,Mental Health,HOLLY TREE LODGE,10612,04/05/2021,3676578,"2,169.32",0.00,N/A,N/A
People Services - Adults and Health,Sensory Support,Community Support,HOLLY TREE LODGE,10612,04/05/2021,3676549,"2,169.32",0.00,N/A,N/A
People Services - Adults and Health,Emergency Planning,Commissioning,HOLLY TREE LODGE,1736,04/05/2021,3673056,"10,875.73",0.00,N/A,N/A
People Services - Adults and Health,Physical Support,Community Support,HOME SUPPORT SERVICES,1120475,04/05/2021,3674202,758.99,0.00,N/A,N/A
People Services - Adults and Health,Physical Support,Community Support,HOME SUPPORT SERVICES,1120475,04/05/2021,3673332,758.99,0.00,N/A,N/A
People Services - Adults and Health,Physical Support,Community Support,HOME SUPPORT SERVICES,1120475,04/05/2021,3673685,"1,042.04",0.00,N/A,N/A
People Services - Adults and Health,Physical Support,Community Support,HOME SUPPORT SERVICES,1120475,04/05/2021,3673437,"1,102.84",0.00,N/A,N/A
People Services - Adults and Health,Physical Support,Community Support,HOME SUPPORT SERVICES,1120475,04/05/2021,3673333,503.84,0.00,N/A,N/A
People Services - Adults and Health,Physical Support,Community Support,HOME SUPPORT SERVICES,1120475,04/05/2021,3674394,503.84,0.00,N/A,N/A
People Services - Adults and Health,Physical Support,Community Support,HOME SUPPORT SERVICES,1120475,04/05/2021,3674397,623.81,0.00,N/A,N/A
People Services - Adults and Health,Physical Support,Community Support,HOME SUPPORT SERVICES,1120475,04/05/2021,3674208,621.33,0.00,N/A,N/A
People Services - Adults and Health,Physical Support,Community Support,HOME SUPPORT SERVICES,1120475,04/05/2021,3674302,621.33,0.00,N/A,N/A
People Services - Adults and Health,Physical Support,Community Support,HOME SUPPORT SERVICES,1120475,04/05/2021,3673440,"1,116.94",0.00,N/A,N/A
People Services - Adults and Health,Physical Support,Community Support,HOME SUPPORT SERVICES,1120475,04/05/2021,3673597,"1,006.09",0.00,N/A,N/A
People Services - Adults and Health,Mental Health Support,Mental Health,HOME SUPPORT SERVICES,1120475,04/05/2021,3673890,524.43,0.00,N/A,N/A
People Services - Children & Young People,Integrated Services,Non-Schools,HOPE FOSTERING SERVICE,1230482,04/05/2021,3675401,"1,805.14",0.00,N/A,N/A
People Services - Children & Young People,Integrated Services,Non-Schools,HOPE FOSTERING SERVICE,1230482,04/05/2021,3675401,"1,697.14",0.00,N/A,N/A
People Services - Children & Young People,Integrated Services,Non-Schools,HOPE FOSTERING SERVICE,1230482,04/05/2021,3675401,"1,357.14",0.00,N/A,N/A
People Services - Children & Young People,Integrated Services,Non-Schools,HOPE FOSTERING SERVICE,1230482,04/05/2021,3675401,"1,357.14",0.00,N/A,N/A
People Services - Children & Young People,Integrated Services,Non-Schools,HOPE FOSTERING SERVICE,1230482,04/05/2021,3675401,"1,357.14",0.00,N/A,N/A
People Services - Children & Young People,Integrated Services,Non-Schools,HOPE FOSTERING SERVICE,1230482,04/05/2021,3675401,"1,357.14",0.00,N/A,N/A
People Services - Children & Young People,Integrated Services,Non-Schools,HOPE FOSTERING SERVICE,1230482,04/05/2021,3675401,"1,214.29",0.00,N/A,N/A
People Services - Children & Young People,Integrated Services,Non-Schools,HOPE FOSTERING SERVICE,1230482,04/05/2021,3675401,"1,214.29",0.00,N/A,N/A
People Services - Children & Young People,Integrated Services,Non-Schools,HOPE FOSTERING SERVICE,1230482,04/05/2021,3675401,"1,071.43",0.00,N/A,N/A
People Services - Children & Young People,Integrated Services,Non-Schools,HOPE FOSTERING SERVICE,1230482,04/05/2021,3675401,"1,050.00",0.00,N/A,N/A
People Services - Children & Young People,Integrated Services,Non-Schools,HOPE FOSTERING SERVICE,1230482,04/05/2021,3675401,"1,002.86",0.00,N/A,N/A
People Services - Children & Young People,Integrated Services,Non-Schools,HOPE FOSTERING SERVICE,1230482,04/05/2021,3675401,"1,002.86",0.00,N/A,N/A
People Services - Children & Young People,Integrated Services,Non-Schools,HOPE FOSTERING SERVICE,1230482,04/05/2021,3675401,"1,002.86",0.00,N/A,N/A
People Services - Children & Young People,Integrated Services,Non-Schools,HOPE FOSTERING SERVICE,1230482,04/05/2021,3675401,"1,002.86",0.00,N/A,N/A
People Services - Children & Young People,Integrated Services,Non-Schools,HOPE FOSTERING SERVICE,1230482,04/05/2021,3675401,942.86,0.00,N/A,N/A
People Services - Children & Young People,Integrated Services,Non-Schools,HOPE FOSTERING SERVICE,1230482,04/05/2021,3675401,"2,459.96",0.00,N/A,N/A
People Services - Children & Young People,Integrated Services,Non-Schools,HOPE FOSTERING SERVICE,1230482,04/05/2021,3675401,"2,459.96",0.00,N/A,N/A
People Services - Children & Young People,Integrated Services,Non-Schools,HOPE FOSTERING SERVICE,1230482,04/05/2021,3675401,"2,185.71",0.00,N/A,N/A
People Services - Children & Young People,Integrated Services,Non-Schools,HOPE FOSTERING SERVICE,1230482,04/05/2021,3675401,"2,185.71",0.00,N/A,N/A
People Services - Children & Young People,Integrated Services,Non-Schools,HOPE FOSTERING SERVICE,1230482,04/05/2021,3675401,"1,928.57",0.00,N/A,N/A
People Services - Children & Young People,Integrated Services,Non-Schools,HOPE FOSTERING SERVICE,1230482,04/05/2021,3675401,"1,890.00",0.00,N/A,N/A
People Services - Children & Young People,Integrated Services,Non-Schools,HOPE FOSTERING SERVICE,1230482,04/05/2021,3675401,"1,805.14",0.00,N/A,N/A
People Services - Children & Young People,Integrated Services,Non-Schools,HOPE FOSTERING SERVICE,1230482,04/05/2021,3675401,"1,805.14",0.00,N/A,N/A
People Services - Children & Young People,Integrated Services,Non-Schools,HOPE FOSTERING SERVICE,1230482,04/05/2021,3675401,"1,805.14",0.00,N/A,N/A
People Services - Children & Young People,Integrated Services,Non-Schools,HOPE FOSTERING SERVICE,1230482,04/05/2021,3675401,"2,459.96",0.00,N/A,N/A
People Services - Children & Young People,Integrated Services,Non-Schools,HOPE FOSTERING SERVICE,1230482,04/05/2021,3675401,"2,459.96",0.00,N/A,N/A
People Services - Children & Young People,Integrated Services,Non-Schools,HORIZON CARE AND EDUCATION LTD,1350469,04/05/2021,3675181,"9,008.61",0.00,N/A,N/A
People Services - Children & Young People,Integrated Services,Non-Schools,HORIZON CARE AND EDUCATION LTD,1350469,04/05/2021,3675181,"7,200.00",0.00,N/A,N/A
People Services - Children & Young People,Integrated Services,Non-Schools,HORIZON CARE AND EDUCATION LTD,1350469,04/05/2021,3675181,"4,970.00",0.00,N/A,N/A
People Services - Children & Young People,Integrated Services,Non-Schools,HORIZON CARE AND EDUCATION LTD,1350469,04/05/2021,3675181,"4,000.00",0.00,N/A,N/A
People Services - Adults and Health,Physical Support,Community Support,HOUSING 21,1116470,04/05/2021,3674320,"1,209.92",0.00,N/A,N/A
People Services - Adults and Health,Physical Support,Community Support,HOUSING 21,1116470,04/05/2021,3674402,884.87,0.00,N/A,N/A
People Services - Adults and Health,Physical Support,Community Support,HOUSING 21,1116470,04/05/2021,3673247,"1,149.12",0.00,N/A,N/A
People Services - Adults and Health,Physical Support,Community Support,HOUSING 21,1116470,04/05/2021,3673972,839.27,0.00,N/A,N/A
People Services - Adults and Health,Physical Support,Community Support,HOUSING 21,1116470,04/05/2021,3673267,710.60,0.00,N/A,N/A
People Services - Adults and Health,Physical Support,Community Support,HOUSING 21,1116470,04/05/2021,3673407,"1,281.68",0.00,N/A,N/A
People Services - Adults and Health,Physical Support,Community Support,HOUSING 21,1116470,04/05/2021,3673983,"1,185.40",0.00,N/A,N/A
People Services - Adults and Health,Physical Support,Community Support,HOUSING 21,1116470,04/05/2021,3673547,710.60,0.00,N/A,N/A
People Services - Adults and Health,Physical Support,Community Support,HOUSING 21,1116470,04/05/2021,3673548,985.16,0.00,N/A,N/A
People Services - Adults and Health,Physical Support,Community Support,HOUSING 21,1116470,04/05/2021,3674339,968.64,0.00,N/A,N/A
People Services - Adults and Health,Physical Support,Community Support,HOUSING 21,1116470,04/05/2021,3674418,985.16,0.00,N/A,N/A
People Services - Adults and Health,Physical Support,Community Support,HOUSING 21,1116470,04/05/2021,3673423,834.60,0.00,N/A,N/A
People Services - Adults and Health,Physical Support,Community Support,HOUSING 21,1116470,04/05/2021,3673785,"1,281.68",0.00,N/A,N/A
People Services - Adults and Health,Physical Support,Community Support,HOUSING 21,1116470,04/05/2021,3674238,801.80,0.00,N/A,N/A
People Services - Adults and Health,Physical Support,Community Support,HOUSING 21,1116470,04/05/2021,3674321,985.16,0.00,N/A,N/A
People Services - Adults and Health,Physical Support,Community Support,HOUSING 21,1116470,04/05/2021,3674403,643.44,0.00,N/A,N/A
People Services - Adults and Health,Physical Support,Community Support,HOUSING 21,1116470,04/05/2021,3674404,"1,061.40",0.00,N/A,N/A
People Services - Adults and Health,Physical Support,Community Support,HOUSING 21,1116470,04/05/2021,3674405,"1,083.16",0.00,N/A,N/A
People Services - Adults and Health,Physical Support,Community Support,HOUSING 21,1116470,04/05/2021,3673671,821.33,0.00,N/A,N/A
People Services - Adults and Health,Physical Support,Community Support,HOUSING 21,1116470,04/05/2021,3673667,673.09,0.00,N/A,N/A
People Services - Adults and Health,Physical Support,Community Support,HOUSING 21,1116470,04/05/2021,3673248,864.92,0.00,N/A,N/A
People Services - Adults and Health,Physical Support,Community Support,HOUSING 21,1116470,04/05/2021,3673249,885.20,0.00,N/A,N/A
People Services - Adults and Health,Physical Support,Community Support,HOUSING 21,1116470,04/05/2021,3673250,885.20,0.00,N/A,N/A
People Services - Adults and Health,Physical Support,Community Support,HOUSING 21,1116470,04/05/2021,3673768,"1,060.24",0.00,N/A,N/A
People Services - Adults and Health,Physical Support,Community Support,HOUSING 21,1116470,04/05/2021,3673530,964.88,0.00,N/A,N/A
People Services - Adults and Health,Physical Support,Community Support,HOUSING 21,1116470,04/05/2021,3673973,"1,083.16",0.00,N/A,N/A
People Services - Adults and Health,Physical Support,Community Support,HOUSING 21,1116470,04/05/2021,3673974,"1,190.48",0.00,N/A,N/A
People Services - Adults and Health,Physical Support,Community Support,HOUSING 21,1116470,04/05/2021,3673242,787.76,0.00,N/A,N/A
People Services - Adults and Health,Physical Support,Community Support,HOUSING 21,1116470,04/05/2021,3673409,"1,042.04",0.00,N/A,N/A
People Services - Adults and Health,Physical Support,Community Support,HOUSING 21,1116470,04/05/2021,3673402,982.51,0.00,N/A,N/A
People Services - Adults and Health,Physical Support,Community Support,HOUSING 21,1116470,04/05/2021,3673403,"1,061.40",0.00,N/A,N/A
People Services - Adults and Health,Physical Support,Community Support,HOUSING 21,1116470,04/05/2021,3673400,537.17,0.00,N/A,N/A
People Services - Adults and Health,Physical Support,Community Support,HOUSING 21,1116470,04/05/2021,3674217,787.76,0.00,N/A,N/A
People Services - Adults and Health,Physical Support,Community Support,HOUSING 21,1116470,04/05/2021,3674218,968.59,0.00,N/A,N/A
People Services - Adults and Health,Physical Support,Community Support,HOUSING 21,1116470,04/05/2021,3674219,"1,190.48",0.00,N/A,N/A
People Services - Adults and Health,Physical Support,Community Support,HOUSING 21,1116470,04/05/2021,3674319,"1,162.78",0.00,N/A,N/A
People Services - Adults and Health,Physical Support,Community Support,HOUSING 21,1116470,04/05/2021,3674401,649.32,0.00,N/A,N/A
People Services - Adults and Health,Physical Support,Community Support,HOUSING 21,1116470,04/05/2021,3674216,"1,162.78",0.00,N/A,N/A
People Services - Adults and Health,Learning Disability Support,Community Support,HOUSING 21,1116470,04/05/2021,3674240,704.52,0.00,N/A,N/A
People Services - Adults and Health,Mental Health Support,Mental Health,HOUSING 21,1116470,04/05/2021,3674399,710.60,0.00,N/A,N/A
People Services - Adults and Health,Mental Health Support,Mental Health,HOUSING 21,1116470,04/05/2021,3673426,710.60,0.00,N/A,N/A
People Services - Adults and Health,Learning Disability Support,Community Support,HOUSING 21,1116470,04/05/2021,3673984,"1,042.04",0.00,N/A,N/A
People Services - Adults and Health,Learning Disability Support,Community Support,HOUSING 21,1116470,04/05/2021,3674341,"1,042.04",0.00,N/A,N/A
People Services - Adults and Health,Learning Disability Support,Community Support,HOUSING 21,1116470,04/05/2021,3673269,"1,042.04",0.00,N/A,N/A
People Services - Adults and Health,Learning Disability Support,Community Support,HOUSING 21,1116470,04/05/2021,3673549,904.56,0.00,N/A,N/A
People Services - Adults and Health,Learning Disability Support,Community Support,HOUSING 21,1116470,04/05/2021,3674241,"1,224.44",0.00,N/A,N/A
People Services - Adults and Health,Learning Disability Support,Community Support,HOUSING 21,1116470,04/05/2021,3673408,904.56,0.00,N/A,N/A
People Services - Adults and Health,Mental Health Support,Mental Health,HOUSING 21,1116470,04/05/2021,3673272,603.64,0.00,N/A,N/A
People Services - Adults and Health,Sensory Support,Community Support,HOUSING 21,1116470,04/05/2021,3674419,605.92,0.00,N/A,N/A
People Services - Adults and Health,Sensory Support,Community Support,HOUSING 21,1116470,04/05/2021,3674340,"1,236.00",0.00,N/A,N/A
People Services - Adults and Health,Support with Memory and Cognition,Community Support,HOUSING 21,1116470,04/05/2021,3673992,616.60,0.00,N/A,N/A
